Workbook

Sheet Listes
A1: N° MACHINE
A2: 1001
A3: 1002
A4: 1003
A5: 1004
A6: 1008
A7: 1101
A8: 1102
A9: 1103
A10: 1104
A11: 1105
A12: 1151
A13: 1152
A14: 1153
A15: 1154
A16: 1155
A17: 1156
A18: 1202
A19: 1251
A20: 1253
A21: 1256
A22: 1257
A23: 1258
A24: 1260
A25: 1261
A26: 1305
A27: 1407
A28: 1601
A29: 1602
A30: 1603
A31: 1701
A32: 1702
A33: 1703
A34: 1903
A35: 2101
A36: 2102
A37: 2103
A38: 2202
A39: 2204
A40: 2304
A41: /

Sheet ENTREE-SORTIE
A1: SORTIE D'OUTILLAGE
A2: SECTEUR | B2: N° MACHINE | C2: DATE | D2: OF | E2: DESIGNATION / REFERENCE | F2: QTE ENTREE | G2: QTE SORTIE | H2: NOM
A3: TOUR CN | B3: 1603 | C3: 2012-10-24 | D3: 324484 | E3: CCMT060204-SM IC807 | G3: 1 | H3: FABRICE
A4: TOUR CN | B4: 1603 | C4: 2012-10-25 | D4: 324485 | E4: TARAUD MACHINE UNC 3/8"-16 HL HSSE | G4: 1 | H4: CYRIL
A5: TOUR CN | B5: 1603 | C5: 2012-10-26 | D5: 324485 | E5: CCMT060204-SM IC807 | G5: 1 | H5: NADINE
A6: TOUR CN | B6: 1603 | C6: 2012-10-26 | D6: 324485 | E6: WNMG060404-TF IC807 | G6: 1 | H6: FABRICE
A7: TOUR CN | B7: 1603 | C7: 2012-10-29 | D7: 324487 | E7: FORET A EMBOUT DCN 190-057-25A-3D | G7: 1 | H7: NADINE
A8: TOUR CN | B8: 1603 | C8: 2012-10-29 | D8: 324487 | E8: TARAUD MACHINE UNC 7/8" M2256305 X PERT M | G8: 1 | H8: NADINE
A9: TOUR CN | B9: 1603 | C9: 2012-10-31 | D9: 324486 | E9: EMBOUT ICM167 IC908 | G9: 1 | H9: FABRICE
A10: TOUR CN | B10: 1603 | C10: 2012-10-31 | D10: 324486 | E10: FORET A EMBOUT DCN 160-048-20R-3D | G10: 1 | H10: FABRICE
A11: TOUR CN | B11: 1603 | C11: 2012-11-06 | D11: 324486 | E11: EMBOUT ICM167 IC908 | G11: 1 | H11: FABRICE
A12: TOUR CN | B12: 1603 | C12: 2012-11-06 | D12: 324486 | E12: TARAUD MACHINE UNC 3/4"-10 HL HSSE | G12: 1 | H12: FABRICE
A13: TOUR CN | B13: 1603 | C13: 2012-11-08 | D13: 324488 | E13: EMBOUT ICM196 IC908 | G13: 1 | H13: FABRICE
A14: TOUR CN | B14: 1603 | C14: 2012-11-15 | D14: 324562 | E14: EMBOUT ICM210 IC908 | G14: 1 | H14: CYRIL
A15: TOUR CN | B15: 1603 | C15: 2012-11-20 | D15: 325039 | E15: WNMG060404-TF IC807 | G15: 1 | H15: FABRICE
A16: TOUR CN | B16: 1603 | C16: 2012-11-20 | D16: 325039 | E16: WNMG060404-TF IC807 | G16: 1 | H16: FABRICE
A17: TOUR CN | B17: 1603 | C17: 2012-11-21 | D17: 325039 | E17: DGN 3102C IC328 | G17: 1 | H17: JFP
A18: TOUR CN | B18: 1603 | C18: 2012-11-21 | D18: 325039 | E18: WNMG060404-TF IC807 | G18: 1 | H18: NADINE
A19: TOUR CN | B19: 1603 | C19: 2012-11-27 | D19: 325039 | E19: DGN 3102C IC328 | G19: 1 | H19: NADINE
A20: TOUR CN | B20: 1603 | C20: 2012-11-29 | D20: 325039 | E20: WNMG060404-TF IC807 | G20: 1 | H20: CYRIL
A21: TOUR CN | B21: 1603 | C21: 2012-12-04 | D21: 325168 | E21: DGN 3102C IC328 | G21: 1 | H21: CYRIL
A22: TOUR CN | B22: 1603 | C22: 2012-12-05 | D22: 325168 | E22: WNMG060408-TF IC 807 | G22: 1 | H22: FABRICE
A23: TOUR CN | B23: 1603 | C23: 2012-12-14 | D23: 325310 | E23: EMBOUT ICM109 IC908 | G23: 1 | H23: FABRICE
A24: TOUR CN | C24: 2012-12-18 | D24: 325556 | E24: WNMG 060404 M5 5625 | G24: 1 | H24: KARINE
A25: TOUR CN | B25: 1603 | C25: 2012-12-19 | D25: 325310 | E25: CCMT060204-SM IC807 | G25: 1 | H25: FABRICE
A26: TRANSFERT | C26: 2012-12-19 | D26: 325064 | E26: FRAISE CW Ø63 x 0,8 | G26: 4 | H26: MOUS
A27: TOUR CN | C27: 2012-12-19 | D27: 325416 | E27: FRAISE CW Ø63 x 0,8 | G27: 4 | H27: CEDRIC
A28: TRANSFERT | C28: 2012-12-19 | D28: 325407 | E28: FRAISE HSS Ø100 x 0,8 | G28: 2 | H28: JOHANN
A29: TOUR CN | C29: 2012-12-19 | D29: 324977 | E29: WNMG 060404 M5 5625 | G29: 1 | H29: NADINE
A30: TRANSFERT | C30: 2012-12-20 | D30: 325211 | E30: FRAISE CW Ø100 x 1 | G30: 2 | H30: DRIF
A31: TRANSFERT | C31: 2012-12-20 | D31: 325211 | E31: FRAISE CW Ø100 x 1 | G31: 1 | H31: FRED
A32: TRANSFERT | C32: 2012-12-20 | D32: 325064 | E32: FRAISE CW Ø63 x 0,8 | G32: 1 | H32: MOUS
A33: TRANSFERT | C33: 2012-12-20 | D33: 325064 | E33: FRAISE CW Ø63 x 0,8 | G33: 2 | H33: MOUS
A34: TOUR CN | B34: 1603 | C34: 2012-12-20 | D34: 324942 | E34: PICCO R050.6-30 IC228 | G34: 1 | H34: NADINE
A35: TOUR CN | B35: 1603 | C35: 2012-12-21 | D35: 324942 | E35: PICCO R050.6-30 IC228 | G35: 1 | H35: CYRIL
A36: TOUR CN | C36: 2013-01-02 | D36: 325500 | E36: 229,0800,20,10 | G36: 1 | H36: FABRICE
A37: TOUR CN | B37: 1603 | C37: 2013-01-02 | D37: 324942 | E37: DGL3102C-150 IC830 | G37: 1 | H37: NADINE
A38: TRANSFERT | C38: 2013-01-02 | D38: 325663 | E38: FRAISE CW Ø100 x 1 | G38: 2 | H38: JOHANN
A39: TRANSFERT | C39: 2013-01-02 | D39: 325663 | E39: FRAISE CW Ø100 x 1 | G39: 2 | H39: MOUS
A40: TRANSFERT | C40: 2013-01-02 | D40: 325064 | E40: FRAISE CW Ø63 x 0,8 | G40: 1 | H40: DRIF
A41: TRANSFERT | C41: 2013-01-02 | D41: 325064 | E41: FRAISE CW Ø63 x 0,8 | G41: 1 | H41: DRIF
A42: TRANSFERT | C42: 2013-01-02 | D42: 325064 | E42: FRAISE CW Ø63 x 0,8 | G42: 2 | H42: VIVIEN
A43: TRANSFERT | C43: 2013-01-02 | D43: 325064 | E43: FRAISE CW Ø63 x 0,8 | G43: 1 | H43: JEAN CHARLES
A44: TRANSFERT | C44: 2013-01-02 | D44: 4420 | E44: FRAISE CW Ø63 x 0,8 | G44: 4 | H44: ACHRAF
A45: TOUR CN | C45: 2013-01-02 | D45: 325500 | E45: S224 0400 D2 TN35 | G45: 1 | H45: CYRIL
A46: TOUR CN | C46: 2013-01-02 | D46: 325500 | E46: S224 0400 D2 TN35 | G46: 1 | H46: CYRIL
A47: TOUR CN | C47: 2013-01-02 | D47: 325500 | E47: S224 0400 D2 TN35 | G47: 1 | H47: CYRIL
A48: TRANSFERT | C48: 2013-01-02 | D48: 325064 | E48: TARAUD MACHINE M10x150 HL HSSE | G48: 1 | H48: FRED
A49: TRANSFERT | C49: 2013-01-02 | D49: 4420 | E49: TARAUD MACHINE M12x175 HL HSSE | G49: 1 | H49: ACHRAF
A50: TARAUDEUSE | C50: 2013-01-02 | D50: 325328 | E50: TARAUD AH M12X175 HSSE CO | G50: 1 | H50: SEB
A51: TRANSFERT | C51: 2013-01-02 | D51: 325663 | E51: TARAUD MACHINE M16x200 HL HSSE | G51: 1 | H51: MOUS
A52: TRANSFERT | C52: 2013-01-02 | D52: 325663 | E52: TARAUD MACHINE M16x200 HL HSSE | G52: 1 | H52: VIVIEN
A53: TRANSFERT | C53: 2013-01-02 | D53: 325340 | E53: TARAUD MACHINE M8X125 ECO HT THL | G53: 2 | H53: CEDRIC
A54: TRANSFERT | C54: 2013-01-02 | D54: 325340 | E54: TARAUD MACHINE M8X125 ECO HT THL | G54: 1 | H54: ACHRAF
A55: TOUR CN | B55: 1603 | C55: 2013-01-02 | D55: 324940 | E55: TARAUD MACHINE UNF N°10-32 INOX TIN | G55: 1 | H55: NADINE
A56: TOUR CN | C56: 2013-01-02 | D56: 324942 | E56: WNMG 060404 M5 5625 | G56: 1 | H56: NADINE
A57: TARAUDEUSE | C57: 2013-01-02 | D57: 325510 | E57: TARAUD COUDEE M8x125 | G57: 1 | H57: SEB
A58: TRANSFERT | C58: 2013-01-03 | D58: 4427 | E58: FRAISE CW Ø63 x 0,2 | G58: 2 | H58: ACHRAF
A59: TRANSFERT | C59: 2013-01-03 | D59: 4427 | E59: FRAISE CW Ø63 x 0,2 | G59: 1 | H59: ACHRAF
A60: TRANSFERT | C60: 2013-01-03 | D60: 4427 | E60: FRAISE CW Ø63 x 0,2 | G60: 1 | H60: ACHRAF
A61: TRANSFERT | C61: 2013-01-03 | D61: 325064 | E61: FRAISE CW Ø63 x 0,8 | G61: 1 | H61: DRIF
A62: TRANSFERT | C62: 2013-01-03 | D62: 325064 | E62: FRAISE CW Ø63 x 0,8 | G62: 1 | H62: ACHRAF
A63: TRANSFERT | C63: 2013-01-03 | D63: 4420 | E63: FRAISE CW Ø63 x 0,8 | G63: 1 | H63: VIVIEN
A64: TRANSFERT | C64: 2013-01-03 | D64: 4420 | E64: FRAISE CW Ø63 x 0,8 | G64: 1 | H64: JEAN CHARLES
A65: TRANSFERT | C65: 2013-01-03 | D65: 4419 | E65: FRAISE CW Ø63 x 0,8 | G65: 4 | H65: FRED
A66: TRANSFERT | C66: 2013-01-03 | D66: 325064 | E66: FRAISE CW Ø63 x 0,8 | G66: 2 | H66: CEDRIC
A67: TOUR CN | B67: 1603 | C67: 2013-01-03 | D67: 325500 | E67: PICCO R050.6-30 IC228 | G67: 1 | H67: FABRICE
A68: TRANSFERT | C68: 2013-01-03 | D68: 4419 | E68: TARAUD MACHINE M10x150 HL HSSE | G68: 2 | H68: FRED
A69: TRANSFERT | C69: 2013-01-03 | D69: 325064 | E69: TARAUD MACHINE M10x150 HL HSSE | G69: 2 | H69: CEDRIC
A70: TRANSFERT | C70: 2013-01-03 | D70: 4427 | E70: TARAUD MACHINE M2,5 ENORMZ TIN | G70: 1 | H70: ACHRAF
A71: TRANSFERT | C71: 2013-01-03 | D71: 4427 | E71: TARAUD MACHINE M2,5 ENORMZ TIN | G71: 1 | H71: MOUS
A72: TRANSFERT | C72: 2013-01-03 | D72: 4427 | E72: TARAUD MACHINE M2,5 ENORMZ TIN | G72: 1 | H72: MOUS
A73: TARAUDEUSE | C73: 2013-01-03 | D73: 324388 | E73: TARAUD AH M20X150 HSSE CO | G73: 1 | H73: SEB
A74: TARAUDEUSE | C74: 2013-01-03 | D74: 325326 | E74: TARAUD AH M20X250 HSSE CO | G74: 1 | H74: SEB
A75: TRANSFERT | C75: 2013-01-03 | D75: 324861 | E75: TARAUD MACHINE M6x100 HL HSSE | G75: 1 | H75: DRIF
A76: TRANSFERT | C76: 2013-01-03 | D76: 325340 | E76: TARAUD MACHINE M8X125 ECO HT THL | G76: 1 | H76: JEAN CHARLES
A77: TOUR CN | B77: 1603 | C77: 2013-01-03 | D77: 324940 | E77: TARAUD MACHINE UNF N°10-32 INOX TIN | G77: 1 | H77: NADINE
A78: TOUR CN | C78: 2013-01-03 | D78: 324977 | E78: WNMG 060404 M5 5625 | G78: 1 | H78: KARINE
A79: TOUR CN | C79: 2013-01-04 | D79: 325500 | E79: 229,0800,20,10 | G79: 1 | H79: KARINE
A80: TOUR CN | B80: 1603 | C80: 2013-01-04 | D80: 324940 | E80: DGL 3102C-15D IC830 | G80: 1 | H80: NADINE
A81: TRANSFERT | C81: 2013-01-04 | D81: 325663 | E81: FRAISE CW Ø100 x 1 | G81: 2 | H81: VIVIEN
A82: TRANSFERT | C82: 2013-01-04 | D82: 324861 | E82: FRAISE CW Ø63 x 0,5 | G82: 2 | H82: JEAN CHARLES
A83: TRANSFERT | C83: 2013-01-04 | D83: 325064 | E83: FRAISE CW Ø63 x 0,8 | G83: 4 | H83: VIVIEN
A84: TRANSFERT | C84: 2013-01-04 | D84: 325064 | E84: FRAISE CW Ø63 x 0,8 | G84: 1 | H84: VIVIEN
A85: TRANSFERT | C85: 2013-01-04 | D85: 325064 | E85: FRAISE CW Ø63 x 0,8 | G85: 1 | H85: VIVIEN
A86: TRANSFERT | C86: 2013-01-04 | D86: 4420 | E86: TARAUD MACHINE M12x175 HL HSSE | G86: 2 | H86: DRIF
A87: TRANSFERT | C87: 2013-01-04 | D87: 4435 | E87: TARAUD MACHINE M16x200 TIN HSSE | G87: 1 | H87: VIVIEN
A88: TRANSFERT | C88: 2013-01-04 | D88: 4427 | E88: TARAUD MACHINE M2,5 ENORMZ TIN | G88: 1 | H88: DRIF
A89: TRANSFERT | C89: 2013-01-04 | D89: 324861 | E89: TARAUD MACHINE M6x100 HL HSSE | G89: 1 | H89: JEAN CHARLES
A90: TOUR CN | B90: 1603 | C90: 2013-01-04 | D90: 324940 | E90: WNMG060408-TF IC 807 | G90: 1 | H90: NADINE
A91: TRANSFERT | C91: 2013-01-04 | D91: 4546 | E91: FRAISE CW Ø63 x 0,5 | G91: 2 | H91: JEAN CHARLES
A92: TRANSFERT | C92: 2013-01-05 | D92: 4546 | E92: FRAISE CW Ø63 x 0,5 | G92: 1 | H92: FRED
A93: TRANSFERT | C93: 2013-01-06 | D93: 324861 | E93: FRAISE CW Ø63 x 0,5 | G93: 2 | H93: JEAN CHARLES
A94: TRANSFERT | C94: 2013-01-06 | D94: 325064 | E94: TARAUD MACHINE M10x150 HL HSSE | G94: 1 | H94: JEAN CHARLES
A95: TRANSFERT | C95: 2013-01-06 | D95: 324861 | E95: TARAUD MACHINE M6x100 HL HSSE | G95: 2 | H95: JEAN CHARLES
A96: TOUR CN | C96: 2013-01-07 | D96: 325500 | E96: 229,0800,20,10 | G96: 1 | H96: NADINE
A97: TOUR CN | B97: 1603 | C97: 2013-01-07 | D97: 324940 | E97: DGL 3102C-15D IC830 | G97: 1 | H97: NADINE
A98: TOUR CN | B98: 1603 | C98: 2013-01-07 | D98: 325500 | E98: DGR 3102C-15D IC830 | G98: 1 | H98: NADINE
A99: TRANSFERT | C99: 2013-01-07 | D99: 4419 | E99: FRAISE CW Ø63 x 0,8 | G99: 1 | H99: ACHRAF
A100: TRANSFERT | C100: 2013-01-07 | D100: 4419 | E100: FRAISE CW Ø63 x 0,8 | G100: 1 | H100: ACHRAF
A101: TRANSFERT | C101: 2013-01-07 | D101: 4419 | E101: FRAISE CW Ø63 x 0,8 | G101: 1 | H101: JEAN CHARLES
A102: TRANSFERT | C102: 2013-01-07 | D102: 4419 | E102: FRAISE CW Ø63 x 0,8 | G102: 1 | H102: DRIF
A103: TRANSFERT | C103: 2013-01-07 | D103: 325064 | E103: FRAISE CW Ø63 x 0,8 | G103: 1 | H103: DRIF
A104: TRANSFERT | C104: 2013-01-07 | D104: 4419 | E104: FRAISE CW Ø63 x 0,8 | G104: 2 | H104: MOUS
A105: TRANSFERT | C105: 2013-01-07 | D105: 325064 | E105: FRAISE CW Ø63 x 0,8 | G105: 4 | H105: CEDRIC
A106: TOUR CN | B106: 1603 | C106: 2013-01-07 | D106: 324940 | E106: R105.1813.005.2.3 TF45 | G106: 1 | H106: NADINE
A107: TOUR CN | B107: 1603 | C107: 2013-01-07 | D107: 324940 | E107: R105.1813.005.2.3 TF45 | G107: 1 | H107: FABRICE
A108: TRANSFERT | C108: 2013-01-07 | D108: 325064 | E108: TARAUD MACHINE M10x150 HL HSSE | G108: 2 | H108: MOUS
A109: TRANSFERT | C109: 2013-01-07 | D109: 4420 | E109: TARAUD MACHINE M12x175 HL HSSE | G109: 2 | H109: MOUS
A110: TRANSFERT | C110: 2013-01-07 | D110: 324861 | E110: TARAUD MACHINE M6x100 HL HSSE | G110: 1 | H110: DRIF
A111: TRANSFERT | C111: 2013-01-07 | D111: 324861 | E111: TARAUD MACHINE M6x100 HL HSSE | G111: 1 | H111: CEDRIC
A112: TOUR CN | B112: 1603 | C112: 2013-01-07 | D112: 324940 | E112: TARAUD MACHINE UNF N°10-32 INOX TIN | G112: 1 | H112: NADINE
A113: TOUR CN | C113: 2013-01-07 | D113: 324940 | E113: WNMG 060404 M5 5625 | G113: 1 | H113: NADINE
A114: TOUR CN | C114: 2013-01-07 | D114: 324977 | E114: WNMG 060404 M5 5625 | G114: 1 | H114: KARINE
A115: TARAUDEUSE | C115: 2013-01-07 | D115: 322955 | E115: TARAUD COUDEE M5x0,80 | G115: 1 | H115: MANUEL
A116: TOUR CN | C116: 2013-01-08 | D116: 325500 | E116: 229,0800,20,10 | G116: 1 | H116: NADINE
A117: TOUR CN | C117: 2013-01-08 | D117: 325500 | E117: 229,0800,20,10 | G117: 1 | H117: KARINE
A118: TRANSFERT | C118: 2013-01-08 | D118: 4435 | E118: FRAISE CW Ø100 x 1 | G118: 2 | H118: JOHANN
A119: TRANSFERT | C119: 2013-01-08 | D119: 324861 | E119: FRAISE CW Ø63 x 0,5 | G119: 1 | H119: FRED
A120: TRANSFERT | C120: 2013-01-08 | D120: 4420 | E120: FRAISE CW Ø63 x 0,8 | G120: 1 | H120: ACHRAF
A121: TRANSFERT | C121: 2013-01-08 | D121: 4419 | E121: FRAISE CW Ø63 x 0,8 | G121: 1 | H121: JEAN CHARLES
A122: TRANSFERT | C122: 2013-01-08 | D122: 4469 | E122: FRAISE CW Ø63 x 0,8 | G122: 4 | H122: FRED
A123: TRANSFERT | C123: 2013-01-08 | D123: 325058 | E123: FRAISE CW Ø63 x 0,8 | G123: 1 | H123: CEDRIC
A124: TOUR CN | B124: 1603 | C124: 2013-01-08 | D124: 324931 | E124: HP ANKT0702 PN-R IC908 | G124: 6 | H124: FABRICE
A125: TOUR CN | B125: 1603 | C125: 2013-01-08 | D125: 324931 | E125: TAG N2J IC808 | G125: 1 | H125: FABRICE
A126: TRANSFERT | C126: 2013-01-08 | D126: 4419 | E126: TARAUD MACHINE M10x150 HL HSSE | G126: 1 | H126: JEAN CHARLES
A127: TRANSFERT | C127: 2013-01-08 | D127: 4419 | E127: TARAUD MACHINE M10x150 HL HSSE | G127: 1 | H127: JEAN CHARLES
A128: TRANSFERT | C128: 2013-01-08 | D128: 4419 | E128: TARAUD MACHINE M10x150 HL HSSE | G128: 1 | H128: CEDRIC
A129: TRANSFERT | C129: 2013-01-08 | D129: 4435 | E129: TARAUD MACHINE M16x200 TIN HSSE | G129: 1 | H129: JOHANN
A130: TOUR CN | C130: 2013-01-08 | D130: 324977 | E130: WNMG 060404 M5 5625 | G130: 1 | H130: NADINE
A131: TOUR CN | B131: 1603 | C131: 2013-01-08 | D131: 324931 | E131: WNMG060404-TF IC8250 | G131: 1 | H131: FABRICE
A132: TOUR CN | C132: 2013-01-09 | D132: 325500 | E132: 229,0800,20,10 | G132: 1 | H132: CYRIL
A133: TOUR CN | C133: 2013-01-09 | D133: 324931 | E133: DCGT 11T304FN27 H10T | G133: 1 | H133: FABRICE
A134: TOUR CN | B134: 1603 | C134: 2013-01-09 | D134: 324931 | E134: DCMT11T304-SM IC807 | G134: 1 | H134: FABRICE
A135: TRANSFERT | C135: 2013-01-09 | D135: 4490 | E135: FRAISE CW Ø100 x 1 | G135: 2 | H135: CEDRIC
A136: TRANSFERT | C136: 2013-01-09 | D136: 4475 | E136: FRAISE CW Ø63 x 0,4 | G136: 4 | H136: JEAN CHARLES
A137: TRANSFERT | C137: 2013-01-09 | D137: 4469 | E137: FRAISE CW Ø63 x 0,6 | G137: 1 | H137: VIVIEN
A138: TRANSFERT | C138: 2013-01-09 | D138: 4469 | E138: FRAISE CW Ø63 x 0,6 | G138: 1 | H138: ACHRAF
A139: TRANSFERT | C139: 2013-01-09 | D139: 4420 | E139: FRAISE CW Ø63 x 0,8 | G139: 3 | H139: ACHRAF
A140: TRANSFERT | C140: 2013-01-09 | D140: 325407 | E140: FRAISE HSS Ø100 x 0,8 | G140: 1 | H140: CEDRIC
A141: TRANSFERT | C141: 2013-01-09 | D141: 325407 | E141: FRAISE HSS Ø100 x 0,8 | G141: 1 | H141: CEDRIC
A142: TOUR CN | B142: 1603 | C142: 2013-01-09 | D142: 324931 | E142: TAG N2J IC808 | G142: 1 | H142: FABRICE
A143: TRANSFERT | C143: 2013-01-09 | D143: 4419 | E143: TARAUD MACHINE M10x150 HL HSSE | G143: 1 | H143: ACHRAF
A144: TRANSFERT | C144: 2013-01-09 | D144: 4419 | E144: TARAUD MACHINE M10x150 HL HSSE | G144: 2 | H144: FRED
A145: TRANSFERT | C145: 2013-01-09 | D145: 4420 | E145: TARAUD MACHINE M12x175 HL HSSE | G145: 2 | H145: ACHRAF
A146: TRANSFERT | C146: 2013-01-09 | D146: 4435 | E146: TARAUD MACHINE M16x200 TIN HSSE | G146: 1 | H146: CEDRIC
A147: TARAUDEUSE | C147: 2013-01-09 | D147: 325407 | E147: TARAUD AH M20X150 HSSE CO | G147: 1 | H147: MANUEL
A148: TRANSFERT | C148: 2013-01-09 | D148: 4475 | E148: TARAUD MACHINE M5x080 TIN HSSE | G148: 2 | H148: MOUS
A149: TOUR CN | B149: 1603 | C149: 2013-01-09 | D149: 324931 | E149: TCMT 110204-SM IC8250 | G149: 1 | H149: FABRICE
A150: TOUR CN | C150: 2013-01-10 | D150: 325500 | E150: 229,0800,20,10 | G150: 1 | H150: NADINE
A151: TOUR CN | C151: 2013-01-10 | D151: 325500 | E151: 229,0800,20,10 | G151: 1 | H151: NADINE
A152: TOUR CN | C152: 2013-01-10 | D152: 324936 | E152: DCGT 11T304FN27 H10T | G152: 1 | H152: FABRICE
A153: TOUR CN | C153: 2013-01-10 | D153: 324931 | E153: DCMT11T304-SM IC807 | G153: 1 | H153: CYRIL
A154: TOUR CN | B154: 1603 | C154: 2013-01-10 | D154: 324931 | E154: DGL3102C-150 IC830 | G154: 1 | H154: CYRIL
A155: TOUR CN | B155: 1603 | C155: 2013-01-10 | D155: 324931 | E155: DGN 3102C IC328 | G155: 1 | H155: CYRIL
A156: TOUR CN | B156: 1603 | C156: 2013-01-10 | D156: 324936 | E156: DGN 3102C IC328 | G156: 1 | H156: FABRICE
A157: TOUR CN | B157: 1603 | C157: 2013-01-10 | D157: 324936 | E157: FORET CW MONOBLOC A3299XPL-5,4 | G157: 1 | H157: CYRIL
A158: TRANSFERT | C158: 2013-01-10 | D158: 4435 | E158: FRAISE CW Ø100 x 1 | G158: 2 | H158: ACHRAF
A159: TRANSFERT | C159: 2013-01-10 | D159: 4490 | E159: FRAISE CW Ø100 x 1 | G159: 2 | H159: FRED
A160: TRANSFERT | C160: 2013-01-10 | D160: 4419 | E160: FRAISE CW Ø63 x 0,8 | G160: 2 | H160: ACHRAF
A161: TRANSFERT | C161: 2013-01-10 | D161: 4469 | E161: FRAISE CW Ø63 x 0,8 | G161: 2 | H161: MOUS
A162: TRANSFERT | C162: 2013-01-10 | D162: 4419 | E162: FRAISE CW Ø63 x 0,8 | G162: 2 | H162: MOUS
A163: TRANSFERT | C163: 2013-01-10 | D163: 4478 | E163: FRAISE CW Ø63 x 0,8 | G163: 2 | H163: MOUS
A164: TRANSFERT | C164: 2013-01-10 | D164: 4478 | E164: FRAISE CW Ø63 x 0,8 | G164: 1 | H164: CEDRIC
A165: TRANSFERT | C165: 2013-01-10 | D165: 4469 | E165: FRAISE CW Ø63 x 0,8 | G165: 1 | H165: ACHRAF
A166: TRANSFERT | C166: 2013-01-10 | D166: 4419 | E166: TARAUD MACHINE M10x150 HL HSSE | G166: 2 | H166: MOUS
A167: TRANSFERT | C167: 2013-01-10 | D167: 4478 | E167: TARAUD MACHINE M12x175 HL HSSE | G167: 2 | H167: MOUS
A168: TARAUDEUSE | C168: 2013-01-10 | D168: 325455 | E168: TARAUD AH M18X150 HSSE CO | G168: 1 | H168: SEB
A169: TRANSFERT | C169: 2013-01-10 | D169: 4475 | E169: TARAUD MACHINE M5x080 TIN HSSE | G169: 2 | H169: CEDRIC
A170: TOUR CN | C170: 2013-01-11 | D170: 325500 | E170: 229,0800,20,10 | G170: 1 | H170: CYRIL
A171: TOUR CN | C171: 2013-01-11 | D171: 4423 | E171: CCMT060204 IC3028 | G171: 1 | H171: NADINE
A172: TOUR CN | B172: 1603 | C172: 2013-01-11 | D172: 324936 | E172: DGN 3102C IC328 | G172: 1 | H172: FABRICE
A173: TRANSFERT | C173: 2013-01-11 | D173: 4419 | E173: FRAISE CW Ø63 x 0,8 | G173: 1 | H173: DRIF
A174: TRANSFERT | C174: 2013-01-11 | D174: 324727 | E174: TARAUD MACHINE M12x175 TIN HSSE | G174: 2 | H174: DRIF
A175: TARAUDEUSE | C175: 2013-01-11 | D175: 4475 | E175: TARAUD MACHINE M5x080 TIN HSSE | G175: 1 | H175: SEB
A176: TOUR CN | C176: 2013-01-14 | D176: 325500 | E176: 229,0800,20,10 | G176: 1 | H176: FABRICE
A177: TRANSFERT | C177: 2013-01-14 | D177: 4435 | E177: BROSSE Ø50 | G177: 1 | H177: ACHRAF
A178: TRANSFERT | C178: 2013-01-14 | D178: 4420 | E178: BROSSE Ø50 | G178: 2 | H178: MOUS
A179: TRANSFERT | C179: 2013-01-14 | D179: 4420 | E179: BROSSE Ø70 | G179: 2 | H179: MOUS
A180: TOUR CN | C180: 2013-01-14 | D180: 4430 | E180: DGN 3102C IC328 | G180: 1 | H180: CYRIL
A181: TOUR CN | C181: 2013-01-14 | D181: 4430 | E181: EMBOUT ICM165 IC908 | G181: 1 | H181: FABRICE
A182: TRANSFERT | C182: 2013-01-14 | D182: 4490 | E182: FRAISE CW Ø100 x 1 | G182: 2 | H182: ACHRAF
A183: TRANSFERT | C183: 2013-01-14 | D183: 4446 | E183: FRAISE CW Ø100 x 1 | G183: 2 | H183: MOUS
A184: TRANSFERT | C184: 2013-01-14 | D184: 4435 | E184: FRAISE CW Ø100 x 1 | G184: 1 | H184: MOUS
A185: TRANSFERT | C185: 2013-01-14 | D185: 4490 | E185: FRAISE CW Ø100 x 1 | G185: 2 | H185: MOUS
A186: TRANSFERT | C186: 2013-01-14 | D186: 4522 | E186: FRAISE CW Ø63 x 0,8 | G186: 1 | H186: DRIF
A187: TRANSFERT | C187: 2013-01-14 | D187: 4419 | E187: FRAISE CW Ø63 x 0,8 | G187: 1 | H187: JEAN CHARLES
A188: TRANSFERT | C188: 2013-01-14 | D188: 4522 | E188: FRAISE CW Ø63 x 0,8 | G188: 1 | H188: JEAN CHARLES
A189: TRANSFERT | C189: 2013-01-14 | D189: 4522 | E189: FRAISE CW Ø63 x 0,8 | G189: 2 | H189: JEAN CHARLES
A190: TRANSFERT | C190: 2013-01-14 | D190: 4522 | E190: FRAISE CW Ø63 x 0,8 | G190: 1 | H190: JEAN CHARLES
A191: TRANSFERT | C191: 2013-01-14 | D191: 4419 | E191: FRAISE CW Ø63 x 0,8 | G191: 1 | H191: JEAN CHARLES
A192: TRANSFERT | C192: 2013-01-14 | D192: 4419 | E192: FRAISE CW Ø63 x 0,8 | G192: 1 | H192: JEAN CHARLES
A193: TRANSFERT | C193: 2013-01-14 | D193: 4478 | E193: FRAISE CW Ø63 x 0,8 | G193: 1 | H193: JEAN CHARLES
A194: TRANSFERT | C194: 2013-01-14 | D194: 4522 | E194: FRAISE CW Ø63 x 0,8 | G194: 1 | H194: FRED
A195: TRANSFERT | C195: 2013-01-14 | D195: 4522 | E195: FRAISE CW Ø63 x 0,8 | G195: 1 | H195: CEDRIC
A196: TRANSFERT | C196: 2013-01-14 | D196: 4419 | E196: TARAUD MACHINE M10x150 HL HSSE | G196: 2 | H196: DRIF
A197: TRANSFERT | C197: 2013-01-14 | D197: 4419 | E197: TARAUD MACHINE M10x150 HL HSSE | G197: 1 | H197: CEDRIC
A198: TRANSFERT | C198: 2013-01-14 | D198: 4419 | E198: TARAUD MACHINE M10x150 HL HSSE | G198: 1 | H198: ACHRAF
A199: TRANSFERT | C199: 2013-01-14 | D199: 4478 | E199: TARAUD MACHINE M12x175 HL HSSE | G199: 1 | H199: DRIF
A200: TRANSFERT | C200: 2013-01-14 | D200: 4478 | E200: TARAUD MACHINE M12x175 HL HSSE | G200: 1 | H200: CEDRIC
... 1659 more rows

Sheet RECAP ENTRE-SORTIE
A3: Somme de QTE SORTIE | B3: Étiquettes de colonnes
A4: Étiquettes de lignes | B4: 2012-12-19 | C4: 2012-12-20 | D4: 2013-01-02 | E4: 2013-01-03 | F4: 2013-01-04 | G4: 2013-01-05 | H4: 2013-01-06 | I4: 2013-01-07 | J4: 2013-01-08 | K4: 2013-01-09 | L4: 2013-01-10 | M4: 2013-01-11 | N4: 2013-01-14 | O4: 2013-01-15 | P4: 2013-01-16 | Q4: 2013-01-17 | R4: 2013-01-18 | S4: 2013-01-21 | T4: 2013-01-22 | U4: 2013-01-23 | V4: 2013-01-24 | W4: 2013-01-25 | X4: 2013-01-28 | Y4: 2013-01-29 | Z4: 2013-01-30 | AA4: 2013-01-31 | AB4: 2013-02-01 | AC4: 2013-02-04 | AD4: 2013-02-05 | AE4: 2013-02-06 | AF4: 2013-02-07 | AG4: 2013-02-08 | AH4: 2013-02-11 | AI4: 2013-02-12 | AJ4: 2013-02-13 | AK4: 2013-02-14 | AL4: 2013-02-15 | AM4: 2013-02-18 | AN4: 2013-02-19 | AO4: 2013-02-20 | AP4: 2013-02-21 | AQ4: 2013-02-22 | AR4: 2013-02-25 | AS4: 2013-02-26 | AT4: 2013-02-27 | AU4: 2013-02-28 | AV4: 2013-03-01 | AW4: 2013-03-04 | AX4: 2013-03-05 | AY4: 2013-03-06 | AZ4: 2013-03-07 | BA4: 2013-03-08 | BB4: 2013-03-11 | BC4: 2013-03-12 | BD4: 2013-03-13 | BE4: 2013-03-14 | BF4: 2013-03-15 | BG4: 2013-03-18 | BH4: 2013-03-19 | BI4: 2013-03-20 | BJ4: 2013-03-21 | BK4: 2013-03-22 | BL4: 2013-03-25 | BM4: 2013-03-26 | BN4: 2013-03-27 | BO4: 2013-03-28 | BP4: 2013-03-29 | BQ4: 2013-04-01 | BR4: 2013-04-02 | BS4: 2013-04-03 | BT4: 2013-04-04 | BU4: 2013-04-05 | BV4: 2013-04-08 | BW4: 2013-04-09 | BX4: 2013-04-10 | BY4: 2013-04-11 | BZ4: 2013-04-12 | CA4: 15/04/2013 | CB4: 2013-11-04 | CC4: 28/03/2013 | CD4: 2013-12-04 | CE4: Total général
A5: ACHRAF | D5: 6 | E5: 6 | I5: 2 | J5: 1 | K5: 7 | L5: 5 | N5: 6 | O5: 5 | P5: 5 | Q5: 2 | S5: 1 | T5: 4 | U5: 5 | X5: 3 | Y5: 2 | Z5: 8 | AA5: 1 | AC5: 6 | AD5: 6 | AE5: 7 | AF5: 8 | AH5: 2 | AI5: 3 | AJ5: 5 | AK5: 1 | AM5: 9 | AN5: 5 | AO5: 3 | AP5: 4 | AR5: 3 | AS5: 5 | AU5: 5 | AW5: 1 | AX5: 4 | AY5: 4 | BB5: 2 | BD5: 4 | BE5: 2 | BG5: 1 | BH5: 4 | BI5: 2 | BJ5: 3 | BL5: 1 | BM5: 3 | BN5: 7 | BO5: 1 | BR5: 1 | BS5: 5 | BT5: 1 | BV5: 8 | BW5: 3 | BX5: 3 | CE5: 201
A6: CEDRIC | B6: 4 | D6: 2 | E6: 4 | I6: 5 | J6: 2 | K6: 5 | L6: 3 | N6: 3 | O6: 3 | P6: 3 | Q6: 3 | S6: 1 | T6: 5 | U6: 1 | V6: 5 | X6: 3 | Y6: 4 | Z6: 8 | AA6: 1 | AC6: 1 | AD6: 5 | AE6: 1 | AF6: 8 | AG6: 3 | AH6: 7 | AI6: 5 | AJ6: 11 | AK6: 6 | AL6: 4 | AM6: 2 | AN6: 6 | AP6: 3 | AQ6: 3 | AR6: 3 | AS6: 2 | AT6: 6 | AU6: 3 | AV6: 2 | AW6: 6 | AX6: 2 | AY6: 3 | BA6: 2 | BB6: 2 | BC6: 6 | BD6: 3 | BE6: 1 | BF6: 3 | BG6: 2 | BI6: 2 | BJ6: 4 | BK6: 1 | BL6: 6 | BM6: 4 | BN6: 4 | BO6: 9 | BP6: 6 | BR6: 11 | BS6: 3 | BT6: 2 | BU6: 5 | BV6: 3 | BW6: 3 | BX6: 4 | BY6: 8 | CB6: 0 | CD6: 0 | CE6: 251
A7: DRIF | C7: 2 | D7: 2 | E7: 2 | F7: 3 | I7: 3 | M7: 3 | N7: 4 | O7: 2 | P7: 3 | Q7: 2 | R7: 5 | S7: 4 | T7: 4 | X7: 2 | Y7: 2 | Z7: 1 | AA7: 5 | AB7: 1 | AC7: 2 | AD7: 2 | AE7: 2 | AF7: 9 | AG7: 4 | AH7: 5 | AI7: 2 | AJ7: 5 | AK7: 3 | AL7: 1 | AM7: 2 | AN7: 1 | AO7: 3 | AP7: 2 | AQ7: 2 | AR7: 3 | AS7: 2 | AT7: 4 | AV7: 3 | AW7: 2 | AX7: 3 | AY7: 5 | AZ7: 1 | BF7: 3 | BG7: 1 | BL7: 1 | BM7: 1 | BN7: 1 | BR7: 3 | BS7: 2 | BT7: 4 | BU7: 2 | BV7: 3 | BW7: 3 | BX7: 3 | BY7: 1 | BZ7: 0 | CE7: 146
A8: FRED | C8: 1 | D8: 1 | E8: 6 | G8: 1 | J8: 5 | K8: 2 | L8: 2 | N8: 3 | O8: 1 | P8: 6 | Q8: 1 | T8: 4 | U8: 4 | V8: 1 | X8: 6 | Y8: 7 | AA8: 2 | AC8: 1 | AD8: 4 | AE8: 7 | AF8: 7 | AG8: 5 | AH8: 3 | AI8: 1 | AJ8: 7 | AK8: 3 | AL8: 3 | AM8: 11 | AN8: 5 | AO8: 3 | AP8: 6 | AQ8: 4 | AR8: 3 | AS8: 4 | AT8: 4 | AU8: 4 | AV8: 8 | AW8: 10 | AX8: 1 | AY8: 4 | AZ8: 1 | BB8: 1 | BC8: 5 | BD8: 4 | BE8: 2 | BF8: 1 | BG8: 1 | BI8: 5 | BJ8: 3 | BK8: 1 | BL8: 1 | BM8: 1 | BN8: 6 | BO8: 7 | BP8: 5 | BQ8: 1 | BR8: 2 | BT8: 3 | BU8: 1 | BV8: 4 | BW8: 1 | BX8: 4 | CE8: 221
A9: JEAN CHARLES | D9: 1 | E9: 2 | F9: 5 | H9: 5 | I9: 1 | J9: 3 | K9: 4 | N9: 8 | O9: 2 | P9: 1 | Q9: 2 | S9: 2 | T9: 1 | U9: 1 | V9: 6 | W9: 4 | X9: 1 | Y9: 2 | AA9: 2 | AB9: 1 | AC9: 7 | AD9: 6 | AE9: 5 | AF9: 2 | AH9: 6 | AI9: 9 | AJ9: 5 | AK9: 2 | AL9: 1 | AM9: 8 | AN9: 1 | AO9: 10 | AP9: 7 | AR9: 2 | AS9: 2 | AT9: 4 | AU9: 2 | AV9: 4 | AW9: 2 | AX9: 14 | AY9: 9 | AZ9: 6 | BB9: 8 | BC9: 1 | BD9: 9 | BE9: 8 | BG9: 6 | BI9: 9 | BJ9: 2 | BL9: 4 | BM9: 3 | BN9: 3 | BO9: 6 | BR9: 1 | BS9: 7 | BT9: 9 | BV9: 1 | BW9: 4 | BX9: 4 | BY9: 0 | CA9: 0 | CC9: 0 | CE9: 253
A10: JOHANN | B10: 2 | D10: 2 | J10: 3 | N10: 1 | O10: 1 | P10: 3 | R10: 1 | S10: 5 | U10: 3 | V10: 3 | W10: 1 | X10: 4 | AA10: 4 | AB10: 5 | AC10: 3 | AD10: 1 | AE10: 3 | AF10: 8 | AH10: 6 | AI10: 3 | AJ10: 13 | AM10: 14 | AN10: 2 | AO10: 13 | AP10: 11 | AR10: 4 | AS10: 1 | AT10: 6 | AU10: 1 | AW10: 2 | AX10: 10 | AY10: 6 | AZ10: 7 | BB10: 4 | BC10: 1 | BD10: 3 | BE10: 3 | BF10: 1 | BH10: 4 | BI10: 12 | BJ10: 2 | BL10: 23 | BN10: 4 | BR10: 3 | BS10: 2 | BT10: 10 | BV10: 6 | BX10: 1 | CA10: 0 | CB10: 0 | CE10: 231
A11: LOIC | U11: 2 | AM11: 5 | AP11: 1 | AQ11: 1 | AR11: 2 | AS11: 2 | AU11: 3 | AV11: 3 | AW11: 6 | AX11: 2 | AY11: 7 | AZ11: 6 | BA11: 1 | BB11: 1 | BC11: 7 | BD11: 1 | BE11: 4 | BF11: 2 | BG11: 2 | BH11: 1 | BI11: 3 | BJ11: 3 | BL11: 2 | BM11: 6 | BN11: 8 | BO11: 2 | BP11: 2 | BU11: 3 | BV11: 4 | BW11: 2 | BY11: 2 | BZ11: 0 | CE11: 96
A12: MOUS | B12: 4 | C12: 3 | D12: 3 | E12: 2 | I12: 6 | K12: 2 | L12: 10 | N12: 9 | O12: 2 | P12: 4 | Q12: 3 | S12: 6 | T12: 7 | U12: 6 | V12: 4 | X12: 6 | Y12: 6 | Z12: 3 | AA12: 1 | AC12: 6 | AD12: 6 | AE12: 5 | AF12: 6 | AG12: 1 | AH12: 8 | AI12: 2 | AJ12: 5 | AK12: 6 | AL12: 5 | AM12: 6 | AN12: 4 | AO12: 7 | AP12: 4 | AQ12: 11 | AR12: 4 | AS12: 2 | AT12: 2 | AU12: 1 | AV12: 1 | BB12: 4 | BC12: 4 | BD12: 5 | BE12: 4 | BF12: 4 | BR12: 5 | BS12: 4 | BT12: 6 | BU12: 5 | BV12: 4 | BW12: 2 | BX12: 1 | BY12: 0 | BZ12: 0 | CA12: 0 | CD12: 0 | CE12: 227
A13: VIVIEN | D13: 3 | E13: 1 | F13: 9 | K13: 1 | AC13: 1 | AD13: 6 | AE13: 1 | AW13: 1 | AX13: 3 | AY13: 2 | AZ13: 2 | BA13: 2 | BB13: 3 | BF13: 1 | BG13: 3 | BH13: 2 | BI13: 4 | BL13: 4 | BO13: 2 | BR13: 6 | BS13: 1 | BT13: 4 | BU13: 6 | BV13: 2 | BW13: 2 | BX13: 6 | BY13: 0 | CB13: 0 | CD13: 0 | CE13: 78
A14: Total général | B14: 10 | C14: 6 | D14: 20 | E14: 23 | F14: 17 | G14: 1 | H14: 5 | I14: 17 | J14: 14 | K14: 21 | L14: 20 | M14: 3 | N14: 34 | O14: 16 | P14: 25 | Q14: 13 | R14: 6 | S14: 19 | T14: 25 | U14: 22 | V14: 19 | W14: 5 | X14: 25 | Y14: 23 | Z14: 20 | AA14: 16 | AB14: 7 | AC14: 27 | AD14: 36 | AE14: 31 | AF14: 48 | AG14: 13 | AH14: 37 | AI14: 25 | AJ14: 51 | AK14: 21 | AL14: 14 | AM14: 57 | AN14: 24 | AO14: 39 | AP14: 38 | AQ14: 21 | AR14: 24 | AS14: 20 | AT14: 26 | AU14: 19 | AV14: 21 | AW14: 30 | AX14: 39 | AY14: 40 | AZ14: 23 | BA14: 5 | BB14: 25 | BC14: 24 | BD14: 29 | BE14: 24 | BF14: 15 | BG14: 16 | BH14: 11 | BI14: 37 | BJ14: 17 | BK14: 2 | BL14: 42 | BM14: 18 | BN14: 33 | BO14: 27 | BP14: 13 | BQ14: 1 | BR14: 32 | BS14: 24 | BT14: 39 | BU14: 22 | BV14: 35 | BW14: 20 | BX14: 26 | BY14: 11 | BZ14: 0 | CA14: 0 | CB14: 0 | CC14: 0 | CD14: 0 | CE14: 1704
A29: Somme de QTE SORTIE
B30: 2012-10-24 | C30: 2012-10-25 | D30: 2012-10-26 | E30: 2012-10-29 | F30: 2012-10-31 | G30: 2012-11-06 | H30: 2012-11-08 | I30: 2012-11-15 | J30: 2012-11-20 | K30: 2012-11-21 | L30: 2012-11-27 | M30: 2012-11-29 | N30: 2012-12-04 | O30: 2012-12-05 | P30: 2012-12-14 | Q30: 2012-12-18 | R30: 2012-12-19 | S30: 2012-12-20 | T30: 2012-12-21 | U30: 2013-01-02 | V30: 2013-01-03 | W30: 2013-01-04 | X30: 2013-01-05 | Y30: 2013-01-06 | Z30: 2013-01-07 | AA30: 2013-01-08 | AB30: 2013-01-09 | AC30: 2013-01-10 | AD30: 2013-01-11 | AE30: 2013-01-14 | AF30: 2013-01-15 | AG30: 2013-01-16 | AH30: 2013-01-17 | AI30: 2013-01-18 | AJ30: 2013-01-21 | AK30: 2013-01-22 | AL30: 2013-01-23 | AM30: 2013-01-24 | AN30: 2013-01-25 | AO30: 2013-01-28 | AP30: 2013-01-29 | AQ30: 2013-01-30 | AR30: 2013-01-31 | AS30: 2013-02-01 | AT30: 2013-02-04 | AU30: 2013-02-05 | AV30: 2013-02-06 | AW30: 2013-02-07 | AX30: 2013-02-08 | AY30: 2013-02-09 | AZ30: 2013-02-11 | BA30: 2013-02-12 | BB30: 2013-02-13 | BC30: 2013-02-14 | BD30: 2013-02-15 | BE30: 2013-02-18 | BF30: 2013-02-19 | BG30: 2013-02-20 | BH30: 2013-02-21 | BI30: 2013-02-22 | BJ30: 2013-02-25 | BK30: 2013-02-26 | BL30: 2013-02-27 | BM30: 2013-02-28 | BN30: 2013-03-01 | BO30: 2013-03-04 | BP30: 2013-03-05 | BQ30: 2013-03-06 | BR30: 2013-03-07 | BS30: 2013-03-08 | BT30: 2013-03-11 | BU30: 2013-03-12 | BV30: 2013-03-13 | BW30: 2013-03-14 | BX30: 2013-03-15 | BY30: 2013-03-18 | BZ30: 2013-03-19 | CA30: 2013-03-20 | CB30: 2013-03-21 | CC30: 2013-03-22 | CD30: 2013-03-25 | CE30: 2013-03-26 | CF30: 2013-03-27 | CG30: 2013-03-28 | CH30: 2013-03-29 | CI30: 2013-04-01 | CJ30: 2013-04-02 | CK30: 2013-04-03 | CL30: 2013-04-04 | CM30: 2013-04-05 | CN30: 2013-04-08 | CO30: 2013-04-09 | CP30: 2013-04-10 | CQ30: 2013-04-11 | CR30: 2013-04-12 | CS30: 15/04/2013 | CT30: 2013-10-04 | CU30: 2013-11-04 | CV30: 28/03/2013 | CW30: 2013-12-04 | CX30: Total général
A31: AJ | AQ31: 4 | BB31: 20 | BC31: 4 | BE31: 16 | BG31: 12 | BH31: 8 | BI31: 1 | BP31: 8 | CA31: 12 | CD31: 26 | CJ31: 16 | CL31: 12 | CX31: 139
A32: EBAVURAGE | BI32: 1 | BP32: 2 | BT32: 1 | BX32: 1 | BY32: 1 | CC32: 2 | CX32: 8
A33: MAINTENANCE | AV33: 1 | CX33: 1
A34: MARQUAGE | AL34: 1 | AU34: 3 | BU34: 1 | CX34: 5
A35: PETIT OUTILLAGE
A36: PRESSE | AR36: 1 | AW36: 1 | BX36: 1 | CX36: 3
A37: REPRISE | AL37: 1 | AQ37: 3 | AS37: 8 | AT37: 4 | BD37: 2 | CA37: 1 | CG37: 2 | CX37: 21
A38: SCIAGE | BU38: 1 | BW38: 1 | CX38: 2
A39: TARAUDAGE | CM39: 1 | CX39: 1
A40: TARAUDEUSE | U40: 2 | V40: 2 | Z40: 1 | AB40: 1 | AC40: 1 | AD40: 1 | AF40: 2 | AG40: 1 | AK40: 1 | AP40: 3 | AQ40: 1 | AS40: 1 | AT40: 2 | AV40: 2 | AW40: 3 | AX40: 2 | AZ40: 4 | BA40: 1 | BB40: 1 | BE40: 2 | BF40: 1 | BG40: 1 | BH40: 1 | BJ40: 1 | BK40: 1 | BN40: 1 | BO40: 1 | BP40: 3 | BR40: 1 | BS40: 2 | BT40: 5 | BU40: 1 | BW40: 3 | BX40: 1 | BY40: 1 | CB40: 1 | CE40: 5 | CL40: 1 | CX40: 65
A41: TOUR AUTO | AL41: 3 | AO41: 1 | AP41: 3 | AR41: 2 | AY41: 1 | BC41: 2 | BH41: 2 | BO41: 1 | BQ41: 3 | BW41: 1 | BZ41: 3 | CA41: 3 | CC41: 1 | CD41: 2 | CG41: 2 | CH41: 1 | CL41: 2 | CX41: 33
A42: TOUR CN | B42: 1 | C42: 1 | D42: 2 | E42: 2 | F42: 2 | G42: 2 | H42: 1 | I42: 1 | J42: 2 | K42: 2 | L42: 1 | M42: 1 | N42: 1 | O42: 1 | P42: 1 | Q42: 1 | R42: 6 | S42: 1 | T42: 1 | U42: 7 | V42: 3 | W42: 3 | Z42: 8 | AA42: 11 | AB42: 5 | AC42: 8 | AD42: 3 | AE42: 3 | AF42: 1 | AG42: 3 | AH42: 2 | AI42: 1 | AK42: 2 | AL42: 8 | AM42: 1 | AN42: 4 | AO42: 5 | AP42: 5 | AQ42: 3 | AR42: 4 | AS42: 6 | AT42: 7 | AU42: 4 | AV42: 6 | AW42: 4 | AX42: 4 | AZ42: 6 | BA42: 12 | BB42: 13 | BC42: 6 | BD42: 5 | BE42: 6 | BF42: 4 | BG42: 10 | BH42: 5 | BI42: 1 | BJ42: 1 | BK42: 8 | BL42: 2 | BM42: 5 | BN42: 6 | BO42: 5 | BP42: 15 | BQ42: 11 | BR42: 10 | BS42: 11 | BT42: 11 | BU42: 4 | BV42: 2 | BW42: 8 | BX42: 6 | BY42: 6 | BZ42: 7 | CA42: 5 | CB42: 4 | CC42: 5 | CD42: 12 | CE42: 3 | CF42: 7 | CG42: 2 | CH42: 5 | CJ42: 9 | CK42: 9 | CL42: 3 | CM42: 4 | CN42: 4 | CO42: 6 | CP42: 6 | CQ42: 0 | CS42: 0 | CT42: 0 | CU42: 0 | CW42: 0 | CX42: 421
A43: TOUR CN ATELIER | BZ43: 1 | CA43: 1 | CX43: 2
A44: WG | R44: 6 | S44: 6 | U44: 20 | V44: 23 | W44: 17 | X44: 1 | Y44: 5 | Z44: 17 | AA44: 14 | AB44: 21 | AC44: 20 | AD44: 3 | AE44: 34 | AF44: 16 | AG44: 25 | AH44: 13 | AI44: 6 | AJ44: 20 | AK44: 25 | AL44: 25 | AM44: 19 | AN44: 5 | AO44: 25 | AP44: 28 | AQ44: 16 | AR44: 16 | AS44: 7 | AT44: 29 | AU44: 36 | AV44: 32 | AW44: 50 | AX44: 13 | AZ44: 37 | BA44: 26 | BB44: 29 | BC44: 16 | BD44: 14 | BE44: 41 | BF44: 24 | BG44: 27 | BH44: 30 | BI44: 20 | BJ44: 24 | BK44: 20 | BL44: 26 | BM44: 19 | BN44: 21 | BO44: 31 | BP44: 31 | BQ44: 40 | BR44: 24 | BS44: 5 | BT44: 26 | BU44: 24 | BV44: 29 | BW44: 24 | BX44: 15 | BY44: 16 | BZ44: 11 | CA44: 25 | CB44: 18 | CC44: 2 | CD44: 17 | CE44: 18 | CF44: 33 | CG44: 27 | CH44: 13 | CI44: 1 | CJ44: 16 | CK44: 24 | CL44: 25 | CM44: 22 | CN44: 35 | CO44: 21 | CP44: 26 | CQ44: 11 | CR44: 0 | CS44: 0 | CU44: 0 | CV44: 0 | CW44: 0 | CX44: 1577
A45: (vide) | CL45: 2 | CX45: 2
A46: Total général | B46: 1 | C46: 1 | D46: 2 | E46: 2 | F46: 2 | G46: 2 | H46: 1 | I46: 1 | J46: 2 | K46: 2 | L46: 1 | M46: 1 | N46: 1 | O46: 1 | P46: 1 | Q46: 1 | R46: 12 | S46: 7 | T46: 1 | U46: 29 | V46: 28 | W46: 20 | X46: 1 | Y46: 5 | Z46: 26 | AA46: 25 | AB46: 27 | AC46: 29 | AD46: 7 | AE46: 37 | AF46: 19 | AG46: 29 | AH46: 15 | AI46: 7 | AJ46: 20 | AK46: 28 | AL46: 38 | AM46: 20 | AN46: 9 | AO46: 31 | AP46: 39 | AQ46: 27 | AR46: 23 | AS46: 22 | AT46: 42 | AU46: 43 | AV46: 41 | AW46: 58 | AX46: 19 | AY46: 1 | AZ46: 47 | BA46: 39 | BB46: 63 | BC46: 28 | BD46: 21 | BE46: 65 | BF46: 29 | BG46: 50 | BH46: 46 | BI46: 23 | BJ46: 26 | BK46: 29 | BL46: 28 | BM46: 24 | BN46: 28 | BO46: 38 | BP46: 59 | BQ46: 54 | BR46: 35 | BS46: 18 | BT46: 43 | BU46: 31 | BV46: 31 | BW46: 37 | BX46: 24 | BY46: 24 | BZ46: 22 | CA46: 47 | CB46: 23 | CC46: 10 | CD46: 57 | CE46: 26 | CF46: 40 | CG46: 33 | CH46: 19 | CI46: 1 | CJ46: 41 | CK46: 33 | CL46: 45 | CM46: 27 | CN46: 39 | CO46: 27 | CP46: 32 | CQ46: 11 | CR46: 0 | CS46: 0 | CT46: 0 | CU46: 0 | CV46: 0 | CW46: 0 | CX46: 2280
A57: Somme de QTE SORTIE
B58: 2012-10-24 | C58: 2012-10-25 | D58: 2012-10-26 | E58: 2012-10-29 | F58: 2012-10-31 | G58: 2012-11-06 | H58: 2012-11-08 | I58: 2012-11-15 | J58: 2012-11-20 | K58: 2012-11-21 | L58: 2012-11-27 | M58: 2012-11-29 | N58: 2012-12-04 | O58: 2012-12-05 | P58: 2012-12-14 | Q58: 2012-12-18 | R58: 2012-12-19 | S58: 2012-12-20 | T58: 2012-12-21 | U58: 2013-01-02 | V58: 2013-01-03 | W58: 2013-01-04 | X58: 2013-01-05 | Y58: 2013-01-06 | Z58: 2013-01-07 | AA58: 2013-01-08 | AB58: 2013-01-09 | AC58: 2013-01-10 | AD58: 2013-01-11 | AE58: 2013-01-14 | AF58: 2013-01-15 | AG58: 2013-01-16 | AH58: 2013-01-17 | AI58: 2013-01-18 | AJ58: 2013-01-21 | AK58: 2013-01-22 | AL58: 2013-01-23 | AM58: 2013-01-24 | AN58: 2013-01-25 | AO58: 2013-01-28 | AP58: 2013-01-29 | AQ58: 2013-01-30 | AR58: 2013-01-31 | AS58: 2013-02-01 | AT58: 2013-02-04 | AU58: 2013-02-05 | AV58: 2013-02-06 | AW58: 2013-02-07 | AX58: 2013-02-08 | AY58: 2013-02-09 | AZ58: 2013-02-11 | BA58: 2013-02-12 | BB58: 2013-02-13 | BC58: 2013-02-14 | BD58: 2013-02-15 | BE58: 2013-02-18 | BF58: 2013-02-19 | BG58: 2013-02-20 | BH58: 2013-02-21 | BI58: 2013-02-22 | BJ58: 2013-02-25 | BK58: 2013-02-26 | BL58: 2013-02-27 | BM58: 2013-02-28 | BN58: 2013-03-01 | BO58: 2013-03-04 | BP58: 2013-03-05 | BQ58: 2013-03-06 | BR58: 2013-03-07 | BS58: 2013-03-08 | BT58: 2013-03-11 | BU58: 2013-03-12 | BV58: 2013-03-13 | BW58: 2013-03-14 | BX58: 2013-03-15 | BY58: 2013-03-18 | BZ58: 2013-03-19 | CA58: 2013-03-20 | CB58: 2013-03-21 | CC58: 2013-03-22 | CD58: 2013-03-25 | CE58: 2013-03-26 | CF58: 2013-03-27 | CG58: 2013-03-28 | CH58: 2013-03-29 | CI58: 2013-04-01 | CJ58: 2013-04-02 | CK58: 2013-04-03 | CL58: 2013-04-04 | CM58: 2013-04-05 | CN58: 2013-04-08 | CO58: 2013-04-09 | CP58: 2013-04-10 | CQ58: 2013-04-11 | CR58: 2013-04-12 | CS58: 15/04/2013 | CT58: 2013-10-04 | CU58: 2013-11-04 | CV58: 28/03/2013 | CW58: 2013-12-04 | CX58: Total général
A59: ACHRAF | U59: 6 | V59: 6 | Z59: 2 | AA59: 1 | AB59: 7 | AC59: 5 | AE59: 6 | AF59: 5 | AG59: 5 | AH59: 2 | AJ59: 1 | AK59: 4 | AL59: 5 | AO59: 3 | AP59: 2 | AQ59: 8 | AR59: 1 | AT59: 6 | AU59: 6 | AV59: 7 | AW59: 8 | AZ59: 2 | BA59: 3 | BB59: 5 | BC59: 1 | BE59: 9 | BF59: 5 | BG59: 3 | BH59: 4 | BJ59: 3 | BK59: 5 | BM59: 5 | BO59: 1 | BP59: 4 | BQ59: 4 | BT59: 2 | BV59: 4 | BW59: 2 | BY59: 1 | BZ59: 4 | CA59: 2 | CB59: 3 | CD59: 1 | CE59: 3 | CF59: 7 | CG59: 1 | CJ59: 1 | CK59: 5 | CL59: 1 | CN59: 8 | CO59: 3 | CP59: 3 | CX59: 201
A60: AURELIEN | AP60: 1 | AT60: 1 | CX60: 2
A61: CEDRIC | R61: 4 | U61: 2 | V61: 4 | Z61: 5 | AA61: 2 | AB61: 5 | AC61: 3 | AE61: 3 | AF61: 3 | AG61: 3 | AH61: 3 | AJ61: 1 | AK61: 5 | AL61: 1 | AM61: 5 | AO61: 3 | AP61: 4 | AQ61: 8 | AR61: 1 | AT61: 1 | AU61: 5 | AV61: 1 | AW61: 8 | AX61: 3 | AZ61: 7 | BA61: 5 | BB61: 11 | BC61: 6 | BD61: 4 | BE61: 2 | BF61: 6 | BH61: 3 | BI61: 3 | BJ61: 3 | BK61: 2 | BL61: 6 | BM61: 3 | BN61: 2 | BO61: 6 | BP61: 2 | BQ61: 3 | BS61: 2 | BT61: 2 | BU61: 6 | BV61: 3 | BW61: 1 | BX61: 3 | BY61: 2 | CA61: 2 | CB61: 4 | CC61: 1 | CD61: 6 | CE61: 4 | CF61: 4 | CG61: 9 | CH61: 6 | CJ61: 11 | CK61: 3 | CL61: 2 | CM61: 5 | CN61: 3 | CO61: 3 | CP61: 4 | CQ61: 8 | CU61: 0 | CW61: 0 | CX61: 251
A62: CHRISTOPHE | AL62: 1 | AO62: 1 | AP62: 3 | AR62: 2 | AY62: 1 | BC62: 2 | BH62: 2 | BO62: 1 | BQ62: 3 | BW62: 1 | BZ62: 3 | CA62: 3 | CC62: 1 | CD62: 2 | CG62: 2 | CH62: 1 | CL62: 2 | CX62: 31
A63: CYRIL | C63: 1 | I63: 1 | M63: 1 | N63: 1 | T63: 1 | U63: 3 | AB63: 1 | AC63: 4 | AD63: 1 | AE63: 1 | AG63: 3 | AI63: 1 | AK63: 1 | AL63: 5 | AM63: 1 | AN63: 3 | AO63: 3 | AP63: 3 | AQ63: 2 | AR63: 2 | AS63: 5 | AT63: 4 | AV63: 3 | AW63: 2 | AX63: 2 | AZ63: 3 | BA63: 5 | BB63: 4 | BC63: 1 | BE63: 3 | BG63: 6 | BH63: 3 | BK63: 6 | BL63: 1 | BM63: 2 | BN63: 2 | BO63: 2 | BP63: 2 | BR63: 1 | BS63: 2 | BT63: 3 | BU63: 2 | BV63: 1 | BW63: 3 | BX63: 2 | BY63: 4 | BZ63: 1 | CA63: 3 | CB63: 3 | CC63: 1 | CD63: 5 | CE63: 2 | CF63: 4 | CH63: 5 | CK63: 4 | CM63: 3 | CO63: 1 | CP63: 2 | CS63: 0 | CU63: 0 | CW63: 0 | CX63: 147
A64: DRIF | S64: 2 | U64: 2 | V64: 2 | W64: 3 | Z64: 3 | AD64: 3 | AE64: 4 | AF64: 2 | AG64: 3 | AH64: 2 | AI64: 5 | AJ64: 4 | AK64: 4 | AO64: 2 | AP64: 2 | AQ64: 1 | AR64: 5 | AS64: 1 | AT64: 2 | AU64: 2 | AV64: 2 | AW64: 9 | AX64: 4 | AZ64: 5 | BA64: 2 | BB64: 5 | BC64: 3 | BD64: 1 | BE64: 2 | BF64: 1 | BG64: 3 | BH64: 2 | BI64: 2 | BJ64: 3 | BK64: 2 | BL64: 4 | BN64: 3 | BO64: 2 | BP64: 3 | BQ64: 5 | BR64: 1 | BX64: 3 | BY64: 1 | CD64: 1 | CE64: 1 | CF64: 1 | CJ64: 3 | CK64: 2 | CL64: 4 | CM64: 2 | CN64: 3 | CO64: 3 | CP64: 3 | CQ64: 1 | CR64: 0 | CX64: 146
A65: FABRICE | B65: 1 | D65: 1 | F65: 2 | G65: 2 | H65: 1 | J65: 2 | O65: 1 | P65: 1 | R65: 1 | U65: 1 | V65: 1 | Z65: 1 | AA65: 8 | AB65: 4 | AC65: 2 | AD65: 1 | AE65: 2 | AH65: 1 | AL65: 4 | AN65: 1 | AO65: 2 | AP65: 2 | AQ65: 1 | AR65: 2 | AS65: 1 | AT65: 5 | AU65: 4 | AV65: 4 | AW65: 3 | AX65: 2 | AZ65: 4 | BA65: 7 | BB65: 6 | BC65: 3 | BD65: 5 | BE65: 3 | BF65: 3 | BG65: 2 | BH65: 1 | BK65: 2 | BL65: 1 | BM65: 2 | BN65: 3 | BO65: 3 | BP65: 10 | BQ65: 9 | BR65: 6 | BS65: 9 | BT65: 8 | BU65: 3 | BV65: 1 | BW65: 5 | BX65: 3 | BY65: 2 | BZ65: 5 | CA65: 3 | CC65: 4 | CD65: 4 | CE65: 1 | CF65: 3 | CG65: 2 | CJ65: 7 | CK65: 3 | CL65: 3 | CN65: 3 | CO65: 4 | CP65: 3 | CQ65: 0 | CT65: 0 | CU65: 0 | CX65: 210
A66: FRED | S66: 1 | U66: 1 | V66: 6 | X66: 1 | AA66: 5 | AB66: 2 | AC66: 2 | AE66: 3 | AF66: 1 | AG66: 6 | AH66: 1 | AK66: 4 | AL66: 4 | AM66: 1 | AO66: 6 | AP66: 7 | AR66: 2 | AT66: 1 | AU66: 4 | AV66: 7 | AW66: 7 | AX66: 5 | AZ66: 3 | BA66: 1 | BB66: 7 | BC66: 3 | BD66: 3 | BE66: 11 | BF66: 5 | BG66: 3 | BH66: 6 | BI66: 4 | BJ66: 3 | BK66: 4 | BL66: 4 | BM66: 4 | BN66: 8 | BO66: 10 | BP66: 1 | BQ66: 4 | BR66: 1 | BT66: 1 | BU66: 5 | BV66: 4 | BW66: 2 | BX66: 1 | BY66: 1 | CA66: 5 | CB66: 3 | CC66: 1 | CD66: 1 | CE66: 1 | CF66: 6 | CG66: 7 | CH66: 5 | CI66: 1 | CJ66: 2 | CL66: 3 | CM66: 1 | CN66: 4 | CO66: 1 | CP66: 4 | CX66: 221
A67: GILLES | BO67: 1 | BQ67: 1 | BX67: 1 | BZ67: 1 | CX67: 4
A68: JEAN CHARLES | U68: 1 | V68: 2 | W68: 5 | Y68: 5 | Z68: 1 | AA68: 3 | AB68: 4 | AE68: 8 | AF68: 2 | AG68: 1 | AH68: 2 | AJ68: 2 | AK68: 1 | AL68: 1 | AM68: 6 | AN68: 4 | AO68: 1 | AP68: 2 | AR68: 2 | AS68: 1 | AT68: 7 | AU68: 6 | AV68: 5 | AW68: 2 | AZ68: 6 | BA68: 9 | BB68: 5 | BC68: 2 | BD68: 1 | BE68: 8 | BF68: 1 | BG68: 10 | BH68: 7 | BJ68: 2 | BK68: 2 | BL68: 4 | BM68: 2 | BN68: 4 | BO68: 2 | BP68: 14 | BQ68: 9 | BR68: 6 | BT68: 8 | BU68: 1 | BV68: 9 | BW68: 8 | BY68: 6 | CA68: 9 | CB68: 2 | CD68: 4 | CE68: 3 | CF68: 3 | CG68: 6 | CJ68: 1 | CK68: 7 | CL68: 9 | CN68: 1 | CO68: 4 | CP68: 4 | CQ68: 0 | CS68: 0 | CV68: 0 | CX68: 253
A69: JFP | K69: 1 | CX69: 1
A70: JOHANN | R70: 2 | U70: 2 | AA70: 3 | AE70: 1 | AF70: 1 | AG70: 3 | AI70: 1 | AJ70: 5 | AL70: 3 | AM70: 3 | AN70: 1 | AO70: 4 | AR70: 4 | AS70: 5 | AT70: 3 | AU70: 1 | AV70: 3 | AW70: 8 | AZ70: 6 | BA70: 3 | BB70: 13 | BE70: 14 | BF70: 2 | BG70: 13 | BH70: 11 | BJ70: 4 | BK70: 1 | BL70: 6 | BM70: 1 | BO70: 2 | BP70: 10 | BQ70: 6 | BR70: 7 | BT70: 4 | BU70: 1 | BV70: 3 | BW70: 3 | BX70: 1 | BZ70: 4 | CA70: 12 | CB70: 2 | CD70: 23 | CF70: 4 | CJ70: 3 | CK70: 2 | CL70: 10 | CN70: 6 | CP70: 1 | CS70: 0 | CU70: 0 | CX70: 231
A71: KARINE | Q71: 1 | V71: 1 | W71: 1 | Z71: 1 | AA71: 1 | AF71: 1 | BC71: 1 | BD71: 1 | BF71: 1 | BG71: 2 | BH71: 1 | BJ71: 1 | BM71: 1 | CX71: 14
A72: LOIC | AL72: 2 | BE72: 5 | BH72: 1 | BI72: 1 | BJ72: 2 | BK72: 2 | BM72: 3 | BN72: 3 | BO72: 6 | BP72: 2 | BQ72: 7 | BR72: 6 | BS72: 1 | BT72: 1 | BU72: 7 | BV72: 1 | BW72: 4 | BX72: 2 | BY72: 2 | BZ72: 1 | CA72: 3 | CB72: 3 | CD72: 2 | CE72: 6 | CF72: 8 | CG72: 2 | CH72: 2 | CM72: 3 | CN72: 4 | CO72: 2 | CQ72: 2 | CR72: 0 | CX72: 96
A73: MANUEL | Z73: 1 | AB73: 1 | AF73: 1 | AG73: 1 | AK73: 1 | AL73: 1 | AS73: 1 | AT73: 1 | AU73: 3 | AV73: 2 | AW73: 3 | AZ73: 1 | BE73: 1 | BH73: 1 | BI73: 1 | BP73: 3 | BR73: 1 | BT73: 1 | BU73: 1 | BW73: 1 | BX73: 1 | BY73: 2 | CC73: 2 | CE73: 2 | CL73: 1 | CM73: 1 | CX73: 36
A74: MOUS | R74: 4 | S74: 3 | U74: 3 | V74: 2 | Z74: 6 | AB74: 2 | AC74: 10 | AE74: 9 | AF74: 2 | AG74: 4 | AH74: 3 | AJ74: 6 | AK74: 7 | AL74: 6 | AM74: 4 | AO74: 6 | AP74: 6 | AQ74: 3 | AR74: 1 | AT74: 6 | AU74: 6 | AV74: 5 | AW74: 6 | AX74: 1 | AZ74: 8 | BA74: 2 | BB74: 5 | BC74: 6 | BD74: 5 | BE74: 6 | BF74: 4 | BG74: 7 | BH74: 4 | BI74: 11 | BJ74: 4 | BK74: 2 | BL74: 2 | BM74: 1 | BN74: 1 | BT74: 4 | BU74: 4 | BV74: 5 | BW74: 4 | BX74: 4 | CJ74: 5 | CK74: 4 | CL74: 6 | CM74: 5 | CN74: 4 | CO74: 2 | CP74: 1 | CQ74: 0 | CR74: 0 | CS74: 0 | CW74: 0 | CX74: 227
A75: NADINE | D75: 1 | E75: 2 | K75: 1 | L75: 1 | R75: 1 | S75: 1 | U75: 3 | V75: 1 | W75: 2 | Z75: 6 | AA75: 2 | AC75: 2 | AD75: 1 | AK75: 1 | BP75: 1 | BQ75: 1 | BR75: 3 | BZ75: 1 | CB75: 1 | CD75: 3 | CJ75: 2 | CK75: 2 | CM75: 1 | CN75: 1 | CO75: 2 | CP75: 1 | CX75: 44
A76: SEB | U76: 2 | V76: 2 | AC76: 1 | AD76: 1 | AF76: 1 | AH76: 1 | AJ76: 1 | AL76: 5 | AP76: 7 | AQ76: 4 | AR76: 1 | AS76: 8 | AT76: 4 | AW76: 2 | AX76: 2 | AZ76: 2 | BA76: 2 | BB76: 2 | BD76: 1 | BE76: 1 | BF76: 1 | BG76: 1 | BI76: 1 | BJ76: 1 | BK76: 1 | BN76: 2 | BO76: 1 | BP76: 4 | BR76: 1 | BS76: 2 | BT76: 6 | BU76: 1 | BW76: 3 | BX76: 2 | CA76: 1 | CB76: 2 | CD76: 1 | CE76: 3 | CG76: 2 | CX76: 86
A77: SEBASTIEN M | AV77: 1 | CX77: 1
A78: VIVIEN | U78: 3 | V78: 1 | W78: 9 | AB78: 1 | AT78: 1 | AU78: 6 | AV78: 1 | BO78: 1 | BP78: 3 | BQ78: 2 | BR78: 2 | BS78: 2 | BT78: 3 | BX78: 1 | BY78: 3 | BZ78: 2 | CA78: 4 | CD78: 4 | CG78: 2 | CJ78: 6 | CK78: 1 | CL78: 4 | CM78: 6 | CN78: 2 | CO78: 2 | CP78: 6 | CQ78: 0 | CU78: 0 | CW78: 0 | CX78: 78
A79: CONTROLE STOCK | CR79: 0 | CU79: 0 | CX79: 0
A80: FRAISE CW Ø63 x 0,6 | CR80: 0 | CX80: 0
A81: TARAUD MACHINE M6x100 TIN HSSE | CU81: 0 | CX81: 0
A82: Total général | B82: 1 | C82: 1 | D82: 2 | E82: 2 | F82: 2 | G82: 2 | H82: 1 | I82: 1 | J82: 2 | K82: 2 | L82: 1 | M82: 1 | N82: 1 | O82: 1 | P82: 1 | Q82: 1 | R82: 12 | S82: 7 | T82: 1 | U82: 29 | V82: 28 | W82: 20 | X82: 1 | Y82: 5 | Z82: 26 | AA82: 25 | AB82: 27 | AC82: 29 | AD82: 7 | AE82: 37 | AF82: 19 | AG82: 29 | AH82: 15 | AI82: 7 | AJ82: 20 | AK82: 28 | AL82: 38 | AM82: 20 | AN82: 9 | AO82: 31 | AP82: 39 | AQ82: 27 | AR82: 23 | AS82: 22 | AT82: 42 | AU82: 43 | AV82: 41 | AW82: 58 | AX82: 19 | AY82: 1 | AZ82: 47 | BA82: 39 | BB82: 63 | BC82: 28 | BD82: 21 | BE82: 65 | BF82: 29 | BG82: 50 | BH82: 46 | BI82: 23 | BJ82: 26 | BK82: 29 | BL82: 28 | BM82: 24 | BN82: 28 | BO82: 38 | BP82: 59 | BQ82: 54 | BR82: 35 | BS82: 18 | BT82: 43 | BU82: 31 | BV82: 31 | BW82: 37 | BX82: 24 | BY82: 24 | BZ82: 22 | CA82: 47 | CB82: 23 | CC82: 10 | CD82: 57 | CE82: 26 | CF82: 40 | CG82: 33 | CH82: 19 | CI82: 1 | CJ82: 41 | CK82: 33 | CL82: 45 | CM82: 27 | CN82: 39 | CO82: 27 | CP82: 32 | CQ82: 11 | CR82: 0 | CS82: 0 | CT82: 0 | CU82: 0 | CV82: 0 | CW82: 0 | CX82: 2280

Sheet INVENTAIRE
A1: ="VALORISATION DU STOCK AU "& TEXT(Z1,"jj MMMM aaaa") -> VALORISATION DU STOCK AU 22 avril 2013 | Z1: =TODAY() -> 2013-04-22
D2: =SUBTOTAL(9,Tableau1[TOTAL]) -> 242003.74
A4: SECTEUR | B4: SOUS FAMILLE | C4: GENRE | D4: REFERENCE | E4: MARQUE | F4: FOURNISSEUR | G4: LOCALISATION ACTUELLE | H4: ARMOIRE AUTOMATIQUE | I4: NOMBRE DE COUPE | J4: PRIX | K4: SYOCK MINI | L4: DUREE DE VIE MOYENNE PAR ARRETE | M4: COUT PAR PIECE | N4: CONSO 2012 | O4: CONSO 2011 | P4: DIMENSIONS | Q4: COMMENTAIRES | R4: STOCK RESTANT | S4: TOTAL | T4: INITIAL
A5: TOUR CN | B5: COPIAGE EXTER | C5: ASSISE | D5: 7853520 | E5: TIZIT | F5: MECACOUPE | G5: ARMOIRE TARAUD | H5: SUPP ? | I5: 3 | J5: 8 | K5: 0 | M5: =IF(ISERROR(J5/(L5*I5)),"",(J5/(L5*I5))) ->  | P5: 15 X 15 X 10 | R5: =T5+SUMPRODUCT((Tableau2[DESIGNATION / REFERENCE]=D5)*Tableau2[QTE ENTREE])-SUMPRODUCT((Tableau2[DESIGNATION / REFERENCE]=D5)*Tableau2[QTE SORTIE]) -> 7 | S5: =Tableau1[[#This Row],[PRIX]]*Tableau1[[#This Row],[STOCK RESTANT]] -> 56 | T5: 7
A6: TOUR CN | B6: FILETAGE | C6: PLAQUETTE | D6: 16ER 1,5 ISO | E6: TUNGALOY | F6: DRANER | G6: ARMOIRE TARAUD | I6: 3 | J6: 15 | K6: 5 | P6: 15 X15 X1 5 | R6: =T6+SUMPRODUCT((Tableau2[DESIGNATION / REFERENCE]=D6)*Tableau2[QTE ENTREE])-SUMPRODUCT((Tableau2[DESIGNATION / REFERENCE]=D6)*Tableau2[QTE SORTIE]) -> 8 | S6: =Tableau1[[#This Row],[PRIX]]*Tableau1[[#This Row],[STOCK RESTANT]] -> 120 | T6: 8
A7: TOUR CN | B7: FILETAGE | C7: PLAQUETTE | D7: 16ER V BSW14 GM214 | E7: TIZIT | F7: MECACOUPE | G7: ARMOIRE CN | I7: 3 | J7: 15 | K7: 0 | P7: 15 X15 X1 5 | R7: =T7+SUMPRODUCT((Tableau2[DESIGNATION / REFERENCE]=D7)*Tableau2[QTE ENTREE])-SUMPRODUCT((Tableau2[DESIGNATION / REFERENCE]=D7)*Tableau2[QTE SORTIE]) -> 4 | S7: =Tableau1[[#This Row],[PRIX]]*Tableau1[[#This Row],[STOCK RESTANT]] -> 60 | T7: 4
A8: TOUR CN | B8: FILETAGE | C8: PLAQUETTE | D8: 16IR 2,00 ISO IC908 | E8: ISCAR | F8: TOP FI | G8: ARMOIRE CN | H8: X | I8: 3 | J8: 14.44 | K8: 5 | P8: 15 X15 X1 5 | R8: =T8+SUMPRODUCT((Tableau2[DESIGNATION / REFERENCE]=D8)*Tableau2[QTE ENTREE])-SUMPRODUCT((Tableau2[DESIGNATION / REFERENCE]=D8)*Tableau2[QTE SORTIE]) -> 4 | S8: =Tableau1[[#This Row],[PRIX]]*Tableau1[[#This Row],[STOCK RESTANT]] -> 57.76 | T8: 5
A9: TOUR CN | B9: FILETAGE | C9: PLAQUETTE | D9: 16IR -V - BSW GM214 | E9: TIZIT | F9: MECACOUPE | G9: ARMOIRE CN | I9: 3 | J9: 14.44 | K9: 5 | P9: 15 X15 X1 5 | R9: =T9+SUMPRODUCT((Tableau2[DESIGNATION / REFERENCE]=D9)*Tableau2[QTE ENTREE])-SUMPRODUCT((Tableau2[DESIGNATION / REFERENCE]=D9)*Tableau2[QTE SORTIE]) -> 12 | S9: =Tableau1[[#This Row],[PRIX]]*Tableau1[[#This Row],[STOCK RESTANT]] -> 173.28 | T9: 12
A10: TOUR CN | B10: FORME | C10: PLAQUETTE | D10: 229 0500 20 K10 (JL96201105) | E10: HORN | F10: DRANER | G10: ARMOIRE CN | H10: X | I10: 2 | J10: 35.25 | K10: 10 | P10: 32 X 5 X 10 | R10: =T10+SUMPRODUCT((Tableau2[DESIGNATION / REFERENCE]=D10)*Tableau2[QTE ENTREE])-SUMPRODUCT((Tableau2[DESIGNATION / REFERENCE]=D10)*Tableau2[QTE SORTIE]) -> 11 | S10: =Tableau1[[#This Row],[PRIX]]*Tableau1[[#This Row],[STOCK RESTANT]] -> 387.75 | T10: 4
A11: TOUR CN | B11: FORME | C11: PLAQUETTE | D11: 229 0500 20 KM10 M12 JL97 201 181 | E11: HORN | F11: DRANER | G11: ARMOIRE CN | H11: X | I11: 2 | J11: 28.9 | K11: 10 | P11: 32 X 10 X 10 | R11: =T11+SUMPRODUCT((Tableau2[DESIGNATION / REFERENCE]=D11)*Tableau2[QTE ENTREE])-SUMPRODUCT((Tableau2[DESIGNATION / REFERENCE]=D11)*Tableau2[QTE SORTIE]) -> 10 | S11: =Tableau1[[#This Row],[PRIX]]*Tableau1[[#This Row],[STOCK RESTANT]] -> 289 | T11: 17
A12: TOUR CN | B12: FORME | C12: PLAQUETTE | D12: 229 0800 20 K10 ERM JL98 201 235 M14 | E12: HORN | F12: DRANER | G12: ARMOIRE CN | H12: X | I12: 2 | J12: 77.8 | K12: 10 | P12: 32 X 10 X 10 | R12: =T12+SUMPRODUCT((Tableau2[DESIGNATION / REFERENCE]=D12)*Tableau2[QTE ENTREE])-SUMPRODUCT((Tableau2[DESIGNATION / REFERENCE]=D12)*Tableau2[QTE SORTIE]) -> 22 | S12: =Tableau1[[#This Row],[PRIX]]*Tableau1[[#This Row],[STOCK RESTANT]] -> 1711.6 | T12: 22
A13: TOUR CN | B13: COPIAGE EXTER | C13: PLAQUETTE | D13: 229,0015,30 TN32 | E13: HORN | F13: DRANER | G13: ARMOIRE CN | H13: X | I13: 2 | J13: 20.8 | K13: 10 | P13: 32 X 5 X10 | R13: =T13+SUMPRODUCT((Tableau2[DESIGNATION / REFERENCE]=D13)*Tableau2[QTE ENTREE])-SUMPRODUCT((Tableau2[DESIGNATION / REFERENCE]=D13)*Tableau2[QTE SORTIE]) -> 7 | S13: =Tableau1[[#This Row],[PRIX]]*Tableau1[[#This Row],[STOCK RESTANT]] -> 145.6 | T13: 7
A14: TOUR CN | B14: FORME | C14: PLAQUETTE | D14: 229,0500,20,K10 JL95201022 | E14: HORN | F14: DRANER | G14: ARMOIRE CN | H14: X | I14: 2 | J14: 70 | K14: 10 | P14: 32 X 6 X 10 | R14: =T14+SUMPRODUCT((Tableau2[DESIGNATION / REFERENCE]=D14)*Tableau2[QTE ENTREE])-SUMPRODUCT((Tableau2[DESIGNATION / REFERENCE]=D14)*Tableau2[QTE SORTIE]) -> 15 | S14: =Tableau1[[#This Row],[PRIX]]*Tableau1[[#This Row],[STOCK RESTANT]] -> 1050 | T14: 16
A15: TOUR CN | B15: COPIAGE EXTER | C15: PLAQUETTE | D15: 229,0800,20,10 | E15: HORN | F15: DRANER | G15: ARMOIRE CN | H15: X | I15: 2 | J15: 70 | K15: 10 | P15: 32 X 10 X 10 | R15: =T15+SUMPRODUCT((Tableau2[DESIGNATION / REFERENCE]=D15)*Tableau2[QTE ENTREE])-SUMPRODUCT((Tableau2[DESIGNATION / REFERENCE]=D15)*Tableau2[QTE SORTIE]) -> 5 | S15: =Tableau1[[#This Row],[PRIX]]*Tableau1[[#This Row],[STOCK RESTANT]] -> 350 | T15: 18
A16: TOUR CN | B16: FILETAGE | C16: PLAQUETTE | D16: 22IR 7 UN IC908 | E16: ISCAR | F16: TOP FI | G16: ARMOIRE CN | H16: X | I16: 3 | J16: 21 | K16: 5 | P16: 110 X 50 X 15 | R16: =T16+SUMPRODUCT((Tableau2[DESIGNATION / REFERENCE]=D16)*Tableau2[QTE ENTREE])-SUMPRODUCT((Tableau2[DESIGNATION / REFERENCE]=D16)*Tableau2[QTE SORTIE]) -> 10 | S16: =Tableau1[[#This Row],[PRIX]]*Tableau1[[#This Row],[STOCK RESTANT]] -> 210 | T16: 10
A17: TOUR CN | B17: FILETAGE | C17: PLAQUETTE | D17: 22IR-V UN 6 | E17: TIZIT | F17: MECACOUPE | G17: ARMOIRE CN | I17: 3 | J17: 21 | K17: 5 | P17: 20 X 20 X 20 | R17: =T17+SUMPRODUCT((Tableau2[DESIGNATION / REFERENCE]=D17)*Tableau2[QTE ENTREE])-SUMPRODUCT((Tableau2[DESIGNATION / REFERENCE]=D17)*Tableau2[QTE SORTIE]) -> 5 | S17: =Tableau1[[#This Row],[PRIX]]*Tableau1[[#This Row],[STOCK RESTANT]] -> 105 | T17: 5
A18: TOUR CN | B18: FILETAGE | C18: PLAQUETTE | D18: 22IR-V-ISO-3,5 GM214 | E18: TIZIT | F18: MECACOUPE | G18: ARMOIRE CN | I18: 3 | J18: 21.2 | K18: 5 | P18: 20 X 20 X 20 | R18: =T18+SUMPRODUCT((Tableau2[DESIGNATION / REFERENCE]=D18)*Tableau2[QTE ENTREE])-SUMPRODUCT((Tableau2[DESIGNATION / REFERENCE]=D18)*Tableau2[QTE SORTIE]) -> 9 | S18: =Tableau1[[#This Row],[PRIX]]*Tableau1[[#This Row],[STOCK RESTANT]] -> 190.8 | T18: 9
A19: TOUR CN | B19: FILETAGE | C19: PLAQUETTE | D19: 2IL 2,0 ISO VKX | E19: VARDEX | F19: TOP FI | G19: ARMOIRE CN | H19: X | I19: 3 | J19: 14 | K19: 5 | P19: 18 X 18 X 18 | R19: =T19+SUMPRODUCT((Tableau2[DESIGNATION / REFERENCE]=D19)*Tableau2[QTE ENTREE])-SUMPRODUCT((Tableau2[DESIGNATION / REFERENCE]=D19)*Tableau2[QTE SORTIE]) -> 18 | S19: =Tableau1[[#This Row],[PRIX]]*Tableau1[[#This Row],[STOCK RESTANT]] -> 252 | T19: 18
A20: TOUR CN | B20: FILETAGE | C20: PLAQUETTE | D20: 2IL2,5 ISO VKX | E20: VARDEX | F20: TOP FI | G20: ARMOIRE CN | H20: X | I20: 3 | J20: 14 | K20: 5 | P20: 10 X 10 X 10 | R20: =T20+SUMPRODUCT((Tableau2[DESIGNATION / REFERENCE]=D20)*Tableau2[QTE ENTREE])-SUMPRODUCT((Tableau2[DESIGNATION / REFERENCE]=D20)*Tableau2[QTE SORTIE]) -> 7 | S20: =Tableau1[[#This Row],[PRIX]]*Tableau1[[#This Row],[STOCK RESTANT]] -> 98 | T20: 7
A21: TOUR CN | B21: FILETAGE | C21: PLAQUETTE | D21: 2IR 1,5 ISO VKX | E21: VARDEX | F21: TOP FI | G21: ARMOIRE CN | H21: X | I21: 3 | J21: 14 | K21: 5 | P21: 10 X 10 X 10 | R21: =T21+SUMPRODUCT((Tableau2[DESIGNATION / REFERENCE]=D21)*Tableau2[QTE ENTREE])-SUMPRODUCT((Tableau2[DESIGNATION / REFERENCE]=D21)*Tableau2[QTE SORTIE]) -> 7 | S21: =Tableau1[[#This Row],[PRIX]]*Tableau1[[#This Row],[STOCK RESTANT]] -> 98 | T21: 7
A22: TOUR CN | B22: FILETAGE | C22: PLAQUETTE | D22: 2IR 2,0 ISO VKX | E22: VARDEX | F22: TOP FI | G22: ARMOIRE CN | H22: X | I22: 3 | J22: 14 | K22: 5 | P22: 10 X 10 X 10 | R22: =T22+SUMPRODUCT((Tableau2[DESIGNATION / REFERENCE]=D22)*Tableau2[QTE ENTREE])-SUMPRODUCT((Tableau2[DESIGNATION / REFERENCE]=D22)*Tableau2[QTE SORTIE]) -> 8 | S22: =Tableau1[[#This Row],[PRIX]]*Tableau1[[#This Row],[STOCK RESTANT]] -> 112 | T22: 8
A23: TOUR CN | B23: FILETAGE | C23: PLAQUETTE | D23: 2IR 2,5 ISO VKX | E23: VARDEX | F23: TOP FI | G23: ARMOIRE CN | H23: X | I23: 3 | J23: 14 | K23: 5 | P23: 10 X 10 X 10 | R23: =T23+SUMPRODUCT((Tableau2[DESIGNATION / REFERENCE]=D23)*Tableau2[QTE ENTREE])-SUMPRODUCT((Tableau2[DESIGNATION / REFERENCE]=D23)*Tableau2[QTE SORTIE]) -> 8 | S23: =Tableau1[[#This Row],[PRIX]]*Tableau1[[#This Row],[STOCK RESTANT]] -> 112 | T23: 10
A24: TOUR CN | B24: FILETAGE | C24: PLAQUETTE | D24: 312 00 50 00 TN32 | E24: HORN | F24: DRANER | G24: ARMOIRE CN | H24: X | I24: 3 | J24: 13.4 | K24: 10 | P24: 20 X 20 X20 | R24: =T24+SUMPRODUCT((Tableau2[DESIGNATION / REFERENCE]=D24)*Tableau2[QTE ENTREE])-SUMPRODUCT((Tableau2[DESIGNATION / REFERENCE]=D24)*Tableau2[QTE SORTIE]) -> 18 | S24: =Tableau1[[#This Row],[PRIX]]*Tableau1[[#This Row],[STOCK RESTANT]] -> 241.2 | T24: 18
A25: TOUR CN | B25: FILETAGE | C25: PLAQUETTE | D25: 312 01 50 02 TN35 | E25: HORN | F25: DRANER | G25: ARMOIRE CN | H25: X | I25: 3 | J25: 14 | K25: 10 | P25: 20 X 20 X20 | R25: =T25+SUMPRODUCT((Tableau2[DESIGNATION / REFERENCE]=D25)*Tableau2[QTE ENTREE])-SUMPRODUCT((Tableau2[DESIGNATION / REFERENCE]=D25)*Tableau2[QTE SORTIE]) -> 13 | S25: =Tableau1[[#This Row],[PRIX]]*Tableau1[[#This Row],[STOCK RESTANT]] -> 182 | T25: 14
A26: TOUR CN | B26: FILETAGE | C26: PLAQUETTE | D26: 3ER 1,0 ISO VKX | E26: VARDEX | F26: TOP FI | G26: ARMOIRE CN | H26: X | I26: 3 | J26: 14 | K26: 5 | P26: 18 X 18 X 18 | R26: =T26+SUMPRODUCT((Tableau2[DESIGNATION / REFERENCE]=D26)*Tableau2[QTE ENTREE])-SUMPRODUCT((Tableau2[DESIGNATION / REFERENCE]=D26)*Tableau2[QTE SORTIE]) -> 9 | S26: =Tableau1[[#This Row],[PRIX]]*Tableau1[[#This Row],[STOCK RESTANT]] -> 126 | T26: 10
A27: TOUR CN | B27: FILETAGE | C27: PLAQUETTE | D27: 3ER 1,25 ISO VKX | E27: VARDEX | F27: TOP FI | G27: ARMOIRE CN | H27: X | I27: 3 | J27: 14 | K27: 5 | P27: 15 X15 X1 5 | R27: =T27+SUMPRODUCT((Tableau2[DESIGNATION / REFERENCE]=D27)*Tableau2[QTE ENTREE])-SUMPRODUCT((Tableau2[DESIGNATION / REFERENCE]=D27)*Tableau2[QTE SORTIE]) -> 11 | S27: =Tableau1[[#This Row],[PRIX]]*Tableau1[[#This Row],[STOCK RESTANT]] -> 154 | T27: 0
A28: TOUR CN | B28: FILETAGE | C28: PLAQUETTE | D28: 3ER 11W VKX | E28: VARDEX | F28: TOP FI | G28: ARMOIRE CN | H28: X | I28: 3 | J28: 14 | K28: 5 | P28: 15 X15 X15 | R28: =T28+SUMPRODUCT((Tableau2[DESIGNATION / REFERENCE]=D28)*Tableau2[QTE ENTREE])-SUMPRODUCT((Tableau2[DESIGNATION / REFERENCE]=D28)*Tableau2[QTE SORTIE]) -> 11 | S28: =Tableau1[[#This Row],[PRIX]]*Tableau1[[#This Row],[STOCK RESTANT]] -> 154 | T28: 11
A29: TOUR CN | B29: FILETAGE | C29: PLAQUETTE | D29: 3ER 2,0 ISO VKX | E29: VARDEX | F29: TOP FI | G29: ARMOIRE CN | H29: X | I29: 3 | J29: 14 | K29: 5 | P29: 15 X15 X15 | R29: =T29+SUMPRODUCT((Tableau2[DESIGNATION / REFERENCE]=D29)*Tableau2[QTE ENTREE])-SUMPRODUCT((Tableau2[DESIGNATION / REFERENCE]=D29)*Tableau2[QTE SORTIE]) -> 5 | S29: =Tableau1[[#This Row],[PRIX]]*Tableau1[[#This Row],[STOCK RESTANT]] -> 70 | T29: 5
A30: TOUR CN | B30: FILETAGE | C30: PLAQUETTE | D30: 3ER 28W | E30: VARDEX | F30: TOP FI | G30: ARMOIRE CN | H30: X | I30: 3 | J30: 14 | K30: 5 | P30: 18 X 18 X 18 | R30: =T30+SUMPRODUCT((Tableau2[DESIGNATION / REFERENCE]=D30)*Tableau2[QTE ENTREE])-SUMPRODUCT((Tableau2[DESIGNATION / REFERENCE]=D30)*Tableau2[QTE SORTIE]) -> 10 | S30: =Tableau1[[#This Row],[PRIX]]*Tableau1[[#This Row],[STOCK RESTANT]] -> 140 | T30: 10
A31: TOUR CN | B31: FILETAGE | C31: PLAQUETTE | D31: 3IL 2,0 ISO VKX | E31: VARDEX | F31: TOP FI | G31: ARMOIRE CN | H31: X | I31: 3 | J31: 14.57 | K31: 5 | P31: 18 X 18 X 18 | R31: =T31+SUMPRODUCT((Tableau2[DESIGNATION / REFERENCE]=D31)*Tableau2[QTE ENTREE])-SUMPRODUCT((Tableau2[DESIGNATION / REFERENCE]=D31)*Tableau2[QTE SORTIE]) -> 5 | S31: =Tableau1[[#This Row],[PRIX]]*Tableau1[[#This Row],[STOCK RESTANT]] -> 72.85 | T31: 6
A32: TOUR CN | B32: FILETAGE | C32: PLAQUETTE | D32: 3IR 1,5 ISO VTX | E32: VARDEX | F32: TOP FI | G32: ARMOIRE CN | H32: X | I32: 3 | J32: 11.15 | K32: 5 | P32: 18 X 18 X 18 | R32: =T32+SUMPRODUCT((Tableau2[DESIGNATION / REFERENCE]=D32)*Tableau2[QTE ENTREE])-SUMPRODUCT((Tableau2[DESIGNATION / REFERENCE]=D32)*Tableau2[QTE SORTIE]) -> 13 | S32: =Tableau1[[#This Row],[PRIX]]*Tableau1[[#This Row],[STOCK RESTANT]] -> 144.95 | T32: 13
A33: TOUR CN | B33: FILETAGE | C33: PLAQUETTE | D33: 3IR 2,0 ISO VKX | E33: VARDEX | F33: TOP FI | G33: ARMOIRE CN | H33: X | I33: 3 | J33: 14 | K33: 5 | P33: 15 X15 X15 | R33: =T33+SUMPRODUCT((Tableau2[DESIGNATION / REFERENCE]=D33)*Tableau2[QTE ENTREE])-SUMPRODUCT((Tableau2[DESIGNATION / REFERENCE]=D33)*Tableau2[QTE SORTIE]) -> 12 | S33: =Tableau1[[#This Row],[PRIX]]*Tableau1[[#This Row],[STOCK RESTANT]] -> 168 | T33: 7
A34: TOUR CN | B34: FILETAGE | C34: PLAQUETTE | D34: 3IR 2,5 ISO VKX | E34: VARDEX | F34: TOP FI | G34: ARMOIRE CN | H34: X | I34: 3 | J34: 14 | K34: 5 | P34: 18 X 18 X 18 | R34: =T34+SUMPRODUCT((Tableau2[DESIGNATION / REFERENCE]=D34)*Tableau2[QTE ENTREE])-SUMPRODUCT((Tableau2[DESIGNATION / REFERENCE]=D34)*Tableau2[QTE SORTIE]) -> 20 | S34: =Tableau1[[#This Row],[PRIX]]*Tableau1[[#This Row],[STOCK RESTANT]] -> 280 | T34: 21
A35: TOUR CN | B35: FILETAGE | C35: PLAQUETTE | D35: 3IR 2,5 ISO VKX | E35: VARDEX | F35: TOP FI | G35: ARMOIRE CN | H35: X | I35: 3 | J35: 16 | K35: 5 | P35: 15 X15 X15 | R35: =T35+SUMPRODUCT((Tableau2[DESIGNATION / REFERENCE]=D35)*Tableau2[QTE ENTREE])-SUMPRODUCT((Tableau2[DESIGNATION / REFERENCE]=D35)*Tableau2[QTE SORTIE]) -> 6 | S35: =Tableau1[[#This Row],[PRIX]]*Tableau1[[#This Row],[STOCK RESTANT]] -> 96 | T35: 7
A36: TOUR CN | B36: FILETAGE | C36: PLAQUETTE | D36: 3IR 3,0 ISO VKX | E36: VARDEX | F36: TOP FI | G36: ARMOIRE CN | H36: X | I36: 3 | J36: 14 | K36: 5 | P36: 15 X15 X15 | R36: =T36+SUMPRODUCT((Tableau2[DESIGNATION / REFERENCE]=D36)*Tableau2[QTE ENTREE])-SUMPRODUCT((Tableau2[DESIGNATION / REFERENCE]=D36)*Tableau2[QTE SORTIE]) -> 14 | S36: =Tableau1[[#This Row],[PRIX]]*Tableau1[[#This Row],[STOCK RESTANT]] -> 196 | T36: 15
A37: TOUR CN | B37: FILETAGE | C37: PLAQUETTE | D37: 3IR 8 UN VMX | E37: VARDEX | F37: TOP FI | G37: ARMOIRE CN | H37: X | I37: 3 | J37: 14 | K37: 5 | P37: 15 X15 X15 | R37: =T37+SUMPRODUCT((Tableau2[DESIGNATION / REFERENCE]=D37)*Tableau2[QTE ENTREE])-SUMPRODUCT((Tableau2[DESIGNATION / REFERENCE]=D37)*Tableau2[QTE SORTIE]) -> 25 | S37: =Tableau1[[#This Row],[PRIX]]*Tableau1[[#This Row],[STOCK RESTANT]] -> 350 | T37: 25
A38: TOUR CN | B38: FILETAGE | C38: PLAQUETTE | D38: 3IR 9 UNJ VKX | E38: VARDEX | F38: TOP FI | G38: ARMOIRE CN | H38: X | I38: 3 | J38: 18.6 | K38: 5 | P38: 15 X15 X15 | R38: =T38+SUMPRODUCT((Tableau2[DESIGNATION / REFERENCE]=D38)*Tableau2[QTE ENTREE])-SUMPRODUCT((Tableau2[DESIGNATION / REFERENCE]=D38)*Tableau2[QTE SORTIE]) -> 9 | S38: =Tableau1[[#This Row],[PRIX]]*Tableau1[[#This Row],[STOCK RESTANT]] -> 167.4 | T38: 9
A39: TOUR CN | B39: FILETAGE | C39: PLAQUETTE | D39: 4IR 3,5 ISO VKX | E39: ISCAR | F39: TOP FI | G39: ARMOIRE CN | H39: X | I39: 3 | J39: 24.7 | K39: 5 | P39: 20 X 20 X 20 | R39: =T39+SUMPRODUCT((Tableau2[DESIGNATION / REFERENCE]=D39)*Tableau2[QTE ENTREE])-SUMPRODUCT((Tableau2[DESIGNATION / REFERENCE]=D39)*Tableau2[QTE SORTIE]) -> 7 | S39: =Tableau1[[#This Row],[PRIX]]*Tableau1[[#This Row],[STOCK RESTANT]] -> 172.9 | T39: 8
A40: TOUR CN | B40: FILETAGE | C40: PLAQUETTE | D40: 4IR 4,5 VKX | E40: ISCAR | F40: TOP FI | G40: ARMOIRE CN | H40: X | I40: 3 | J40: 24 | K40: 5 | P40: 20 X 20 X 20 | R40: =T40+SUMPRODUCT((Tableau2[DESIGNATION / REFERENCE]=D40)*Tableau2[QTE ENTREE])-SUMPRODUCT((Tableau2[DESIGNATION / REFERENCE]=D40)*Tableau2[QTE SORTIE]) -> 2 | S40: =Tableau1[[#This Row],[PRIX]]*Tableau1[[#This Row],[STOCK RESTANT]] -> 48 | T40: 2
A41: TOUR CN | B41: FILETAGE | C41: PLAQUETTE | D41: 4IR 4-QISO VTX | E41: VARDEX | F41: TOP FI | G41: ARMOIRE CN | H41: X | I41: 3 | J41: 24.75 | K41: 5 | P41: 20 X 20 X 20 | R41: =T41+SUMPRODUCT((Tableau2[DESIGNATION / REFERENCE]=D41)*Tableau2[QTE ENTREE])-SUMPRODUCT((Tableau2[DESIGNATION / REFERENCE]=D41)*Tableau2[QTE SORTIE]) -> 22 | S41: =Tableau1[[#This Row],[PRIX]]*Tableau1[[#This Row],[STOCK RESTANT]] -> 544.5 | T41: 22
A42: TOUR CN | B42: FILETAGE | C42: PLAQUETTE | D42: 4IR 7UN VKX | E42: VARDEX | F42: TOP FI | G42: ARMOIRE CN | H42: X | I42: 3 | J42: 23.47 | K42: 5 | P42: 20 X 20 X20 | R42: =T42+SUMPRODUCT((Tableau2[DESIGNATION / REFERENCE]=D42)*Tableau2[QTE ENTREE])-SUMPRODUCT((Tableau2[DESIGNATION / REFERENCE]=D42)*Tableau2[QTE SORTIE]) -> 9 | S42: =Tableau1[[#This Row],[PRIX]]*Tableau1[[#This Row],[STOCK RESTANT]] -> 211.23 | T42: 9
A43: TOUR CN | B43: FILETAGE | C43: PLAQUETTE | D43: 5IR Q60 VSX | E43: VARDEX | F43: TOP FI | G43: ARMOIRE CN | H43: X | I43: 3 | J43: 30 | K43: 5 | P43: 24 X 24 X 24 | R43: =T43+SUMPRODUCT((Tableau2[DESIGNATION / REFERENCE]=D43)*Tableau2[QTE ENTREE])-SUMPRODUCT((Tableau2[DESIGNATION / REFERENCE]=D43)*Tableau2[QTE SORTIE]) -> 2 | S43: =Tableau1[[#This Row],[PRIX]]*Tableau1[[#This Row],[STOCK RESTANT]] -> 60 | T43: 2
A44: TOUR CN | B44: TRONCONNAGE | C44: PLAQUETTE | D44: AM35C | E44: ARNO | G44: ARMOIRE CN | H44: SUPP ? | I44: 2 | J44: 14 | K44: 5 | P44: 20 X 20 X 15 | R44: =T44+SUMPRODUCT((Tableau2[DESIGNATION / REFERENCE]=D44)*Tableau2[QTE ENTREE])-SUMPRODUCT((Tableau2[DESIGNATION / REFERENCE]=D44)*Tableau2[QTE SORTIE]) -> 28 | S44: =Tableau1[[#This Row],[PRIX]]*Tableau1[[#This Row],[STOCK RESTANT]] -> 392 | T44: 28
A45: TOUR AUTO | B45: COPIAGE EXTER | C45: OUTIL | D45: BARREAU HSS 10 X 10 X 200 | E45: TOP FI | F45: TOP FI | G45: BOX | J45: 23.15 | K45: 5 | R45: =T45+SUMPRODUCT((Tableau2[DESIGNATION / REFERENCE]=D45)*Tableau2[QTE ENTREE])-SUMPRODUCT((Tableau2[DESIGNATION / REFERENCE]=D45)*Tableau2[QTE SORTIE]) -> 0 | S45: =Tableau1[[#This Row],[PRIX]]*Tableau1[[#This Row],[STOCK RESTANT]] -> 0 | T45: 0
A46: TOUR AUTO | B46: COPIAGE EXTER | C46: OUTIL | D46: BARREAU HSS 12 X 12 X 200 | E46: TOP FI | F46: TOP FI | G46: BOX | J46: 29.33 | K46: 5 | R46: =T46+SUMPRODUCT((Tableau2[DESIGNATION / REFERENCE]=D46)*Tableau2[QTE ENTREE])-SUMPRODUCT((Tableau2[DESIGNATION / REFERENCE]=D46)*Tableau2[QTE SORTIE]) -> 0 | S46: =Tableau1[[#This Row],[PRIX]]*Tableau1[[#This Row],[STOCK RESTANT]] -> 0 | T46: 0
A47: TOUR AUTO | B47: COPIAGE EXTER | C47: OUTIL | D47: BARREAU HSS 8 X 8 X 200 | E47: TOP FI | F47: TOP FI | G47: BOX | J47: 20.57 | K47: 5 | R47: =T47+SUMPRODUCT((Tableau2[DESIGNATION / REFERENCE]=D47)*Tableau2[QTE ENTREE])-SUMPRODUCT((Tableau2[DESIGNATION / REFERENCE]=D47)*Tableau2[QTE SORTIE]) -> 0 | S47: =Tableau1[[#This Row],[PRIX]]*Tableau1[[#This Row],[STOCK RESTANT]] -> 0 | T47: 0
A48: PRESSE | B48: SERTISSAGE | C48: OUTILLAGE | D48: BOUTEROLLE ERTM TAILLE 10 | E48: MOREAU | F48: MOREAU | G48: BOX | J48: 125 | K48: 3 | M48: =IF(ISERROR(J48/(L48*I48)),"",(J48/(L48*I48))) ->  | R48: =T48+SUMPRODUCT((Tableau2[DESIGNATION / REFERENCE]=D48)*Tableau2[QTE ENTREE])-SUMPRODUCT((Tableau2[DESIGNATION / REFERENCE]=D48)*Tableau2[QTE SORTIE]) -> 1 | S48: =Tableau1[[#This Row],[PRIX]]*Tableau1[[#This Row],[STOCK RESTANT]] -> 125 | T48: 1
A49: PRESSE | B49: SERTISSAGE | C49: OUTILLAGE | D49: BOUTEROLLE MTI74 TAILLE 10 | E49: MTI74 | F49: MTI74 | G49: BOX | J49: 130 | K49: 3 | R49: =T49+SUMPRODUCT((Tableau2[DESIGNATION / REFERENCE]=D49)*Tableau2[QTE ENTREE])-SUMPRODUCT((Tableau2[DESIGNATION / REFERENCE]=D49)*Tableau2[QTE SORTIE]) -> 13 | S49: =Tableau1[[#This Row],[PRIX]]*Tableau1[[#This Row],[STOCK RESTANT]] -> 1690 | T49: 13
A50: PRESSE | B50: SERTISSAGE | C50: OUTILLAGE | D50: BOUTEROLLE MTI74 TAILLE 12 | E50: MTI74 | F50: MTI74 | G50: BOX | J50: 130 | K50: 3 | R50: =T50+SUMPRODUCT((Tableau2[DESIGNATION / REFERENCE]=D50)*Tableau2[QTE ENTREE])-SUMPRODUCT((Tableau2[DESIGNATION / REFERENCE]=D50)*Tableau2[QTE SORTIE]) -> 2 | S50: =Tableau1[[#This Row],[PRIX]]*Tableau1[[#This Row],[STOCK RESTANT]] -> 260 | T50: 2
A51: TRANSFERT | B51: EBAVURAGE | C51: OUTIL | D51: BROSSE Ø50 | E51: FORMAT | F51: MECACOUPE | G51: ARMOIRE TARAUD | I51: 1 | J51: 4.1 | K51: 10 | R51: =T51+SUMPRODUCT((Tableau2[DESIGNATION / REFERENCE]=D51)*Tableau2[QTE ENTREE])-SUMPRODUCT((Tableau2[DESIGNATION / REFERENCE]=D51)*Tableau2[QTE SORTIE]) -> 41 | S51: =Tableau1[[#This Row],[PRIX]]*Tableau1[[#This Row],[STOCK RESTANT]] -> 168.1 | T51: 60
A52: TRANSFERT | B52: EBAVURAGE | C52: OUTIL | D52: BROSSE Ø70 | E52: FORMAT | F52: MECACOUPE | G52: ARMOIRE TARAUD | I52: 1 | J52: 4.43 | K52: 10 | R52: =T52+SUMPRODUCT((Tableau2[DESIGNATION / REFERENCE]=D52)*Tableau2[QTE ENTREE])-SUMPRODUCT((Tableau2[DESIGNATION / REFERENCE]=D52)*Tableau2[QTE SORTIE]) -> 22 | S52: =Tableau1[[#This Row],[PRIX]]*Tableau1[[#This Row],[STOCK RESTANT]] -> 97.46 | T52: 45
A53: TRANSFERT | B53: FRAISAGE | C53: OUTILLAGE | D53: BUTEE ERM M12 | E53: MOREAU | F53: MOREAU | G53: MALETTE JF | J53: 95 | K53: 2 | R53: =T53+SUMPRODUCT((Tableau2[DESIGNATION / REFERENCE]=D53)*Tableau2[QTE ENTREE])-SUMPRODUCT((Tableau2[DESIGNATION / REFERENCE]=D53)*Tableau2[QTE SORTIE]) -> 1 | S53: =Tableau1[[#This Row],[PRIX]]*Tableau1[[#This Row],[STOCK RESTANT]] -> 95 | T53: 1
A54: TRANSFERT | B54: FRAISAGE | C54: OUTILLAGE | D54: BUTEE ESL M10 Z055-0025 IND 000 | E54: MOREAU | F54: MOREAU | G54: MALETTE JF | J54: 110 | K54: 2 | R54: =T54+SUMPRODUCT((Tableau2[DESIGNATION / REFERENCE]=D54)*Tableau2[QTE ENTREE])-SUMPRODUCT((Tableau2[DESIGNATION / REFERENCE]=D54)*Tableau2[QTE SORTIE]) -> 1 | S54: =Tableau1[[#This Row],[PRIX]]*Tableau1[[#This Row],[STOCK RESTANT]] -> 110 | T54: 1
A55: TRANSFERT | B55: FRAISAGE | C55: OUTILLAGE | D55: BUTEE ESL M12 Z0055-0026 IND 000 | E55: MOREAU | F55: MOREAU | G55: MALETTE JF | J55: 95 | K55: 2 | R55: =T55+SUMPRODUCT((Tableau2[DESIGNATION / REFERENCE]=D55)*Tableau2[QTE ENTREE])-SUMPRODUCT((Tableau2[DESIGNATION / REFERENCE]=D55)*Tableau2[QTE SORTIE]) -> 2 | S55: =Tableau1[[#This Row],[PRIX]]*Tableau1[[#This Row],[STOCK RESTANT]] -> 190 | T55: 2
A56: TRANSFERT | B56: FRAISAGE | C56: OUTILLAGE | D56: BUTEE ESL M6 PLAN Z0055-0023 IND 000 | E56: MOREAU | F56: MOREAU | G56: MALETTE JF | J56: 165 | K56: 8 | R56: =T56+SUMPRODUCT((Tableau2[DESIGNATION / REFERENCE]=D56)*Tableau2[QTE ENTREE])-SUMPRODUCT((Tableau2[DESIGNATION / REFERENCE]=D56)*Tableau2[QTE SORTIE]) -> 16 | S56: =Tableau1[[#This Row],[PRIX]]*Tableau1[[#This Row],[STOCK RESTANT]] -> 2640 | T56: 16
A57: TRANSFERT | B57: FRAISAGE | C57: OUTILLAGE | D57: BUTEE ESL M8 PLAN Z0055-0024 IND 000 | E57: MOREAU | F57: MOREAU | G57: MALETTE JF | J57: 165 | K57: 2 | R57: =T57+SUMPRODUCT((Tableau2[DESIGNATION / REFERENCE]=D57)*Tableau2[QTE ENTREE])-SUMPRODUCT((Tableau2[DESIGNATION / REFERENCE]=D57)*Tableau2[QTE SORTIE]) -> 3 | S57: =Tableau1[[#This Row],[PRIX]]*Tableau1[[#This Row],[STOCK RESTANT]] -> 495 | T57: 3
A58: TRANSFERT | B58: FRAISAGE | C58: OUTILLAGE | D58: BUTEE HCE 5/16 | E58: MOREAU | F58: MOREAU | G58: MALETTE JF | J58: 85 | K58: 2 | R58: =T58+SUMPRODUCT((Tableau2[DESIGNATION / REFERENCE]=D58)*Tableau2[QTE ENTREE])-SUMPRODUCT((Tableau2[DESIGNATION / REFERENCE]=D58)*Tableau2[QTE SORTIE]) -> 2 | S58: =Tableau1[[#This Row],[PRIX]]*Tableau1[[#This Row],[STOCK RESTANT]] -> 170 | T58: 2
A59: REPRISE | B59: EBAVURAGE | C59: OUTIL | D59: CAILLOUX 04/04 | E59: ROSLER | F59: ROSLER | G59: BOX | J59: 87 | K59: 2 | R59: =T59+SUMPRODUCT((Tableau2[DESIGNATION / REFERENCE]=D59)*Tableau2[QTE ENTREE])-SUMPRODUCT((Tableau2[DESIGNATION / REFERENCE]=D59)*Tableau2[QTE SORTIE]) -> 4 | S59: =Tableau1[[#This Row],[PRIX]]*Tableau1[[#This Row],[STOCK RESTANT]] -> 348 | T59: 4
A60: REPRISE | B60: EBAVURAGE | C60: OUTIL | D60: CAILLOUX 06/06 | E60: ROSLER | F60: ROSLER | G60: BOX | J60: 61.25 | K60: 4 | R60: =T60+SUMPRODUCT((Tableau2[DESIGNATION / REFERENCE]=D60)*Tableau2[QTE ENTREE])-SUMPRODUCT((Tableau2[DESIGNATION / REFERENCE]=D60)*Tableau2[QTE SORTIE]) -> 5 | S60: =Tableau1[[#This Row],[PRIX]]*Tableau1[[#This Row],[STOCK RESTANT]] -> 306.25 | T60: 5
A61: REPRISE | B61: EBAVURAGE | C61: OUTIL | D61: CAILLOUX 10/10 | E61: ROSLER | F61: ROSLER | G61: BOX | J61: 50 | K61: 4 | R61: =T61+SUMPRODUCT((Tableau2[DESIGNATION / REFERENCE]=D61)*Tableau2[QTE ENTREE])-SUMPRODUCT((Tableau2[DESIGNATION / REFERENCE]=D61)*Tableau2[QTE SORTIE]) -> 9 | S61: =Tableau1[[#This Row],[PRIX]]*Tableau1[[#This Row],[STOCK RESTANT]] -> 450 | T61: 9
A62: REPRISE | B62: EBAVURAGE | C62: OUTIL | D62: CAILLOUX 20/20 | E62: ROSLER | F62: ROSLER | G62: BOX | J62: 67 | K62: 2 | R62: =T62+SUMPRODUCT((Tableau2[DESIGNATION / REFERENCE]=D62)*Tableau2[QTE ENTREE])-SUMPRODUCT((Tableau2[DESIGNATION / REFERENCE]=D62)*Tableau2[QTE SORTIE]) -> 5 | S62: =Tableau1[[#This Row],[PRIX]]*Tableau1[[#This Row],[STOCK RESTANT]] -> 335 | T62: 5
A63: REPRISE | B63: EBAVURAGE | C63: OUTIL | D63: CAILLOUX 25/25 | E63: ROSLER | F63: ROSLER | G63: BOX | J63: 58.75 | K63: 4 | R63: =T63+SUMPRODUCT((Tableau2[DESIGNATION / REFERENCE]=D63)*Tableau2[QTE ENTREE])-SUMPRODUCT((Tableau2[DESIGNATION / REFERENCE]=D63)*Tableau2[QTE SORTIE]) -> 3 | S63: =Tableau1[[#This Row],[PRIX]]*Tableau1[[#This Row],[STOCK RESTANT]] -> 176.25 | T63: 3
A64: REPRISE | B64: EBAVURAGE | C64: OUTIL | D64: CAILLOUX R06/14 Z | E64: ROSLER | F64: ROSLER | G64: BOX | J64: 69.5 | K64: 4 | R64: =T64+SUMPRODUCT((Tableau2[DESIGNATION / REFERENCE]=D64)*Tableau2[QTE ENTREE])-SUMPRODUCT((Tableau2[DESIGNATION / REFERENCE]=D64)*Tableau2[QTE SORTIE]) -> 1 | S64: =Tableau1[[#This Row],[PRIX]]*Tableau1[[#This Row],[STOCK RESTANT]] -> 69.5 | T64: 1
A65: TOUR CN | B65: COPIAGE EXTER | C65: PLAQUETTE | D65: CCGT 09T304FN27 H10T | E65: TIZIT | F65: MECACOUPE | G65: ARMOIRE CN | H65: X | I65: 2 | J65: 7.26 | K65: 5 | P65: 12 X 10 X 5 | R65: =T65+SUMPRODUCT((Tableau2[DESIGNATION / REFERENCE]=D65)*Tableau2[QTE ENTREE])-SUMPRODUCT((Tableau2[DESIGNATION / REFERENCE]=D65)*Tableau2[QTE SORTIE]) -> 7 | S65: =Tableau1[[#This Row],[PRIX]]*Tableau1[[#This Row],[STOCK RESTANT]] -> 50.82 | T65: 8
A66: TOUR CN | B66: COPIAGE EXTER | C66: PLAQUETTE | D66: CCGT060201 FL-J10 J740 | E66: TUNGALOY | F66: DRANER | G66: ARMOIRE CN | I66: 2 | J66: 6.16 | K66: 5 | P66: 12 X 10 X 5 | R66: =T66+SUMPRODUCT((Tableau2[DESIGNATION / REFERENCE]=D66)*Tableau2[QTE ENTREE])-SUMPRODUCT((Tableau2[DESIGNATION / REFERENCE]=D66)*Tableau2[QTE SORTIE]) -> 20 | S66: =Tableau1[[#This Row],[PRIX]]*Tableau1[[#This Row],[STOCK RESTANT]] -> 123.2 | T66: 20
A67: TOUR CN | B67: COPIAGE INTER | C67: PLAQUETTE | D67: CCGT060204 IC20 | E67: ISCAR | F67: TOP FI | G67: ARMOIRE CN | H67: X | I67: 2 | J67: 6.16 | K67: 5 | O67: 1198 | P67: 12 X 10 X 5 | R67: =T67+SUMPRODUCT((Tableau2[DESIGNATION / REFERENCE]=D67)*Tableau2[QTE ENTREE])-SUMPRODUCT((Tableau2[DESIGNATION / REFERENCE]=D67)*Tableau2[QTE SORTIE]) -> 18 | S67: =Tableau1[[#This Row],[PRIX]]*Tableau1[[#This Row],[STOCK RESTANT]] -> 110.88 | T67: 18
A68: TOUR CN | B68: COPIAGE INTER | C68: PLAQUETTE | D68: CCMT 08030403 OR2500 | E68: SAFETY | F68: DRANER | G68: ARMOIRE CN | H68: X | I68: 2 | J68: 5 | K68: 5 | P68: 12 X 10 X 5 | R68: =T68+SUMPRODUCT((Tableau2[DESIGNATION / REFERENCE]=D68)*Tableau2[QTE ENTREE])-SUMPRODUCT((Tableau2[DESIGNATION / REFERENCE]=D68)*Tableau2[QTE SORTIE]) -> 18 | S68: =Tableau1[[#This Row],[PRIX]]*Tableau1[[#This Row],[STOCK RESTANT]] -> 90 | T68: 18
A69: TOUR CN | B69: COPIAGE INTER | C69: PLAQUETTE | D69: CCMT 120404EN-SM SR127 | E69: TIZIT | F69: MECACOUPE | G69: ARMOIRE CN | H69: X | I69: 2 | J69: 10 | K69: 5 | P69: 15 X15 X 7 | R69: =T69+SUMPRODUCT((Tableau2[DESIGNATION / REFERENCE]=D69)*Tableau2[QTE ENTREE])-SUMPRODUCT((Tableau2[DESIGNATION / REFERENCE]=D69)*Tableau2[QTE SORTIE]) -> 8 | S69: =Tableau1[[#This Row],[PRIX]]*Tableau1[[#This Row],[STOCK RESTANT]] -> 80 | T69: 8
A70: TOUR CN | B70: COPIAGE INTER | C70: PLAQUETTE | D70: CCMT060202 PM5 | E70: SAFETY | F70: DRANER | G70: ARMOIRE CN | H70: X | I70: 2 | J70: 5 | K70: 5 | P70: 8 X 8 X 4 | R70: =T70+SUMPRODUCT((Tableau2[DESIGNATION / REFERENCE]=D70)*Tableau2[QTE ENTREE])-SUMPRODUCT((Tableau2[DESIGNATION / REFERENCE]=D70)*Tableau2[QTE SORTIE]) -> 7 | S70: =Tableau1[[#This Row],[PRIX]]*Tableau1[[#This Row],[STOCK RESTANT]] -> 35 | T70: 8
A71: TOUR CN | B71: COPIAGE INTER | C71: PLAQUETTE | D71: CCMT060204 IC3028 | E71: ISCAR | F71: TOP FI | G71: ARMOIRE CN | H71: X | I71: 2 | J71: 4.95 | K71: 5 | P71: 8 X 8 X 4 | R71: =T71+SUMPRODUCT((Tableau2[DESIGNATION / REFERENCE]=D71)*Tableau2[QTE ENTREE])-SUMPRODUCT((Tableau2[DESIGNATION / REFERENCE]=D71)*Tableau2[QTE SORTIE]) -> 11 | S71: =Tableau1[[#This Row],[PRIX]]*Tableau1[[#This Row],[STOCK RESTANT]] -> 54.45 | T71: 12
A72: TOUR CN | B72: COPIAGE INTER | C72: PLAQUETTE | D72: CCMT060204-EN-SM CT1135 | E72: TIZIT | F72: MECACOUPE | G72: ARMOIRE CN | H72: X | I72: 2 | J72: 4.95 | K72: 5 | P72: 8 X 8 X 4 | R72: =T72+SUMPRODUCT((Tableau2[DESIGNATION / REFERENCE]=D72)*Tableau2[QTE ENTREE])-SUMPRODUCT((Tableau2[DESIGNATION / REFERENCE]=D72)*Tableau2[QTE SORTIE]) -> 25 | S72: =Tableau1[[#This Row],[PRIX]]*Tableau1[[#This Row],[STOCK RESTANT]] -> 123.75 | T72: 35
A73: TOUR CN | B73: COPIAGE INTER | C73: PLAQUETTE | D73: CCMT09T304 EN-SM CT1135 | E73: TIZIT | F73: MECACOUPE | G73: ARMOIRE CN | H73: X | I73: 2 | J73: 5.6 | K73: 0 | P73: 12 X 12 X 6 | R73: =T73+SUMPRODUCT((Tableau2[DESIGNATION / REFERENCE]=D73)*Tableau2[QTE ENTREE])-SUMPRODUCT((Tableau2[DESIGNATION / REFERENCE]=D73)*Tableau2[QTE SORTIE]) -> 0 | S73: =Tableau1[[#This Row],[PRIX]]*Tableau1[[#This Row],[STOCK RESTANT]] -> 0 | T73: 1
A74: TOUR CN | B74: COPIAGE INTER | C74: PLAQUETTE | D74: CCMT09T304-PF4 1510 | E74: SAFETY | F74: DRANER | G74: ARMOIRE CN | H74: X | I74: 2 | J74: 10 | K74: 0 | P74: 12 X 12 X 6 | R74: =T74+SUMPRODUCT((Tableau2[DESIGNATION / REFERENCE]=D74)*Tableau2[QTE ENTREE])-SUMPRODUCT((Tableau2[DESIGNATION / REFERENCE]=D74)*Tableau2[QTE SORTIE]) -> 0 | S74: =Tableau1[[#This Row],[PRIX]]*Tableau1[[#This Row],[STOCK RESTANT]] -> 0 | T74: 7
A75: TOUR CN | B75: COPIAGE INTER | C75: PLAQUETTE | D75: CCMT09T304-SM IC9250 | E75: ISCAR | F75: TOP FI | G75: ARMOIRE CN | H75: X | I75: 2 | J75: 6.19 | K75: 5 | L75: 12 X 12 X 6 | P75: 12 X 12 X 6 | R75: =T75+SUMPRODUCT((Tableau2[DESIGNATION / REFERENCE]=D75)*Tableau2[QTE ENTREE])-SUMPRODUCT((Tableau2[DESIGNATION / REFERENCE]=D75)*Tableau2[QTE SORTIE]) -> 0 | S75: =Tableau1[[#This Row],[PRIX]]*Tableau1[[#This Row],[STOCK RESTANT]] -> 0 | T75: 10
A76: TOUR CN | B76: COPIAGE INTER | C76: PLAQUETTE | D76: CCMT09T308 EN-SM CTCP 1125 | E76: TIZIT | F76: MECACOUPE | G76: ARMOIRE CN | H76: X | I76: 2 | J76: 5.6 | K76: 0 | P76: 12 X 12 X 6 | R76: =T76+SUMPRODUCT((Tableau2[DESIGNATION / REFERENCE]=D76)*Tableau2[QTE ENTREE])-SUMPRODUCT((Tableau2[DESIGNATION / REFERENCE]=D76)*Tableau2[QTE SORTIE]) -> 0 | S76: =Tableau1[[#This Row],[PRIX]]*Tableau1[[#This Row],[STOCK RESTANT]] -> 0 | T76: 0
A77: TOUR CN | B77: COPIAGE INTER | C77: PLAQUETTE | D77: CCMT09T308 EN-SM IC 8250 | E77: ISCAR | F77: TOP FI | G77: ARMOIRE CN | H77: X | I77: 2 | J77: 6.19 | K77: 5 | L77: 12 X 12 X 6 | P77: 12 X 12 X 6 | R77: =T77+SUMPRODUCT((Tableau2[DESIGNATION / REFERENCE]=D77)*Tableau2[QTE ENTREE])-SUMPRODUCT((Tableau2[DESIGNATION / REFERENCE]=D77)*Tableau2[QTE SORTIE]) -> 27 | S77: =Tableau1[[#This Row],[PRIX]]*Tableau1[[#This Row],[STOCK RESTANT]] -> 167.13 | T77: 39
A78: TOUR CN | B78: COPIAGE EXTER | C78: PLAQUETTE | D78: CNMG 120404EN-TF CT1135 | E78: TIZIT | F78: MECACOUPE | G78: ARMOIRE CN | H78: X | I78: 4 | J78: 10 | K78: 5 | P78: 18 X 15 X 6 | R78: =T78+SUMPRODUCT((Tableau2[DESIGNATION / REFERENCE]=D78)*Tableau2[QTE ENTREE])-SUMPRODUCT((Tableau2[DESIGNATION / REFERENCE]=D78)*Tableau2[QTE SORTIE]) -> 27 | S78: =Tableau1[[#This Row],[PRIX]]*Tableau1[[#This Row],[STOCK RESTANT]] -> 270 | T78: 27
A79: TOUR CN | B79: COPIAGE EXTER | C79: PLAQUETTE | D79: CNMG120408 CT1125 | E79: TIZIT | F79: MECACOUPE | G79: ARMOIRE CN | H79: X | I79: 4 | J79: 10 | K79: 5 | P79: 18 X 15 X 6 | R79: =T79+SUMPRODUCT((Tableau2[DESIGNATION / REFERENCE]=D79)*Tableau2[QTE ENTREE])-SUMPRODUCT((Tableau2[DESIGNATION / REFERENCE]=D79)*Tableau2[QTE SORTIE]) -> 22 | S79: =Tableau1[[#This Row],[PRIX]]*Tableau1[[#This Row],[STOCK RESTANT]] -> 220 | T79: 22
A80: TOUR CN | B80: COPIAGE EXTER | C80: PLAQUETTE | D80: CNMG120412 EN M52 CTP2120 | E80: TIZIT | F80: MECACOUPE | G80: ARMOIRE CN | H80: X | I80: 4 | J80: 8.43 | K80: 5 | P80: 18 X 15 X 6 | R80: =T80+SUMPRODUCT((Tableau2[DESIGNATION / REFERENCE]=D80)*Tableau2[QTE ENTREE])-SUMPRODUCT((Tableau2[DESIGNATION / REFERENCE]=D80)*Tableau2[QTE SORTIE]) -> 22 | S80: =Tableau1[[#This Row],[PRIX]]*Tableau1[[#This Row],[STOCK RESTANT]] -> 185.46 | T80: 25
A81: TARAUDEUSE | B81: TARAUDAGE | C81: OUTILLAGE | D81: COUPLEUR CP10 E | E81: SAKAI | F81: CC2007 | G81: BOX | J81: 1.8 | K81: 10 | R81: =T81+SUMPRODUCT((Tableau2[DESIGNATION / REFERENCE]=D81)*Tableau2[QTE ENTREE])-SUMPRODUCT((Tableau2[DESIGNATION / REFERENCE]=D81)*Tableau2[QTE SORTIE]) -> 3 | S81: =Tableau1[[#This Row],[PRIX]]*Tableau1[[#This Row],[STOCK RESTANT]] -> 5.4 | T81: 4
A82: TARAUDEUSE | B82: TARAUDAGE | C82: OUTILLAGE | D82: COUPLEUR CP10 F | E82: SAKAI | F82: CC2007 | G82: BOX | J82: 1.8 | K82: 10 | R82: =T82+SUMPRODUCT((Tableau2[DESIGNATION / REFERENCE]=D82)*Tableau2[QTE ENTREE])-SUMPRODUCT((Tableau2[DESIGNATION / REFERENCE]=D82)*Tableau2[QTE SORTIE]) -> 6 | S82: =Tableau1[[#This Row],[PRIX]]*Tableau1[[#This Row],[STOCK RESTANT]] -> 10.8 | T82: 6
A83: TARAUDEUSE | B83: TARAUDAGE | C83: OUTILLAGE | D83: COUPLEUR CP10 SUS | E83: SAKAI | F83: CC2007 | G83: BOX | J83: 1.8 | K83: 10 | R83: =T83+SUMPRODUCT((Tableau2[DESIGNATION / REFERENCE]=D83)*Tableau2[QTE ENTREE])-SUMPRODUCT((Tableau2[DESIGNATION / REFERENCE]=D83)*Tableau2[QTE SORTIE]) -> 15 | S83: =Tableau1[[#This Row],[PRIX]]*Tableau1[[#This Row],[STOCK RESTANT]] -> 27 | T83: 15
A84: TARAUDEUSE | B84: TARAUDAGE | C84: OUTILLAGE | D84: COUPLEUR CP12 | E84: SAKAI | F84: CC2007 | G84: BOX | J84: 2.4 | K84: 10 | R84: =T84+SUMPRODUCT((Tableau2[DESIGNATION / REFERENCE]=D84)*Tableau2[QTE ENTREE])-SUMPRODUCT((Tableau2[DESIGNATION / REFERENCE]=D84)*Tableau2[QTE SORTIE]) -> 30 | S84: =Tableau1[[#This Row],[PRIX]]*Tableau1[[#This Row],[STOCK RESTANT]] -> 72 | T84: 31
A85: TARAUDEUSE | B85: TARAUDAGE | C85: OUTILLAGE | D85: COUPLEUR CP14 | E85: SAKAI | F85: CC2007 | G85: BOX | J85: 2.4 | K85: 10 | R85: =T85+SUMPRODUCT((Tableau2[DESIGNATION / REFERENCE]=D85)*Tableau2[QTE ENTREE])-SUMPRODUCT((Tableau2[DESIGNATION / REFERENCE]=D85)*Tableau2[QTE SORTIE]) -> 45 | S85: =Tableau1[[#This Row],[PRIX]]*Tableau1[[#This Row],[STOCK RESTANT]] -> 108 | T85: 45
A86: TARAUDEUSE | B86: TARAUDAGE | C86: OUTILLAGE | D86: COUPLEUR CP14 FS2 | E86: SAKAI | F86: CC2007 | G86: BOX | J86: 2.4 | K86: 10 | R86: =T86+SUMPRODUCT((Tableau2[DESIGNATION / REFERENCE]=D86)*Tableau2[QTE ENTREE])-SUMPRODUCT((Tableau2[DESIGNATION / REFERENCE]=D86)*Tableau2[QTE SORTIE]) -> 14 | S86: =Tableau1[[#This Row],[PRIX]]*Tableau1[[#This Row],[STOCK RESTANT]] -> 33.6 | T86: 14
A87: TARAUDEUSE | B87: TARAUDAGE | C87: OUTILLAGE | D87: COUPLEUR CP16 | E87: SAKAI | F87: CC2007 | G87: BOX | J87: 2.4 | K87: 10 | R87: =T87+SUMPRODUCT((Tableau2[DESIGNATION / REFERENCE]=D87)*Tableau2[QTE ENTREE])-SUMPRODUCT((Tableau2[DESIGNATION / REFERENCE]=D87)*Tableau2[QTE SORTIE]) -> 54 | S87: =Tableau1[[#This Row],[PRIX]]*Tableau1[[#This Row],[STOCK RESTANT]] -> 129.6 | T87: 54
A88: TARAUDEUSE | B88: TARAUDAGE | C88: OUTILLAGE | D88: COUPLEUR CP16F | E88: SAKAI | F88: CC2007 | G88: BOX | J88: 2.4 | K88: 10 | R88: =T88+SUMPRODUCT((Tableau2[DESIGNATION / REFERENCE]=D88)*Tableau2[QTE ENTREE])-SUMPRODUCT((Tableau2[DESIGNATION / REFERENCE]=D88)*Tableau2[QTE SORTIE]) -> 3 | S88: =Tableau1[[#This Row],[PRIX]]*Tableau1[[#This Row],[STOCK RESTANT]] -> 7.2 | T88: 3
A89: TARAUDEUSE | B89: TARAUDAGE | C89: OUTILLAGE | D89: COUPLEUR CP18 | E89: SAKAI | F89: CC2007 | G89: BOX | J89: 3.6 | K89: 10 | R89: =T89+SUMPRODUCT((Tableau2[DESIGNATION / REFERENCE]=D89)*Tableau2[QTE ENTREE])-SUMPRODUCT((Tableau2[DESIGNATION / REFERENCE]=D89)*Tableau2[QTE SORTIE]) -> 12 | S89: =Tableau1[[#This Row],[PRIX]]*Tableau1[[#This Row],[STOCK RESTANT]] -> 43.2 | T89: 12
A90: TARAUDEUSE | B90: TARAUDAGE | C90: OUTILLAGE | D90: COUPLEUR CP19F | E90: SAKAI | F90: CC2007 | G90: BOX | J90: 4.2 | K90: 10 | R90: =T90+SUMPRODUCT((Tableau2[DESIGNATION / REFERENCE]=D90)*Tableau2[QTE ENTREE])-SUMPRODUCT((Tableau2[DESIGNATION / REFERENCE]=D90)*Tableau2[QTE SORTIE]) -> 5 | S90: =Tableau1[[#This Row],[PRIX]]*Tableau1[[#This Row],[STOCK RESTANT]] -> 21 | T90: 5
A91: TARAUDEUSE | B91: TARAUDAGE | C91: OUTILLAGE | D91: COUPLEUR CP20 | E91: SAKAI | F91: CC2007 | G91: BOX | J91: 4.8 | K91: 10 | R91: =T91+SUMPRODUCT((Tableau2[DESIGNATION / REFERENCE]=D91)*Tableau2[QTE ENTREE])-SUMPRODUCT((Tableau2[DESIGNATION / REFERENCE]=D91)*Tableau2[QTE SORTIE]) -> 40 | S91: =Tableau1[[#This Row],[PRIX]]*Tableau1[[#This Row],[STOCK RESTANT]] -> 192 | T91: 40
A92: TARAUDEUSE | B92: TARAUDAGE | C92: OUTILLAGE | D92: COUPLEUR CP22 | E92: SAKAI | F92: CC2007 | G92: BOX | J92: 5.2 | K92: 10 | R92: =T92+SUMPRODUCT((Tableau2[DESIGNATION / REFERENCE]=D92)*Tableau2[QTE ENTREE])-SUMPRODUCT((Tableau2[DESIGNATION / REFERENCE]=D92)*Tableau2[QTE SORTIE]) -> 25 | S92: =Tableau1[[#This Row],[PRIX]]*Tableau1[[#This Row],[STOCK RESTANT]] -> 130 | T92: 25
A93: TARAUDEUSE | B93: TARAUDAGE | C93: OUTILLAGE | D93: COUPLEUR CP24 | E93: SAKAI | F93: CC2007 | G93: BOX | J93: 5.8 | K93: 10 | R93: =T93+SUMPRODUCT((Tableau2[DESIGNATION / REFERENCE]=D93)*Tableau2[QTE ENTREE])-SUMPRODUCT((Tableau2[DESIGNATION / REFERENCE]=D93)*Tableau2[QTE SORTIE]) -> 32 | S93: =Tableau1[[#This Row],[PRIX]]*Tableau1[[#This Row],[STOCK RESTANT]] -> 185.6 | T93: 32
A94: TARAUDEUSE | B94: TARAUDAGE | C94: OUTILLAGE | D94: COUPLEUR CP25 | E94: SAKAI | F94: CC2007 | G94: BOX | J94: 6 | K94: 10 | R94: =T94+SUMPRODUCT((Tableau2[DESIGNATION / REFERENCE]=D94)*Tableau2[QTE ENTREE])-SUMPRODUCT((Tableau2[DESIGNATION / REFERENCE]=D94)*Tableau2[QTE SORTIE]) -> 3 | S94: =Tableau1[[#This Row],[PRIX]]*Tableau1[[#This Row],[STOCK RESTANT]] -> 18 | T94: 3
A95: TARAUDEUSE | B95: TARAUDAGE | C95: OUTILLAGE | D95: COUPLEUR CP27 | E95: SAKAI | F95: CC2007 | G95: BOX | J95: 7.8 | K95: 10 | R95: =T95+SUMPRODUCT((Tableau2[DESIGNATION / REFERENCE]=D95)*Tableau2[QTE ENTREE])-SUMPRODUCT((Tableau2[DESIGNATION / REFERENCE]=D95)*Tableau2[QTE SORTIE]) -> 17 | S95: =Tableau1[[#This Row],[PRIX]]*Tableau1[[#This Row],[STOCK RESTANT]] -> 132.6 | T95: 17
A96: TARAUDEUSE | B96: TARAUDAGE | C96: OUTILLAGE | D96: COUPLEUR CP30 | E96: SAKAI | F96: CC2007 | G96: BOX | J96: 10 | K96: 10 | R96: =T96+SUMPRODUCT((Tableau2[DESIGNATION / REFERENCE]=D96)*Tableau2[QTE ENTREE])-SUMPRODUCT((Tableau2[DESIGNATION / REFERENCE]=D96)*Tableau2[QTE SORTIE]) -> 17 | S96: =Tableau1[[#This Row],[PRIX]]*Tableau1[[#This Row],[STOCK RESTANT]] -> 170 | T96: 17
A97: TARAUDEUSE | B97: TARAUDAGE | C97: OUTILLAGE | D97: COUPLEUR CP32 | E97: SAKAI | F97: CC2007 | G97: BOX | J97: 10 | K97: 10 | R97: =T97+SUMPRODUCT((Tableau2[DESIGNATION / REFERENCE]=D97)*Tableau2[QTE ENTREE])-SUMPRODUCT((Tableau2[DESIGNATION / REFERENCE]=D97)*Tableau2[QTE SORTIE]) -> 20 | S97: =Tableau1[[#This Row],[PRIX]]*Tableau1[[#This Row],[STOCK RESTANT]] -> 200 | T97: 20
A98: TARAUDEUSE | B98: TARAUDAGE | C98: OUTILLAGE | D98: COUPLEUR CP33 | E98: SAKAI | F98: CC2007 | G98: BOX | J98: 13.2 | K98: 10 | R98: =T98+SUMPRODUCT((Tableau2[DESIGNATION / REFERENCE]=D98)*Tableau2[QTE ENTREE])-SUMPRODUCT((Tableau2[DESIGNATION / REFERENCE]=D98)*Tableau2[QTE SORTIE]) -> 9 | S98: =Tableau1[[#This Row],[PRIX]]*Tableau1[[#This Row],[STOCK RESTANT]] -> 118.8 | T98: 9
A99: TOUR CN | B99: COPIAGE EXTER | C99: PLAQUETTE | D99: DCGT 11T304FN27 H10T | E99: TIZIT | F99: MECACOUPE | G99: ARMOIRE CN | H99: X | I99: 2 | J99: 8.5 | K99: 5 | P99: 22 X 12 X 5 | R99: =T99+SUMPRODUCT((Tableau2[DESIGNATION / REFERENCE]=D99)*Tableau2[QTE ENTREE])-SUMPRODUCT((Tableau2[DESIGNATION / REFERENCE]=D99)*Tableau2[QTE SORTIE]) -> 9 | S99: =Tableau1[[#This Row],[PRIX]]*Tableau1[[#This Row],[STOCK RESTANT]] -> 76.5 | T99: 11
A100: TOUR CN | B100: COPIAGE EXTER | C100: PLAQUETTE | D100: DCMT11T304-SM IC807 | E100: ISCAR | F100: TOP FI | G100: ARMOIRE CN | H100: X | I100: 2 | J100: 6.26 | K100: 5 | P100: 20 X 12 X 6 | R100: =T100+SUMPRODUCT((Tableau2[DESIGNATION / REFERENCE]=D100)*Tableau2[QTE ENTREE])-SUMPRODUCT((Tableau2[DESIGNATION / REFERENCE]=D100)*Tableau2[QTE SORTIE]) -> 22 | S100: =Tableau1[[#This Row],[PRIX]]*Tableau1[[#This Row],[STOCK RESTANT]] -> 137.72 | T100: 25
A101: TOUR CN | B101: COPIAGE EXTER | C101: PLAQUETTE | D101: DCMT11T308-2415NQ47 | E101: TUNGALOY | F101: DRANER | G101: ARMOIRE CN | H101: X | I101: 2 | J101: 6 | K101: 5 | P101: 20 X 12 X 6 | R101: =T101+SUMPRODUCT((Tableau2[DESIGNATION / REFERENCE]=D101)*Tableau2[QTE ENTREE])-SUMPRODUCT((Tableau2[DESIGNATION / REFERENCE]=D101)*Tableau2[QTE SORTIE]) -> 20 | S101: =Tableau1[[#This Row],[PRIX]]*Tableau1[[#This Row],[STOCK RESTANT]] -> 120 | T101: 21
A102: TOUR CN | B102: TRONCONNAGE | C102: PORTE PLAQUETTE | D102: DGFH-32-3 | E102: ISCAR | F102: TOP FI | G102: ARMOIRE CN | H102: X | I102: 0 | J102: 79.8 | K102: 1 | R102: =T102+SUMPRODUCT((Tableau2[DESIGNATION / REFERENCE]=D102)*Tableau2[QTE ENTREE])-SUMPRODUCT((Tableau2[DESIGNATION / REFERENCE]=D102)*Tableau2[QTE SORTIE]) -> 1 | S102: =Tableau1[[#This Row],[PRIX]]*Tableau1[[#This Row],[STOCK RESTANT]] -> 79.8 | T102: 1
A103: TOUR CN | B103: TRONCONNAGE | C103: PORTE PLAQUETTE | D103: DGFHR 26B3D50 | E103: ISCAR | F103: TOP FI | G103: ARMOIRE CN | H103: X | I103: 0 | J103: 140 | K103: 1 | R103: =T103+SUMPRODUCT((Tableau2[DESIGNATION / REFERENCE]=D103)*Tableau2[QTE ENTREE])-SUMPRODUCT((Tableau2[DESIGNATION / REFERENCE]=D103)*Tableau2[QTE SORTIE]) -> 2 | S103: =Tableau1[[#This Row],[PRIX]]*Tableau1[[#This Row],[STOCK RESTANT]] -> 280 | T103: 2
A104: TOUR CN | B104: TRONCONNAGE | C104: PLAQUETTE | D104: DGL3102C-150 IC830 | E104: ISCAR | F104: TOP FI | G104: ARMOIRE CN | H104: X | I104: 2 | J104: 17.6 | K104: 5 | P104: 22 X 5 X 8 | R104: =T104+SUMPRODUCT((Tableau2[DESIGNATION / REFERENCE]=D104)*Tableau2[QTE ENTREE])-SUMPRODUCT((Tableau2[DESIGNATION / REFERENCE]=D104)*Tableau2[QTE SORTIE]) -> 37 | S104: =Tableau1[[#This Row],[PRIX]]*Tableau1[[#This Row],[STOCK RESTANT]] -> 651.2 | T104: 19
A105: TOUR CN | B105: TRONCONNAGE | C105: PLAQUETTE | D105: DGN 3102C IC328 | E105: ISCAR | F105: TOP FI | G105: ARMOIRE CN | H105: X | I105: 2 | J105: 16.07 | K105: 5 | L105: 900 | M105: 0.008927777778 | P105: 22 X 5 X 8 | R105: =T105+SUMPRODUCT((Tableau2[DESIGNATION / REFERENCE]=D105)*Tableau2[QTE ENTREE])-SUMPRODUCT((Tableau2[DESIGNATION / REFERENCE]=D105)*Tableau2[QTE SORTIE]) -> 10 | S105: =Tableau1[[#This Row],[PRIX]]*Tableau1[[#This Row],[STOCK RESTANT]] -> 160.7 | T105: 23
A106: TOUR CN | B106: TRONCONNAGE | C106: PLAQUETTE | D106: DGR 3102C-15D IC830 | E106: ISCAR | F106: TOP FI | G106: ARMOIRE CN | H106: X | I106: 2 | J106: 17.6 | K106: 5 | P106: 22 X 5 X 8 | R106: =T106+SUMPRODUCT((Tableau2[DESIGNATION / REFERENCE]=D106)*Tableau2[QTE ENTREE])-SUMPRODUCT((Tableau2[DESIGNATION / REFERENCE]=D106)*Tableau2[QTE SORTIE]) -> 21 | S106: =Tableau1[[#This Row],[PRIX]]*Tableau1[[#This Row],[STOCK RESTANT]] -> 369.6 | T106: 26
A107: TOUR CN | B107: COPIAGE EXTER | C107: PLAQUETTE | D107: DNMG 150604EN-TF SR127 | E107: TIZIT | F107: MECACOUPE | G107: ARMOIRE CN | H107: X | I107: 4 | J107: 10 | K107: 5 | P107: 30 X 15 X 8 | R107: =T107+SUMPRODUCT((Tableau2[DESIGNATION / REFERENCE]=D107)*Tableau2[QTE ENTREE])-SUMPRODUCT((Tableau2[DESIGNATION / REFERENCE]=D107)*Tableau2[QTE SORTIE]) -> 0 | S107: =Tableau1[[#This Row],[PRIX]]*Tableau1[[#This Row],[STOCK RESTANT]] -> 0 | T107: 0
A108: TOUR CN | B108: COPIAGE EXTER | C108: PLAQUETTE | D108: DNMG 150608 EN-TM CTC1135 | E108: TIZIT | F108: MECACOUPE | G108: ARMOIRE CN | H108: X | I108: 4 | J108: 10 | K108: 5 | P108: 30 X 15 X 8 | R108: =T108+SUMPRODUCT((Tableau2[DESIGNATION / REFERENCE]=D108)*Tableau2[QTE ENTREE])-SUMPRODUCT((Tableau2[DESIGNATION / REFERENCE]=D108)*Tableau2[QTE SORTIE]) -> 20 | S108: =Tableau1[[#This Row],[PRIX]]*Tableau1[[#This Row],[STOCK RESTANT]] -> 200 | T108: 20
A109: TOUR CN | B109: COPIAGE EXTER | C109: PLAQUETTE | D109: DNMG150616EN-TM CTC1135 | E109: TIZIT | F109: MECACOUPE | G109: ARMOIRE CN | H109: X | I109: 4 | J109: 10 | K109: 5 | P109: 30 X 15 X 8 | R109: =T109+SUMPRODUCT((Tableau2[DESIGNATION / REFERENCE]=D109)*Tableau2[QTE ENTREE])-SUMPRODUCT((Tableau2[DESIGNATION / REFERENCE]=D109)*Tableau2[QTE SORTIE]) -> 8 | S109: =Tableau1[[#This Row],[PRIX]]*Tableau1[[#This Row],[STOCK RESTANT]] -> 80 | T109: 8
A110: TRANSFERT | B110: FRAISAGE | C110: OUTILLAGE | D110: DOIGT DE CHARGEMENT | E110: MOREAU | F110: MOREAU | G110: MALETTE JF | J110: 150 | K110: 2 | R110: =T110+SUMPRODUCT((Tableau2[DESIGNATION / REFERENCE]=D110)*Tableau2[QTE ENTREE])-SUMPRODUCT((Tableau2[DESIGNATION / REFERENCE]=D110)*Tableau2[QTE SORTIE]) -> 4 | S110: =Tableau1[[#This Row],[PRIX]]*Tableau1[[#This Row],[STOCK RESTANT]] -> 600 | T110: 4
A111: PRESSE | B111: SERTISSAGE | C111: OUTILLAGE | D111: DOIGT DE ROTATION ERTM | E111: MOREAU | F111: MOREAU | G111: BOITE JF | J111: 70 | K111: 1 | R111: =T111+SUMPRODUCT((Tableau2[DESIGNATION / REFERENCE]=D111)*Tableau2[QTE ENTREE])-SUMPRODUCT((Tableau2[DESIGNATION / REFERENCE]=D111)*Tableau2[QTE SORTIE]) -> 1 | S111: =Tableau1[[#This Row],[PRIX]]*Tableau1[[#This Row],[STOCK RESTANT]] -> 70 | T111: 1
A112: TOUR CN | B112: COPIAGE EXTER | C112: PORTE PLAQUETTE | D112: DWLNR 2020 K06 | E112: ISCAR | F112: TOP FI | G112: ARMOIRE TARAUD | H112: X | I112: 0 | J112: 72.9 | K112: 1 | M112: =IF(ISERROR(J112/(L112*I112)),"",(J112/(L112*I112))) ->  | R112: =T112+SUMPRODUCT((Tableau2[DESIGNATION / REFERENCE]=D112)*Tableau2[QTE ENTREE])-SUMPRODUCT((Tableau2[DESIGNATION / REFERENCE]=D112)*Tableau2[QTE SORTIE]) -> 0 | S112: =Tableau1[[#This Row],[PRIX]]*Tableau1[[#This Row],[STOCK RESTANT]] -> 0 | T112: 0
A113: TRANSFERT | B113: FRAISAGE | C113: OUTILLAGE | D113: EMBASE MORS WG PLAN Y010-021 IND 000 | E113: MOREAU | F113: MOREAU | G113: MALETTE JF | H113: 340 | I113: 1 | J113: 184 | K113: 0 | R113: =T113+SUMPRODUCT((Tableau2[DESIGNATION / REFERENCE]=D113)*Tableau2[QTE ENTREE])-SUMPRODUCT((Tableau2[DESIGNATION / REFERENCE]=D113)*Tableau2[QTE SORTIE]) -> 0 | S113: =Tableau1[[#This Row],[PRIX]]*Tableau1[[#This Row],[STOCK RESTANT]] -> 0 | T113: 0
A114: TOUR CN | B114: PERCAGE | C114: PLAQUETTE | D114: EMBOUT ICM080 IC908 | E114: ISCAR | F114: TOP FI | G114: ARMOIRE CN | H114: X | I114: 1 | J114: 49 | K114: 3 | L114: 3000 | M114: 0.01633333333 | P114: 10 X 10 X 10 | R114: =T114+SUMPRODUCT((Tableau2[DESIGNATION / REFERENCE]=D114)*Tableau2[QTE ENTREE])-SUMPRODUCT((Tableau2[DESIGNATION / REFERENCE]=D114)*Tableau2[QTE SORTIE]) -> 9 | S114: =Tableau1[[#This Row],[PRIX]]*Tableau1[[#This Row],[STOCK RESTANT]] -> 441 | T114: 10
A115: TOUR CN | B115: PERCAGE | C115: PLAQUETTE | D115: EMBOUT ICM081 IC908 | E115: ISCAR | F115: TOP FI | G115: ARMOIRE CN | H115: X | I115: 1 | J115: 53.52 | K115: 3 | L115: 3000 | M115: 0.01784 | P115: 10 X 10 X 10 | R115: =T115+SUMPRODUCT((Tableau2[DESIGNATION / REFERENCE]=D115)*Tableau2[QTE ENTREE])-SUMPRODUCT((Tableau2[DESIGNATION / REFERENCE]=D115)*Tableau2[QTE SORTIE]) -> 5 | S115: =Tableau1[[#This Row],[PRIX]]*Tableau1[[#This Row],[STOCK RESTANT]] -> 267.6 | T115: 3
A116: TOUR CN | B116: PERCAGE | C116: PLAQUETTE | D116: EMBOUT ICM085 IC908 | E116: ISCAR | F116: TOP FI | G116: ARMOIRE CN | H116: X | I116: 1 | J116: 46.32 | K116: 3 | L116: 3000 | M116: 0.01544 | P116: 10 X 10 X 10 | R116: =T116+SUMPRODUCT((Tableau2[DESIGNATION / REFERENCE]=D116)*Tableau2[QTE ENTREE])-SUMPRODUCT((Tableau2[DESIGNATION / REFERENCE]=D116)*Tableau2[QTE SORTIE]) -> 4 | S116: =Tableau1[[#This Row],[PRIX]]*Tableau1[[#This Row],[STOCK RESTANT]] -> 185.28 | T116: 6
A117: TOUR CN | B117: PERCAGE | C117: PLAQUETTE | D117: EMBOUT ICM109 IC908 | E117: ISCAR | F117: TOP FI | G117: ARMOIRE CN | H117: X | I117: 1 | J117: 58.4 | K117: 3 | L117: 3000 | M117: 0.01946666667 | P117: 10 X 10 X 10 | R117: =T117+SUMPRODUCT((Tableau2[DESIGNATION / REFERENCE]=D117)*Tableau2[QTE ENTREE])-SUMPRODUCT((Tableau2[DESIGNATION / REFERENCE]=D117)*Tableau2[QTE SORTIE]) -> 6 | S117: =Tableau1[[#This Row],[PRIX]]*Tableau1[[#This Row],[STOCK RESTANT]] -> 350.4 | T117: 7
A118: TOUR CN | B118: PERCAGE | C118: PLAQUETTE | D118: EMBOUT ICM109 IC908 | E118: ISCAR | F118: TOP FI | G118: ARMOIRE CN | H118: X | I118: 1 | J118: 58.4 | K118: 3 | L118: 3000 | M118: 0.01946666667 | P118: 15 X 12 X 15 | Q118: RECU X4 321581 06/11/2012 | R118: =T118+SUMPRODUCT((Tableau2[DESIGNATION / REFERENCE]=D118)*Tableau2[QTE ENTREE])-SUMPRODUCT((Tableau2[DESIGNATION / REFERENCE]=D118)*Tableau2[QTE SORTIE]) -> 5 | S118: =Tableau1[[#This Row],[PRIX]]*Tableau1[[#This Row],[STOCK RESTANT]] -> 292 | T118: 6
A119: TOUR CN | B119: PERCAGE | C119: PLAQUETTE | D119: EMBOUT ICM114 IC908 | E119: ISCAR | F119: TOP FI | G119: ARMOIRE CN | H119: X | I119: 1 | J119: 55.1 | K119: 3 | L119: 3000 | M119: 0.01836666667 | P119: 15 X 12 X 15 | R119: =T119+SUMPRODUCT((Tableau2[DESIGNATION / REFERENCE]=D119)*Tableau2[QTE ENTREE])-SUMPRODUCT((Tableau2[DESIGNATION / REFERENCE]=D119)*Tableau2[QTE SORTIE]) -> 3 | S119: =Tableau1[[#This Row],[PRIX]]*Tableau1[[#This Row],[STOCK RESTANT]] -> 165.3 | T119: 3
A120: TOUR CN | B120: PERCAGE | C120: PLAQUETTE | D120: EMBOUT ICM125 IC908 | E120: ISCAR | F120: TOP FI | G120: ARMOIRE CN | H120: X | I120: 1 | J120: 57 | K120: 3 | P120: 15 X 12 X 15 | R120: =T120+SUMPRODUCT((Tableau2[DESIGNATION / REFERENCE]=D120)*Tableau2[QTE ENTREE])-SUMPRODUCT((Tableau2[DESIGNATION / REFERENCE]=D120)*Tableau2[QTE SORTIE]) -> 4 | S120: =Tableau1[[#This Row],[PRIX]]*Tableau1[[#This Row],[STOCK RESTANT]] -> 228 | T120: 4
A121: TOUR CN | B121: PERCAGE | C121: PLAQUETTE | D121: EMBOUT ICM135 IC908 | E121: ISCAR | F121: TOP FI | G121: ARMOIRE CN | H121: X | I121: 1 | J121: 60 | K121: 3 | P121: 15 X 15 X 10 | R121: =T121+SUMPRODUCT((Tableau2[DESIGNATION / REFERENCE]=D121)*Tableau2[QTE ENTREE])-SUMPRODUCT((Tableau2[DESIGNATION / REFERENCE]=D121)*Tableau2[QTE SORTIE]) -> 3 | S121: =Tableau1[[#This Row],[PRIX]]*Tableau1[[#This Row],[STOCK RESTANT]] -> 180 | T121: 3
A122: TOUR CN | B122: PERCAGE | C122: PLAQUETTE | D122: EMBOUT ICM137 IC908 | E122: ISCAR | F122: TOP FI | G122: ARMOIRE CN | H122: X | I122: 1 | J122: 61.28 | K122: 3 | L122: 3000 | M122: 0.02042666667 | P122: 15 X 8 X 15 | R122: =T122+SUMPRODUCT((Tableau2[DESIGNATION / REFERENCE]=D122)*Tableau2[QTE ENTREE])-SUMPRODUCT((Tableau2[DESIGNATION / REFERENCE]=D122)*Tableau2[QTE SORTIE]) -> 2 | S122: =Tableau1[[#This Row],[PRIX]]*Tableau1[[#This Row],[STOCK RESTANT]] -> 122.56 | T122: 1
A123: TOUR CN | B123: PERCAGE | C123: PLAQUETTE | D123: EMBOUT ICM140 IC908 | E123: ISCAR | F123: TOP FI | G123: ARMOIRE CN | H123: X | I123: 1 | J123: 56.25 | K123: 3 | L123: 3000 | M123: 0.01875 | P123: 15 X 8 X 15 | R123: =T123+SUMPRODUCT((Tableau2[DESIGNATION / REFERENCE]=D123)*Tableau2[QTE ENTREE])-SUMPRODUCT((Tableau2[DESIGNATION / REFERENCE]=D123)*Tableau2[QTE SORTIE]) -> 4 | S123: =Tableau1[[#This Row],[PRIX]]*Tableau1[[#This Row],[STOCK RESTANT]] -> 225 | T123: 4
A124: TOUR CN | B124: PERCAGE | C124: PLAQUETTE | D124: EMBOUT ICM165 IC908 | E124: ISCAR | F124: TOP FI | G124: ARMOIRE CN | H124: X | I124: 1 | J124: 74.48 | K124: 3 | L124: 3000 | M124: 0.02482666667 | P124: 18 X 20 X 10 | R124: =T124+SUMPRODUCT((Tableau2[DESIGNATION / REFERENCE]=D124)*Tableau2[QTE ENTREE])-SUMPRODUCT((Tableau2[DESIGNATION / REFERENCE]=D124)*Tableau2[QTE SORTIE]) -> 3 | S124: =Tableau1[[#This Row],[PRIX]]*Tableau1[[#This Row],[STOCK RESTANT]] -> 223.44 | T124: 6
A125: TOUR CN | B125: PERCAGE | C125: PLAQUETTE | D125: EMBOUT ICM167 IC908 | E125: ISCAR | F125: TOP FI | G125: ARMOIRE CN | H125: X | I125: 1 | J125: 74.48 | K125: 3 | L125: 3000 | M125: 0.02482666667 | P125: 18 X 20 X 10 | Q125: RECU X4 321634 07/11/2012 | R125: =T125+SUMPRODUCT((Tableau2[DESIGNATION / REFERENCE]=D125)*Tableau2[QTE ENTREE])-SUMPRODUCT((Tableau2[DESIGNATION / REFERENCE]=D125)*Tableau2[QTE SORTIE]) -> 6 | S125: =Tableau1[[#This Row],[PRIX]]*Tableau1[[#This Row],[STOCK RESTANT]] -> 446.88 | T125: 8
A126: TOUR CN | B126: PERCAGE | C126: PLAQUETTE | D126: EMBOUT ICM175 IC908 | E126: ISCAR | F126: TOP FI | G126: ARMOIRE CN | H126: X | I126: 1 | J126: 68.25 | K126: 3 | P126: 18 X 20 X 10 | R126: =T126+SUMPRODUCT((Tableau2[DESIGNATION / REFERENCE]=D126)*Tableau2[QTE ENTREE])-SUMPRODUCT((Tableau2[DESIGNATION / REFERENCE]=D126)*Tableau2[QTE SORTIE]) -> 3 | S126: =Tableau1[[#This Row],[PRIX]]*Tableau1[[#This Row],[STOCK RESTANT]] -> 204.75 | T126: 0
A127: TOUR CN | B127: PERCAGE | C127: PLAQUETTE | D127: EMBOUT ICM196 IC908 | E127: ISCAR | F127: TOP FI | G127: ARMOIRE CN | H127: X | I127: 1 | J127: 82.4 | K127: 3 | L127: 3000 | M127: 0.02746666667 | P127: 22 X 15 X 22 | Q127: RECU X4 321689 14/11/2012 | R127: =T127+SUMPRODUCT((Tableau2[DESIGNATION / REFERENCE]=D127)*Tableau2[QTE ENTREE])-SUMPRODUCT((Tableau2[DESIGNATION / REFERENCE]=D127)*Tableau2[QTE SORTIE]) -> 4 | S127: =Tableau1[[#This Row],[PRIX]]*Tableau1[[#This Row],[STOCK RESTANT]] -> 329.6 | T127: 7
A128: TOUR CN | B128: PERCAGE | C128: PLAQUETTE | D128: EMBOUT ICM210 IC908 | E128: ISCAR | F128: TOP FI | G128: ARMOIRE CN | H128: X | I128: 1 | J128: 97.6 | K128: 3 | L128: 3000 | M128: 0.03253333333 | P128: 22 X 15 X 25 | Q128: RECU X4 321581 06/11/2012 | R128: =T128+SUMPRODUCT((Tableau2[DESIGNATION / REFERENCE]=D128)*Tableau2[QTE ENTREE])-SUMPRODUCT((Tableau2[DESIGNATION / REFERENCE]=D128)*Tableau2[QTE SORTIE]) -> 3 | S128: =Tableau1[[#This Row],[PRIX]]*Tableau1[[#This Row],[STOCK RESTANT]] -> 292.8 | T128: 6
A129: TOUR CN | B129: PERCAGE | C129: PLAQUETTE | D129: EMBOUT ICP079 IC908 | E129: ISCAR | F129: TOP FI | G129: ARMOIRE CN | H129: X | I129: 1 | J129: 60 | K129: 3 | P129: 10 X 10 X 10 | R129: =T129+SUMPRODUCT((Tableau2[DESIGNATION / REFERENCE]=D129)*Tableau2[QTE ENTREE])-SUMPRODUCT((Tableau2[DESIGNATION / REFERENCE]=D129)*Tableau2[QTE SORTIE]) -> 1 | S129: =Tableau1[[#This Row],[PRIX]]*Tableau1[[#This Row],[STOCK RESTANT]] -> 60 | T129: 3
A130: TOUR CN | B130: PERCAGE | C130: PLAQUETTE | D130: EMBOUT IDM103 IC908 | E130: ISCAR | F130: TOP FI | G130: ARMOIRE CN | H130: X | I130: 1 | J130: 56.6 | K130: 3 | P130: 15 X 12 X 15 | R130: =T130+SUMPRODUCT((Tableau2[DESIGNATION / REFERENCE]=D130)*Tableau2[QTE ENTREE])-SUMPRODUCT((Tableau2[DESIGNATION / REFERENCE]=D130)*Tableau2[QTE SORTIE]) -> 3 | S130: =Tableau1[[#This Row],[PRIX]]*Tableau1[[#This Row],[STOCK RESTANT]] -> 169.8 | T130: 4
A131: TOUR CN | B131: PERCAGE | C131: PLAQUETTE | D131: EMBOUT IDM105 IC908 | E131: ISCAR | F131: TOP FI | G131: ARMOIRE CN | H131: X | I131: 1 | J131: 55 | K131: 3 | P131: 15 X 12 X 15 | R131: =T131+SUMPRODUCT((Tableau2[DESIGNATION / REFERENCE]=D131)*Tableau2[QTE ENTREE])-SUMPRODUCT((Tableau2[DESIGNATION / REFERENCE]=D131)*Tableau2[QTE SORTIE]) -> 8 | S131: =Tableau1[[#This Row],[PRIX]]*Tableau1[[#This Row],[STOCK RESTANT]] -> 440 | T131: 8
A132: TOUR CN | B132: PERCAGE | C132: PLAQUETTE | D132: EMBOUT IDM107 IC908 | E132: ISCAR | F132: TOP FI | G132: ARMOIRE CN | H132: X | I132: 1 | J132: 50 | K132: 3 | P132: 15 X 12 X 15 | R132: =T132+SUMPRODUCT((Tableau2[DESIGNATION / REFERENCE]=D132)*Tableau2[QTE ENTREE])-SUMPRODUCT((Tableau2[DESIGNATION / REFERENCE]=D132)*Tableau2[QTE SORTIE]) -> 3 | S132: =Tableau1[[#This Row],[PRIX]]*Tableau1[[#This Row],[STOCK RESTANT]] -> 150 | T132: 3
A133: TOUR CN | B133: PERCAGE | C133: PLAQUETTE | D133: EMBOUT IDM108 IC908 | E133: ISCAR | F133: TOP FI | G133: ARMOIRE CN | H133: X | I133: 1 | J133: 50 | K133: 3 | P133: 15 X 12 X 15 | R133: =T133+SUMPRODUCT((Tableau2[DESIGNATION / REFERENCE]=D133)*Tableau2[QTE ENTREE])-SUMPRODUCT((Tableau2[DESIGNATION / REFERENCE]=D133)*Tableau2[QTE SORTIE]) -> 3 | S133: =Tableau1[[#This Row],[PRIX]]*Tableau1[[#This Row],[STOCK RESTANT]] -> 150 | T133: 3
A134: TOUR CN | B134: PERCAGE | C134: PLAQUETTE | D134: EMBOUT IDM120 IC908 | E134: ISCAR | F134: TOP FI | G134: ARMOIRE CN | H134: X | I134: 1 | J134: 52.64 | K134: 3 | L134: 15 X 12 X 15 | P134: 15 X 8 X 15 | R134: =T134+SUMPRODUCT((Tableau2[DESIGNATION / REFERENCE]=D134)*Tableau2[QTE ENTREE])-SUMPRODUCT((Tableau2[DESIGNATION / REFERENCE]=D134)*Tableau2[QTE SORTIE]) -> 4 | S134: =Tableau1[[#This Row],[PRIX]]*Tableau1[[#This Row],[STOCK RESTANT]] -> 210.56 | T134: 3
A135: TOUR CN | B135: PERCAGE | C135: PLAQUETTE | D135: EMBOUT IDM140 IC908 | E135: ISCAR | F135: TOP FI | G135: ARMOIRE CN | H135: X | I135: 1 | J135: 55.7 | K135: 3 | P135: 15 X 8 X 15 | R135: =T135+SUMPRODUCT((Tableau2[DESIGNATION / REFERENCE]=D135)*Tableau2[QTE ENTREE])-SUMPRODUCT((Tableau2[DESIGNATION / REFERENCE]=D135)*Tableau2[QTE SORTIE]) -> 4 | S135: =Tableau1[[#This Row],[PRIX]]*Tableau1[[#This Row],[STOCK RESTANT]] -> 222.8 | T135: 0
A136: TOUR CN | B136: PERCAGE | C136: PLAQUETTE | D136: EMBOUT IDM144 IC908 | E136: ISCAR | F136: TOP FI | G136: ARMOIRE CN | H136: X | I136: 1 | J136: 55.7 | K136: 3 | P136: 15 X 8 X 15 | R136: =T136+SUMPRODUCT((Tableau2[DESIGNATION / REFERENCE]=D136)*Tableau2[QTE ENTREE])-SUMPRODUCT((Tableau2[DESIGNATION / REFERENCE]=D136)*Tableau2[QTE SORTIE]) -> 8 | S136: =Tableau1[[#This Row],[PRIX]]*Tableau1[[#This Row],[STOCK RESTANT]] -> 445.6 | T136: 3
A137: TOUR CN | B137: PERCAGE | C137: PLAQUETTE | D137: EMBOUT IDM145 IC908 | E137: ISCAR | F137: TOP FI | G137: ARMOIRE CN | H137: X | I137: 1 | J137: 52.64 | K137: 3 | L137: 15 X 8 X 15 | P137: 15 X 8 X 15 | R137: =T137+SUMPRODUCT((Tableau2[DESIGNATION / REFERENCE]=D137)*Tableau2[QTE ENTREE])-SUMPRODUCT((Tableau2[DESIGNATION / REFERENCE]=D137)*Tableau2[QTE SORTIE]) -> 2 | S137: =Tableau1[[#This Row],[PRIX]]*Tableau1[[#This Row],[STOCK RESTANT]] -> 105.28 | T137: 6
A138: TOUR CN | B138: PERCAGE | C138: PLAQUETTE | D138: EMBOUT IDM155 IC908 | E138: ISCAR | F138: TOP FI | G138: ARMOIRE CN | H138: X | I138: 1 | J138: 55.7 | K138: 3 | P138: 18 X 15 X 15 | R138: =T138+SUMPRODUCT((Tableau2[DESIGNATION / REFERENCE]=D138)*Tableau2[QTE ENTREE])-SUMPRODUCT((Tableau2[DESIGNATION / REFERENCE]=D138)*Tableau2[QTE SORTIE]) -> 3 | S138: =Tableau1[[#This Row],[PRIX]]*Tableau1[[#This Row],[STOCK RESTANT]] -> 167.1 | T138: 3
A139: TOUR CN | B139: PERCAGE | C139: PLAQUETTE | D139: EMBOUT IDM170 IC908 | E139: ISCAR | F139: TOP FI | G139: ARMOIRE CN | H139: X | I139: 1 | J139: 64.96 | K139: 3 | P139: 18 X 20 X 10 | R139: =T139+SUMPRODUCT((Tableau2[DESIGNATION / REFERENCE]=D139)*Tableau2[QTE ENTREE])-SUMPRODUCT((Tableau2[DESIGNATION / REFERENCE]=D139)*Tableau2[QTE SORTIE]) -> 4 | S139: =Tableau1[[#This Row],[PRIX]]*Tableau1[[#This Row],[STOCK RESTANT]] -> 259.84 | T139: 4
A140: TOUR CN | B140: PERCAGE | C140: PLAQUETTE | D140: EMBOUT IDM173 IC908 | E140: ISCAR | F140: TOP FI | G140: ARMOIRE CN | H140: X | I140: 1 | J140: 72.16 | K140: 3 | P140: 18 X 20 X 10 | R140: =T140+SUMPRODUCT((Tableau2[DESIGNATION / REFERENCE]=D140)*Tableau2[QTE ENTREE])-SUMPRODUCT((Tableau2[DESIGNATION / REFERENCE]=D140)*Tableau2[QTE SORTIE]) -> 5 | S140: =Tableau1[[#This Row],[PRIX]]*Tableau1[[#This Row],[STOCK RESTANT]] -> 360.8 | T140: 5
A141: TOUR CN | B141: PERCAGE | C141: PLAQUETTE | D141: EMBOUT IDM175 IC908 | E141: ISCAR | F141: TOP FI | G141: ARMOIRE CN | H141: X | I141: 1 | J141: 68.25 | K141: 3 | P141: 18 X 20 X 10 | R141: =T141+SUMPRODUCT((Tableau2[DESIGNATION / REFERENCE]=D141)*Tableau2[QTE ENTREE])-SUMPRODUCT((Tableau2[DESIGNATION / REFERENCE]=D141)*Tableau2[QTE SORTIE]) -> 4 | S141: =Tableau1[[#This Row],[PRIX]]*Tableau1[[#This Row],[STOCK RESTANT]] -> 273 | T141: 4
A142: TOUR CN | B142: PERCAGE | C142: PLAQUETTE | D142: EMBOUT IDM185 IC908 | E142: ISCAR | F142: TOP FI | G142: ARMOIRE CN | H142: X | I142: 1 | J142: 60.48 | K142: 3 | P142: 22 X 15 X 22 | R142: =T142+SUMPRODUCT((Tableau2[DESIGNATION / REFERENCE]=D142)*Tableau2[QTE ENTREE])-SUMPRODUCT((Tableau2[DESIGNATION / REFERENCE]=D142)*Tableau2[QTE SORTIE]) -> 2 | S142: =Tableau1[[#This Row],[PRIX]]*Tableau1[[#This Row],[STOCK RESTANT]] -> 120.96 | T142: 2
A143: TOUR CN | B143: PERCAGE | C143: PLAQUETTE | D143: EMBOUT IDP110 IC908 | E143: ISCAR | F143: TOP FI | G143: ARMOIRE CN | H143: X | I143: 1 | J143: 50 | K143: 3 | P143: 15 X 12 X 15 | R143: =T143+SUMPRODUCT((Tableau2[DESIGNATION / REFERENCE]=D143)*Tableau2[QTE ENTREE])-SUMPRODUCT((Tableau2[DESIGNATION / REFERENCE]=D143)*Tableau2[QTE SORTIE]) -> 3 | S143: =Tableau1[[#This Row],[PRIX]]*Tableau1[[#This Row],[STOCK RESTANT]] -> 150 | T143: 3
A144: PRESSE | B144: DECOUPE | C144: OUTILLAGE | D144: EMPREINTE GSL M10 | E144: DRANER | F144: DRANER | G144: BOX | K144: 1 | R144: =T144+SUMPRODUCT((Tableau2[DESIGNATION / REFERENCE]=D144)*Tableau2[QTE ENTREE])-SUMPRODUCT((Tableau2[DESIGNATION / REFERENCE]=D144)*Tableau2[QTE SORTIE]) -> 1 | S144: =Tableau1[[#This Row],[PRIX]]*Tableau1[[#This Row],[STOCK RESTANT]] -> 0 | T144: 1
A145: PRESSE | B145: DECOUPE | C145: OUTILLAGE | D145: EMPREINTE GSL M12 | E145: DRANER | F145: DRANER | G145: BOX | K145: 1 | R145: =T145+SUMPRODUCT((Tableau2[DESIGNATION / REFERENCE]=D145)*Tableau2[QTE ENTREE])-SUMPRODUCT((Tableau2[DESIGNATION / REFERENCE]=D145)*Tableau2[QTE SORTIE]) -> 1 | S145: =Tableau1[[#This Row],[PRIX]]*Tableau1[[#This Row],[STOCK RESTANT]] -> 0 | T145: 1
A146: PRESSE | B146: DECOUPE | C146: OUTILLAGE | D146: EMPREINTE GSL M14 | E146: DRANER | F146: DRANER | G146: BOX | K146: 1 | R146: =T146+SUMPRODUCT((Tableau2[DESIGNATION / REFERENCE]=D146)*Tableau2[QTE ENTREE])-SUMPRODUCT((Tableau2[DESIGNATION / REFERENCE]=D146)*Tableau2[QTE SORTIE]) -> 1 | S146: =Tableau1[[#This Row],[PRIX]]*Tableau1[[#This Row],[STOCK RESTANT]] -> 0 | T146: 1
A147: PRESSE | B147: DECOUPE | C147: OUTILLAGE | D147: EMPREINTE STARNUTS M10 | E147: DRANER | F147: DRANER | G147: BOX | K147: 1 | R147: =T147+SUMPRODUCT((Tableau2[DESIGNATION / REFERENCE]=D147)*Tableau2[QTE ENTREE])-SUMPRODUCT((Tableau2[DESIGNATION / REFERENCE]=D147)*Tableau2[QTE SORTIE]) -> 1 | S147: =Tableau1[[#This Row],[PRIX]]*Tableau1[[#This Row],[STOCK RESTANT]] -> 0 | T147: 1
A148: PRESSE | B148: DECOUPE | C148: OUTILLAGE | D148: EMPREINTE STARNUTS M12 | E148: DRANER | F148: DRANER | G148: BOX | K148: 1 | R148: =T148+SUMPRODUCT((Tableau2[DESIGNATION / REFERENCE]=D148)*Tableau2[QTE ENTREE])-SUMPRODUCT((Tableau2[DESIGNATION / REFERENCE]=D148)*Tableau2[QTE SORTIE]) -> 1 | S148: =Tableau1[[#This Row],[PRIX]]*Tableau1[[#This Row],[STOCK RESTANT]] -> 0 | T148: 1
A149: PRESSE | B149: DECOUPE | C149: OUTILLAGE | D149: EMPREINTE STARNUTS M16 | E149: DRANER | F149: DRANER | G149: BOX | K149: 1 | R149: =T149+SUMPRODUCT((Tableau2[DESIGNATION / REFERENCE]=D149)*Tableau2[QTE ENTREE])-SUMPRODUCT((Tableau2[DESIGNATION / REFERENCE]=D149)*Tableau2[QTE SORTIE]) -> 2 | S149: =Tableau1[[#This Row],[PRIX]]*Tableau1[[#This Row],[STOCK RESTANT]] -> 0 | T149: 2
A150: PRESSE | B150: DECOUPE | C150: OUTILLAGE | D150: EMPREINTE STARNUTS M18 | E150: DRANER | F150: DRANER | G150: BOX | K150: 1 | R150: =T150+SUMPRODUCT((Tableau2[DESIGNATION / REFERENCE]=D150)*Tableau2[QTE ENTREE])-SUMPRODUCT((Tableau2[DESIGNATION / REFERENCE]=D150)*Tableau2[QTE SORTIE]) -> 2 | S150: =Tableau1[[#This Row],[PRIX]]*Tableau1[[#This Row],[STOCK RESTANT]] -> 0 | T150: 2
A151: PRESSE | B151: DECOUPE | C151: OUTILLAGE | D151: EMPREINTE STARNUTS M4 | E151: DRANER | F151: DRANER | G151: BOX | K151: 1 | R151: =T151+SUMPRODUCT((Tableau2[DESIGNATION / REFERENCE]=D151)*Tableau2[QTE ENTREE])-SUMPRODUCT((Tableau2[DESIGNATION / REFERENCE]=D151)*Tableau2[QTE SORTIE]) -> 2 | S151: =Tableau1[[#This Row],[PRIX]]*Tableau1[[#This Row],[STOCK RESTANT]] -> 0 | T151: 2
A152: PRESSE | B152: DECOUPE | C152: OUTILLAGE | D152: EMPREINTE STARNUTS M5 | E152: DRANER | F152: DRANER | G152: BOX | K152: 1 | R152: =T152+SUMPRODUCT((Tableau2[DESIGNATION / REFERENCE]=D152)*Tableau2[QTE ENTREE])-SUMPRODUCT((Tableau2[DESIGNATION / REFERENCE]=D152)*Tableau2[QTE SORTIE]) -> 1 | S152: =Tableau1[[#This Row],[PRIX]]*Tableau1[[#This Row],[STOCK RESTANT]] -> 0 | T152: 1
A153: PRESSE | B153: DECOUPE | C153: OUTILLAGE | D153: EMPREINTE STARNUTS M6 | E153: DRANER | F153: DRANER | G153: BOX | K153: 1 | R153: =T153+SUMPRODUCT((Tableau2[DESIGNATION / REFERENCE]=D153)*Tableau2[QTE ENTREE])-SUMPRODUCT((Tableau2[DESIGNATION / REFERENCE]=D153)*Tableau2[QTE SORTIE]) -> 1 | S153: =Tableau1[[#This Row],[PRIX]]*Tableau1[[#This Row],[STOCK RESTANT]] -> 0 | T153: 1
A154: TOUR CN | B154: COPIAGE INTER | C154: PLAQUETTE | D154: EPMT050202-PM5 8535 | E154: SAFETY | F154: DRANER | G154: ARMOIRE TARAUD | H154: X | I154: 2 | J154: 5 | K154: 3 | P154: 5 X 5 X 5 | R154: =T154+SUMPRODUCT((Tableau2[DESIGNATION / REFERENCE]=D154)*Tableau2[QTE ENTREE])-SUMPRODUCT((Tableau2[DESIGNATION / REFERENCE]=D154)*Tableau2[QTE SORTIE]) -> 4 | S154: =Tableau1[[#This Row],[PRIX]]*Tableau1[[#This Row],[STOCK RESTANT]] -> 20 | T154: 5
A155: TOUR CN | B155: OUTILLAGE | C155: SERRAGE | D155: ER25 Ø10 CARRE 8 | E155: TOP FI | F155: TOP FI | I155: 0 | J155: 45 | K155: 0 | P155: 40 X 40 X 50 | R155: =T155+SUMPRODUCT((Tableau2[DESIGNATION / REFERENCE]=D155)*Tableau2[QTE ENTREE])-SUMPRODUCT((Tableau2[DESIGNATION / REFERENCE]=D155)*Tableau2[QTE SORTIE]) -> 0 | S155: =Tableau1[[#This Row],[PRIX]]*Tableau1[[#This Row],[STOCK RESTANT]] -> 0 | T155: 0
A156: TOUR CN | B156: OUTILLAGE | C156: SERRAGE | D156: ER25 Ø12 CARRE 9 | E156: TOP FI | F156: TOP FI | I156: 0 | J156: 45 | K156: 0 | P156: 40 X 40 X 50 | R156: =T156+SUMPRODUCT((Tableau2[DESIGNATION / REFERENCE]=D156)*Tableau2[QTE ENTREE])-SUMPRODUCT((Tableau2[DESIGNATION / REFERENCE]=D156)*Tableau2[QTE SORTIE]) -> 0 | S156: =Tableau1[[#This Row],[PRIX]]*Tableau1[[#This Row],[STOCK RESTANT]] -> 0 | T156: 0
A157: TOUR CN | B157: OUTILLAGE | C157: SERRAGE | D157: ER25 Ø14 CARRE 11 | E157: TOP FI | F157: TOP FI | I157: 0 | J157: 45 | K157: 0 | P157: 40 X 40 X 50 | R157: =T157+SUMPRODUCT((Tableau2[DESIGNATION / REFERENCE]=D157)*Tableau2[QTE ENTREE])-SUMPRODUCT((Tableau2[DESIGNATION / REFERENCE]=D157)*Tableau2[QTE SORTIE]) -> 0 | S157: =Tableau1[[#This Row],[PRIX]]*Tableau1[[#This Row],[STOCK RESTANT]] -> 0 | T157: 0
A158: TOUR CN | B158: OUTILLAGE | C158: SERRAGE | D158: ER25 Ø7 CARRE 5,5 | E158: TOP FI | F158: TOP FI | I158: 0 | J158: 45 | K158: 0 | P158: 40 X 40 X 50 | R158: =T158+SUMPRODUCT((Tableau2[DESIGNATION / REFERENCE]=D158)*Tableau2[QTE ENTREE])-SUMPRODUCT((Tableau2[DESIGNATION / REFERENCE]=D158)*Tableau2[QTE SORTIE]) -> 0 | S158: =Tableau1[[#This Row],[PRIX]]*Tableau1[[#This Row],[STOCK RESTANT]] -> 0 | T158: 0
A159: TOUR CN | B159: OUTILLAGE | C159: SERRAGE | D159: ER25 Ø9 CARRE 7 | E159: TOP FI | F159: TOP FI | I159: 0 | J159: 45 | K159: 0 | P159: 40 X 40 X 50 | R159: =T159+SUMPRODUCT((Tableau2[DESIGNATION / REFERENCE]=D159)*Tableau2[QTE ENTREE])-SUMPRODUCT((Tableau2[DESIGNATION / REFERENCE]=D159)*Tableau2[QTE SORTIE]) -> 0 | S159: =Tableau1[[#This Row],[PRIX]]*Tableau1[[#This Row],[STOCK RESTANT]] -> 0 | T159: 0
A160: TOUR AUTO | B160: PERCAGE | C160: OUTIL | D160: FORET Ø16,27 | E160: GUHRING | F160: MECACOUPE | G160: BOX | I160: 1 | J160: 52 | K160: 3 | R160: =T160+SUMPRODUCT((Tableau2[DESIGNATION / REFERENCE]=D160)*Tableau2[QTE ENTREE])-SUMPRODUCT((Tableau2[DESIGNATION / REFERENCE]=D160)*Tableau2[QTE SORTIE]) -> 2 | S160: =Tableau1[[#This Row],[PRIX]]*Tableau1[[#This Row],[STOCK RESTANT]] -> 104 | T160: 2
A161: TOUR AUTO | B161: PERCAGE | C161: OUTIL | D161: FORET Ø18,26 | E161: GHURING | F161: MECACOUPE | G161: BOX | I161: 1 | J161: 58 | K161: 3 | R161: =T161+SUMPRODUCT((Tableau2[DESIGNATION / REFERENCE]=D161)*Tableau2[QTE ENTREE])-SUMPRODUCT((Tableau2[DESIGNATION / REFERENCE]=D161)*Tableau2[QTE SORTIE]) -> 2 | S161: =Tableau1[[#This Row],[PRIX]]*Tableau1[[#This Row],[STOCK RESTANT]] -> 116 | T161: 2
A162: TOUR AUTO | B162: PERCAGE | C162: OUTIL | D162: FORET Ø19,25 | E162: GHURING | F162: MECACOUPE | G162: BOX | I162: 1 | J162: 74 | K162: 3 | R162: =T162+SUMPRODUCT((Tableau2[DESIGNATION / REFERENCE]=D162)*Tableau2[QTE ENTREE])-SUMPRODUCT((Tableau2[DESIGNATION / REFERENCE]=D162)*Tableau2[QTE SORTIE]) -> 3 | S162: =Tableau1[[#This Row],[PRIX]]*Tableau1[[#This Row],[STOCK RESTANT]] -> 222 | T162: 3
A163: TOUR AUTO | B163: PERCAGE | C163: OUTIL | D163: FORET Ø19,75 | E163: GHURING | F163: MECACOUPE | G163: BOX | I163: 1 | J163: 85 | K163: 3 | R163: =T163+SUMPRODUCT((Tableau2[DESIGNATION / REFERENCE]=D163)*Tableau2[QTE ENTREE])-SUMPRODUCT((Tableau2[DESIGNATION / REFERENCE]=D163)*Tableau2[QTE SORTIE]) -> 1 | S163: =Tableau1[[#This Row],[PRIX]]*Tableau1[[#This Row],[STOCK RESTANT]] -> 85 | T163: 1
A164: TOUR AUTO | B164: PERCAGE | C164: OUTIL | D164: FORET 1001 Ø0,6 | E164: FORMAT | F164: MECACOUPE | G164: BOX | I164: 1 | J164: 1.12 | K164: 5 | R164: =T164+SUMPRODUCT((Tableau2[DESIGNATION / REFERENCE]=D164)*Tableau2[QTE ENTREE])-SUMPRODUCT((Tableau2[DESIGNATION / REFERENCE]=D164)*Tableau2[QTE SORTIE]) -> 1 | S164: =Tableau1[[#This Row],[PRIX]]*Tableau1[[#This Row],[STOCK RESTANT]] -> 1.12 | T164: 1
A165: TOUR AUTO | B165: PERCAGE | C165: OUTIL | D165: FORET 1001 Ø0,7 | E165: FORMAT | F165: MECACOUPE | G165: BOX | I165: 1 | J165: 1.04 | K165: 5 | R165: =T165+SUMPRODUCT((Tableau2[DESIGNATION / REFERENCE]=D165)*Tableau2[QTE ENTREE])-SUMPRODUCT((Tableau2[DESIGNATION / REFERENCE]=D165)*Tableau2[QTE SORTIE]) -> 9 | S165: =Tableau1[[#This Row],[PRIX]]*Tableau1[[#This Row],[STOCK RESTANT]] -> 9.36 | T165: 9
A166: TOUR AUTO | B166: PERCAGE | C166: OUTIL | D166: FORET 1001 Ø0,8 | E166: FORMAT | F166: MECACOUPE | G166: BOX | I166: 1 | J166: 1 | K166: 5 | R166: =T166+SUMPRODUCT((Tableau2[DESIGNATION / REFERENCE]=D166)*Tableau2[QTE ENTREE])-SUMPRODUCT((Tableau2[DESIGNATION / REFERENCE]=D166)*Tableau2[QTE SORTIE]) -> 8 | S166: =Tableau1[[#This Row],[PRIX]]*Tableau1[[#This Row],[STOCK RESTANT]] -> 8 | T166: 8
A167: TOUR AUTO | B167: PERCAGE | C167: OUTIL | D167: FORET 1001 Ø1 | E167: FORMAT | F167: MECACOUPE | G167: BOX | I167: 1 | J167: 1.04 | K167: 5 | R167: =T167+SUMPRODUCT((Tableau2[DESIGNATION / REFERENCE]=D167)*Tableau2[QTE ENTREE])-SUMPRODUCT((Tableau2[DESIGNATION / REFERENCE]=D167)*Tableau2[QTE SORTIE]) -> 10 | S167: =Tableau1[[#This Row],[PRIX]]*Tableau1[[#This Row],[STOCK RESTANT]] -> 10.4 | T167: 10
A168: TOUR AUTO | B168: PERCAGE | C168: OUTIL | D168: FORET 1001 Ø1,2 | E168: FORMAT | F168: MECACOUPE | G168: BOX | I168: 1 | J168: 1.04 | K168: 5 | R168: =T168+SUMPRODUCT((Tableau2[DESIGNATION / REFERENCE]=D168)*Tableau2[QTE ENTREE])-SUMPRODUCT((Tableau2[DESIGNATION / REFERENCE]=D168)*Tableau2[QTE SORTIE]) -> 10 | S168: =Tableau1[[#This Row],[PRIX]]*Tableau1[[#This Row],[STOCK RESTANT]] -> 10.4 | T168: 10
A169: TOUR AUTO | B169: PERCAGE | C169: OUTIL | D169: FORET 1001 Ø1,5 | E169: FORMAT | F169: MECACOUPE | G169: BOX | I169: 1 | J169: 0.84 | K169: 5 | R169: =T169+SUMPRODUCT((Tableau2[DESIGNATION / REFERENCE]=D169)*Tableau2[QTE ENTREE])-SUMPRODUCT((Tableau2[DESIGNATION / REFERENCE]=D169)*Tableau2[QTE SORTIE]) -> 2 | S169: =Tableau1[[#This Row],[PRIX]]*Tableau1[[#This Row],[STOCK RESTANT]] -> 1.68 | T169: 2
A170: TOUR AUTO | B170: PERCAGE | C170: OUTIL | D170: FORET 1001 Ø1,7 | E170: FORMAT | F170: MECACOUPE | G170: BOX | I170: 1 | J170: 0.84 | K170: 5 | R170: =T170+SUMPRODUCT((Tableau2[DESIGNATION / REFERENCE]=D170)*Tableau2[QTE ENTREE])-SUMPRODUCT((Tableau2[DESIGNATION / REFERENCE]=D170)*Tableau2[QTE SORTIE]) -> 13 | S170: =Tableau1[[#This Row],[PRIX]]*Tableau1[[#This Row],[STOCK RESTANT]] -> 10.92 | T170: 13
A171: TOUR AUTO | B171: PERCAGE | C171: OUTIL | D171: FORET 1001 Ø10 | E171: FORMAT | F171: MECACOUPE | G171: BOX | I171: 1 | J171: 3.56 | K171: 5 | R171: =T171+SUMPRODUCT((Tableau2[DESIGNATION / REFERENCE]=D171)*Tableau2[QTE ENTREE])-SUMPRODUCT((Tableau2[DESIGNATION / REFERENCE]=D171)*Tableau2[QTE SORTIE]) -> 3 | S171: =Tableau1[[#This Row],[PRIX]]*Tableau1[[#This Row],[STOCK RESTANT]] -> 10.68 | T171: 3
A172: TOUR AUTO | B172: PERCAGE | C172: OUTIL | D172: FORET 1001 Ø10,2 | E172: FORMAT | F172: MECACOUPE | G172: BOX | I172: 1 | J172: 4.52 | K172: 5 | R172: =T172+SUMPRODUCT((Tableau2[DESIGNATION / REFERENCE]=D172)*Tableau2[QTE ENTREE])-SUMPRODUCT((Tableau2[DESIGNATION / REFERENCE]=D172)*Tableau2[QTE SORTIE]) -> 4 | S172: =Tableau1[[#This Row],[PRIX]]*Tableau1[[#This Row],[STOCK RESTANT]] -> 18.08 | T172: 4
A173: TOUR AUTO | B173: PERCAGE | C173: OUTIL | D173: FORET 1001 Ø10,5 | E173: FORMAT | F173: MECACOUPE | G173: BOX | I173: 1 | J173: 5.1 | K173: 5 | R173: =T173+SUMPRODUCT((Tableau2[DESIGNATION / REFERENCE]=D173)*Tableau2[QTE ENTREE])-SUMPRODUCT((Tableau2[DESIGNATION / REFERENCE]=D173)*Tableau2[QTE SORTIE]) -> 7 | S173: =Tableau1[[#This Row],[PRIX]]*Tableau1[[#This Row],[STOCK RESTANT]] -> 35.7 | T173: 7
A174: TOUR AUTO | B174: PERCAGE | C174: OUTIL | D174: FORET 1001 Ø10,8 | E174: FORMAT | F174: MECACOUPE | G174: BOX | I174: 1 | J174: 6.7 | K174: 5 | R174: =T174+SUMPRODUCT((Tableau2[DESIGNATION / REFERENCE]=D174)*Tableau2[QTE ENTREE])-SUMPRODUCT((Tableau2[DESIGNATION / REFERENCE]=D174)*Tableau2[QTE SORTIE]) -> 2 | S174: =Tableau1[[#This Row],[PRIX]]*Tableau1[[#This Row],[STOCK RESTANT]] -> 13.4 | T174: 2
A175: TOUR AUTO | B175: PERCAGE | C175: OUTIL | D175: FORET 1001 Ø11,4 | E175: FORMAT | F175: MECACOUPE | G175: BOX | I175: 1 | J175: 5.9 | K175: 5 | R175: =T175+SUMPRODUCT((Tableau2[DESIGNATION / REFERENCE]=D175)*Tableau2[QTE ENTREE])-SUMPRODUCT((Tableau2[DESIGNATION / REFERENCE]=D175)*Tableau2[QTE SORTIE]) -> 1 | S175: =Tableau1[[#This Row],[PRIX]]*Tableau1[[#This Row],[STOCK RESTANT]] -> 5.9 | T175: 1
A176: TOUR AUTO | B176: PERCAGE | C176: OUTIL | D176: FORET 1001 Ø12 | E176: FORMAT | F176: MECACOUPE | G176: BOX | I176: 1 | J176: 6.7 | K176: 5 | M176: =IF(ISERROR(J176/(L176*I176)),"",(J176/(L176*I176))) ->  | R176: =T176+SUMPRODUCT((Tableau2[DESIGNATION / REFERENCE]=D176)*Tableau2[QTE ENTREE])-SUMPRODUCT((Tableau2[DESIGNATION / REFERENCE]=D176)*Tableau2[QTE SORTIE]) -> 4 | S176: =Tableau1[[#This Row],[PRIX]]*Tableau1[[#This Row],[STOCK RESTANT]] -> 26.8 | T176: 4
A177: TOUR AUTO | B177: PERCAGE | C177: OUTIL | D177: FORET 1001 Ø13 | E177: FORMAT | F177: MECACOUPE | G177: BOX | I177: 1 | J177: 8.1 | K177: 5 | R177: =T177+SUMPRODUCT((Tableau2[DESIGNATION / REFERENCE]=D177)*Tableau2[QTE ENTREE])-SUMPRODUCT((Tableau2[DESIGNATION / REFERENCE]=D177)*Tableau2[QTE SORTIE]) -> 1 | S177: =Tableau1[[#This Row],[PRIX]]*Tableau1[[#This Row],[STOCK RESTANT]] -> 8.1 | T177: 1
A178: TOUR AUTO | B178: PERCAGE | C178: OUTIL | D178: FORET 1001 Ø2 | E178: FORMAT | F178: MECACOUPE | G178: BOX | I178: 1 | J178: 0.6 | K178: 5 | R178: =T178+SUMPRODUCT((Tableau2[DESIGNATION / REFERENCE]=D178)*Tableau2[QTE ENTREE])-SUMPRODUCT((Tableau2[DESIGNATION / REFERENCE]=D178)*Tableau2[QTE SORTIE]) -> 39 | S178: =Tableau1[[#This Row],[PRIX]]*Tableau1[[#This Row],[STOCK RESTANT]] -> 23.4 | T178: 39
A179: TOUR AUTO | B179: PERCAGE | C179: OUTIL | D179: FORET 1001 Ø2,05 | E179: FORMAT | F179: MECACOUPE | G179: BOX | I179: 1 | J179: 0.76 | K179: 5 | R179: =T179+SUMPRODUCT((Tableau2[DESIGNATION / REFERENCE]=D179)*Tableau2[QTE ENTREE])-SUMPRODUCT((Tableau2[DESIGNATION / REFERENCE]=D179)*Tableau2[QTE SORTIE]) -> 4 | S179: =Tableau1[[#This Row],[PRIX]]*Tableau1[[#This Row],[STOCK RESTANT]] -> 3.04 | T179: 4
A180: TOUR AUTO | B180: PERCAGE | C180: OUTIL | D180: FORET 1001 Ø2,1 | E180: FORMAT | F180: MECACOUPE | G180: BOX | I180: 1 | J180: 0.76 | K180: 5 | R180: =T180+SUMPRODUCT((Tableau2[DESIGNATION / REFERENCE]=D180)*Tableau2[QTE ENTREE])-SUMPRODUCT((Tableau2[DESIGNATION / REFERENCE]=D180)*Tableau2[QTE SORTIE]) -> 1 | S180: =Tableau1[[#This Row],[PRIX]]*Tableau1[[#This Row],[STOCK RESTANT]] -> 0.76 | T180: 1
A181: TOUR AUTO | B181: PERCAGE | C181: OUTIL | D181: FORET 1001 Ø2,3 | E181: FORMAT | F181: MECACOUPE | G181: BOX | I181: 1 | J181: 0.72 | K181: 5 | R181: =T181+SUMPRODUCT((Tableau2[DESIGNATION / REFERENCE]=D181)*Tableau2[QTE ENTREE])-SUMPRODUCT((Tableau2[DESIGNATION / REFERENCE]=D181)*Tableau2[QTE SORTIE]) -> 5 | S181: =Tableau1[[#This Row],[PRIX]]*Tableau1[[#This Row],[STOCK RESTANT]] -> 3.6 | T181: 5
A182: TOUR AUTO | B182: PERCAGE | C182: OUTIL | D182: FORET 1001 Ø2,4 | E182: FORMAT | F182: MECACOUPE | G182: BOX | I182: 1 | J182: 0.8 | K182: 5 | R182: =T182+SUMPRODUCT((Tableau2[DESIGNATION / REFERENCE]=D182)*Tableau2[QTE ENTREE])-SUMPRODUCT((Tableau2[DESIGNATION / REFERENCE]=D182)*Tableau2[QTE SORTIE]) -> 1 | S182: =Tableau1[[#This Row],[PRIX]]*Tableau1[[#This Row],[STOCK RESTANT]] -> 0.8 | T182: 1
A183: TOUR AUTO | B183: PERCAGE | C183: OUTIL | D183: FORET 1001 Ø3 | E183: FORMAT | F183: MECACOUPE | G183: BOX | I183: 1 | J183: 0.72 | K183: 5 | R183: =T183+SUMPRODUCT((Tableau2[DESIGNATION / REFERENCE]=D183)*Tableau2[QTE ENTREE])-SUMPRODUCT((Tableau2[DESIGNATION / REFERENCE]=D183)*Tableau2[QTE SORTIE]) -> 60 | S183: =Tableau1[[#This Row],[PRIX]]*Tableau1[[#This Row],[STOCK RESTANT]] -> 43.2 | T183: 60
A184: TOUR AUTO | B184: PERCAGE | C184: OUTIL | D184: FORET 1001 Ø3,2 | E184: FORMAT | F184: MECACOUPE | G184: BOX | I184: 1 | J184: 0.88 | K184: 5 | R184: =T184+SUMPRODUCT((Tableau2[DESIGNATION / REFERENCE]=D184)*Tableau2[QTE ENTREE])-SUMPRODUCT((Tableau2[DESIGNATION / REFERENCE]=D184)*Tableau2[QTE SORTIE]) -> 9 | S184: =Tableau1[[#This Row],[PRIX]]*Tableau1[[#This Row],[STOCK RESTANT]] -> 7.92 | T184: 9
A185: TOUR AUTO | B185: PERCAGE | C185: OUTIL | D185: FORET 1001 Ø3,3 | E185: FORMAT | F185: MECACOUPE | G185: BOX | I185: 1 | J185: 0.88 | K185: 5 | R185: =T185+SUMPRODUCT((Tableau2[DESIGNATION / REFERENCE]=D185)*Tableau2[QTE ENTREE])-SUMPRODUCT((Tableau2[DESIGNATION / REFERENCE]=D185)*Tableau2[QTE SORTIE]) -> 16 | S185: =Tableau1[[#This Row],[PRIX]]*Tableau1[[#This Row],[STOCK RESTANT]] -> 14.08 | T185: 21
A186: TOUR AUTO | B186: PERCAGE | C186: OUTIL | D186: FORET 1001 Ø3,4 | E186: FORMAT | F186: MECACOUPE | G186: BOX | I186: 1 | J186: 0.88 | K186: 5 | R186: =T186+SUMPRODUCT((Tableau2[DESIGNATION / REFERENCE]=D186)*Tableau2[QTE ENTREE])-SUMPRODUCT((Tableau2[DESIGNATION / REFERENCE]=D186)*Tableau2[QTE SORTIE]) -> 2 | S186: =Tableau1[[#This Row],[PRIX]]*Tableau1[[#This Row],[STOCK RESTANT]] -> 1.76 | T186: 2
A187: TOUR AUTO | B187: PERCAGE | C187: OUTIL | D187: FORET 1001 Ø3,5 | E187: FORMAT | F187: MECACOUPE | G187: BOX | I187: 1 | J187: 0.22 | K187: 5 | R187: =T187+SUMPRODUCT((Tableau2[DESIGNATION / REFERENCE]=D187)*Tableau2[QTE ENTREE])-SUMPRODUCT((Tableau2[DESIGNATION / REFERENCE]=D187)*Tableau2[QTE SORTIE]) -> 4 | S187: =Tableau1[[#This Row],[PRIX]]*Tableau1[[#This Row],[STOCK RESTANT]] -> 0.88 | T187: 4
A188: TOUR AUTO | B188: PERCAGE | C188: OUTIL | D188: FORET 1001 Ø3,8 | E188: FORMAT | F188: MECACOUPE | G188: BOX | I188: 1 | J188: 0.27 | K188: 5 | R188: =T188+SUMPRODUCT((Tableau2[DESIGNATION / REFERENCE]=D188)*Tableau2[QTE ENTREE])-SUMPRODUCT((Tableau2[DESIGNATION / REFERENCE]=D188)*Tableau2[QTE SORTIE]) -> 1 | S188: =Tableau1[[#This Row],[PRIX]]*Tableau1[[#This Row],[STOCK RESTANT]] -> 0.27 | T188: 1
A189: TOUR AUTO | B189: PERCAGE | C189: OUTIL | D189: FORET 1001 Ø4 | E189: FORMAT | F189: MECACOUPE | G189: BOX | I189: 1 | J189: 0.27 | K189: 5 | R189: =T189+SUMPRODUCT((Tableau2[DESIGNATION / REFERENCE]=D189)*Tableau2[QTE ENTREE])-SUMPRODUCT((Tableau2[DESIGNATION / REFERENCE]=D189)*Tableau2[QTE SORTIE]) -> 40 | S189: =Tableau1[[#This Row],[PRIX]]*Tableau1[[#This Row],[STOCK RESTANT]] -> 10.8 | T189: 52
A190: TOUR AUTO | B190: PERCAGE | C190: OUTIL | D190: FORET 1001 Ø4,1 | E190: FORMAT | F190: MECACOUPE | G190: BOX | I190: 1 | J190: 0.29 | K190: 5 | R190: =T190+SUMPRODUCT((Tableau2[DESIGNATION / REFERENCE]=D190)*Tableau2[QTE ENTREE])-SUMPRODUCT((Tableau2[DESIGNATION / REFERENCE]=D190)*Tableau2[QTE SORTIE]) -> 17 | S190: =Tableau1[[#This Row],[PRIX]]*Tableau1[[#This Row],[STOCK RESTANT]] -> 4.93 | T190: 17
A191: TOUR AUTO | B191: PERCAGE | C191: OUTIL | D191: FORET 1001 Ø4,2 | E191: FORMAT | F191: MECACOUPE | G191: BOX | I191: 1 | J191: 0.29 | K191: 5 | R191: =T191+SUMPRODUCT((Tableau2[DESIGNATION / REFERENCE]=D191)*Tableau2[QTE ENTREE])-SUMPRODUCT((Tableau2[DESIGNATION / REFERENCE]=D191)*Tableau2[QTE SORTIE]) -> 50 | S191: =Tableau1[[#This Row],[PRIX]]*Tableau1[[#This Row],[STOCK RESTANT]] -> 14.5 | T191: 50
A192: TOUR AUTO | B192: PERCAGE | C192: OUTIL | D192: FORET 1001 Ø4,5 | E192: FORMAT | F192: MECACOUPE | G192: BOX | I192: 1 | J192: 0.29 | K192: 5 | R192: =T192+SUMPRODUCT((Tableau2[DESIGNATION / REFERENCE]=D192)*Tableau2[QTE ENTREE])-SUMPRODUCT((Tableau2[DESIGNATION / REFERENCE]=D192)*Tableau2[QTE SORTIE]) -> 9 | S192: =Tableau1[[#This Row],[PRIX]]*Tableau1[[#This Row],[STOCK RESTANT]] -> 2.61 | T192: 9
A193: TOUR AUTO | B193: PERCAGE | C193: OUTIL | D193: FORET 1001 Ø4,6 | E193: FORMAT | F193: MECACOUPE | G193: BOX | I193: 1 | J193: 0.29 | K193: 5 | R193: =T193+SUMPRODUCT((Tableau2[DESIGNATION / REFERENCE]=D193)*Tableau2[QTE ENTREE])-SUMPRODUCT((Tableau2[DESIGNATION / REFERENCE]=D193)*Tableau2[QTE SORTIE]) -> 2 | S193: =Tableau1[[#This Row],[PRIX]]*Tableau1[[#This Row],[STOCK RESTANT]] -> 0.58 | T193: 2
A194: TOUR AUTO | B194: PERCAGE | C194: OUTIL | D194: FORET 1001 Ø4,9 | E194: FORMAT | F194: MECACOUPE | G194: BOX | I194: 1 | J194: 0.29 | K194: 5 | R194: =T194+SUMPRODUCT((Tableau2[DESIGNATION / REFERENCE]=D194)*Tableau2[QTE ENTREE])-SUMPRODUCT((Tableau2[DESIGNATION / REFERENCE]=D194)*Tableau2[QTE SORTIE]) -> 8 | S194: =Tableau1[[#This Row],[PRIX]]*Tableau1[[#This Row],[STOCK RESTANT]] -> 2.32 | T194: 8
A195: TOUR AUTO | B195: PERCAGE | C195: OUTIL | D195: FORET 1001 Ø5 | E195: FORMAT | F195: MECACOUPE | G195: BOX | I195: 1 | J195: 0.29 | K195: 5 | R195: =T195+SUMPRODUCT((Tableau2[DESIGNATION / REFERENCE]=D195)*Tableau2[QTE ENTREE])-SUMPRODUCT((Tableau2[DESIGNATION / REFERENCE]=D195)*Tableau2[QTE SORTIE]) -> 9 | S195: =Tableau1[[#This Row],[PRIX]]*Tableau1[[#This Row],[STOCK RESTANT]] -> 2.61 | T195: 9
A196: TOUR AUTO | B196: PERCAGE | C196: OUTIL | D196: FORET 1001 Ø5,1 | E196: FORMAT | F196: MECACOUPE | G196: BOX | I196: 1 | J196: 0.35 | K196: 5 | R196: =T196+SUMPRODUCT((Tableau2[DESIGNATION / REFERENCE]=D196)*Tableau2[QTE ENTREE])-SUMPRODUCT((Tableau2[DESIGNATION / REFERENCE]=D196)*Tableau2[QTE SORTIE]) -> 1 | S196: =Tableau1[[#This Row],[PRIX]]*Tableau1[[#This Row],[STOCK RESTANT]] -> 0.35 | T196: 1
A197: TOUR AUTO | B197: PERCAGE | C197: OUTIL | D197: FORET 1001 Ø5,2 | E197: FORMAT | F197: MECACOUPE | G197: BOX | I197: 1 | J197: 0.35 | K197: 5 | R197: =T197+SUMPRODUCT((Tableau2[DESIGNATION / REFERENCE]=D197)*Tableau2[QTE ENTREE])-SUMPRODUCT((Tableau2[DESIGNATION / REFERENCE]=D197)*Tableau2[QTE SORTIE]) -> 28 | S197: =Tableau1[[#This Row],[PRIX]]*Tableau1[[#This Row],[STOCK RESTANT]] -> 9.8 | T197: 28
A198: TOUR AUTO | B198: PERCAGE | C198: OUTIL | D198: FORET 1001 Ø5,4 | E198: FORMAT | F198: MECACOUPE | G198: BOX | I198: 1 | J198: 0.35 | K198: 5 | R198: =T198+SUMPRODUCT((Tableau2[DESIGNATION / REFERENCE]=D198)*Tableau2[QTE ENTREE])-SUMPRODUCT((Tableau2[DESIGNATION / REFERENCE]=D198)*Tableau2[QTE SORTIE]) -> 4 | S198: =Tableau1[[#This Row],[PRIX]]*Tableau1[[#This Row],[STOCK RESTANT]] -> 1.4 | T198: 4
A199: TOUR AUTO | B199: PERCAGE | C199: OUTIL | D199: FORET 1001 Ø5,7 | E199: FORMAT | F199: MECACOUPE | G199: BOX | I199: 1 | J199: 0.38 | K199: 5 | R199: =T199+SUMPRODUCT((Tableau2[DESIGNATION / REFERENCE]=D199)*Tableau2[QTE ENTREE])-SUMPRODUCT((Tableau2[DESIGNATION / REFERENCE]=D199)*Tableau2[QTE SORTIE]) -> 1 | S199: =Tableau1[[#This Row],[PRIX]]*Tableau1[[#This Row],[STOCK RESTANT]] -> 0.38 | T199: 1
A200: TOUR AUTO | B200: PERCAGE | C200: OUTIL | D200: FORET 1001 Ø5,8 | E200: FORMAT | F200: MECACOUPE | G200: BOX | I200: 1 | J200: 0.38 | K200: 5 | R200: =T200+SUMPRODUCT((Tableau2[DESIGNATION / REFERENCE]=D200)*Tableau2[QTE ENTREE])-SUMPRODUCT((Tableau2[DESIGNATION / REFERENCE]=D200)*Tableau2[QTE SORTIE]) -> 6 | S200: =Tableau1[[#This Row],[PRIX]]*Tableau1[[#This Row],[STOCK RESTANT]] -> 2.28 | T200: 6
A201: TOUR AUTO | B201: PERCAGE | C201: OUTIL | D201: FORET 1001 Ø5,9 | E201: FORMAT | F201: MECACOUPE | G201: BOX | I201: 1 | J201: 0.38 | K201: 5 | R201: =T201+SUMPRODUCT((Tableau2[DESIGNATION / REFERENCE]=D201)*Tableau2[QTE ENTREE])-SUMPRODUCT((Tableau2[DESIGNATION / REFERENCE]=D201)*Tableau2[QTE SORTIE]) -> 8 | S201: =Tableau1[[#This Row],[PRIX]]*Tableau1[[#This Row],[STOCK RESTANT]] -> 3.04 | T201: 8
... 682 more rows

Sheet SOUS TOTAL
A1: SECTEUR | B1: VALORISATION
A2: AJ | B2: =SUM(Tableau1[TOTAL]*(A2=Tableau1[SECTEUR])) -> 47241.57
A3: MARQUAGE | B3: =SUM(Tableau1[TOTAL]*(A3=Tableau1[SECTEUR])) -> 2161
A4: PETIT OUTILLAGE | B4: =SUM(Tableau1[TOTAL]*(A4=Tableau1[SECTEUR])) -> 27.18
A5: PRESSE | B5: =SUM(Tableau1[TOTAL]*(A5=Tableau1[SECTEUR])) -> 7378
A6: REPRISE | B6: =SUM(Tableau1[TOTAL]*(A6=Tableau1[SECTEUR])) -> 4826.51
A7: SCIE | B7: =SUM(Tableau1[TOTAL]*(A7=Tableau1[SECTEUR])) -> 702.5
A8: TARAUDEUSE | B8: =SUM(Tableau1[TOTAL]*(A8=Tableau1[SECTEUR])) -> 42927.38
A9: TOUR AUTO | B9: =SUM(Tableau1[TOTAL]*(A9=Tableau1[SECTEUR])) -> 20200.62
A10: TOUR CN | B10: =SUM(Tableau1[TOTAL]*(A10=Tableau1[SECTEUR])) -> 31965.31
A11: TOUR CN / TRANSFERT | B11: =SUM(Tableau1[TOTAL]*(A11=Tableau1[SECTEUR])) -> 28691.78
A12: TOUR CN ATELIER | B12: =SUM(Tableau1[TOTAL]*(A12=Tableau1[SECTEUR])) -> 11543
A13: TRANSFERT | B13: =SUM(Tableau1[TOTAL]*(A13=Tableau1[SECTEUR])) -> 44338.89

Sheet SUIVI VALORISATION
A1: SUIVI MENSUEL DE VALORISATION (HORS OTT HEUGEL)
A2: PERIODE | B2: DEPENSE 2011 | C2: VALORISATION STOCK 2011 | D2: DEPENSES 2012 | E2: VALORISATION STOCK 2012 | F2: DEPENSES 2013 | G2: VALORISATION STOCK 2013
A3: JANVIER | B3: 17598 | C3: / | D3: 27571 | E3: / | F3: 20214
A4: FÉVRIER | B4: 29481 | C4: / | D4: 31180 | E4: / | F4: 34520 | G4: 246250
A5: MARS | B5: 21533 | C5: / | D5: 26562 | E5: / | F5: 5017 | G5: 245949
A6: AVRIL | B6: 23010 | C6: / | D6: 12722 | E6: /
A7: MAI | B7: 14369 | C7: / | D7: 12394 | E7: /
A8: JUIN | B8: 32192 | C8: / | D8: 19320 | E8: /
A9: JUILLET | B9: 16453 | C9: / | D9: 10196 | E9: /
A10: AOÛT | B10: 4490 | C10: / | D10: 25856 | E10: /
A11: SEPTEMBRE | B11: 17299 | C11: / | D11: 18862 | E11: /
A12: OCTOBRE | B12: 22140 | C12: / | D12: 26470 | E12: /
A13: NOVEMBRE | B13: 26192 | C13: / | D13: 40555 | E13: /
A14: DÉCEMBRE | B14: 10266 | C14: / | D14: 11934 | E14: 222000
A15: TOTAL | B15: =SUM(B3:B14) -> 235023 | D15: =SUM(D3:D14) -> 263622 | F15: =SUM(F3:F14) -> 59751
A16: MOYENNE | B16: =AVERAGE(B3:B14) -> 19585.25 | D16: =AVERAGE(D3:D14) -> 21968.5 | F16: =AVERAGE(F3:F14) -> 19917

Sheet A COMMANDER
A1: A COMMANDER
A2: REF | B2: TYPE | C2: FOURNISSEUR | D2: QTE | E2: PRIX UNITAIRE
A3: TOURNEVIS TORX T6 REF 0006 | B3: OUTIL | C3: MECACOUPE | D3: 2 | E3: 3.96
C5: DELAI : 24/01/2013
A20: DELAI :

Sheet Feuil1
A1: Nombre de QTE ENTREE | B1: Étiquettes de colonnes
A2: Étiquettes de lignes | B2: 2012-10-24 | C2: 2012-10-25 | D2: 2012-10-26 | E2: 2012-10-29 | F2: 2012-10-31 | G2: 2012-11-06 | H2: 2012-11-08 | I2: 2012-11-15 | J2: 2012-11-20 | K2: 2012-11-21 | L2: 2012-11-27 | M2: 2012-11-29 | N2: 2012-12-04 | O2: 2012-12-05 | P2: 2012-12-14 | Q2: 2012-12-18 | R2: 2012-12-19 | S2: 2012-12-20 | T2: 2012-12-21 | U2: 2013-01-02 | V2: 2013-01-03 | W2: 2013-01-04 | X2: 2013-01-05 | Y2: 2013-01-06 | Z2: 2013-01-07 | AA2: 2013-01-08 | AB2: 2013-01-09 | AC2: 2013-01-10 | AD2: 2013-01-11 | AE2: 2013-01-14 | AF2: 2013-01-15 | AG2: 2013-01-16 | AH2: 2013-01-17 | AI2: 2013-01-18 | AJ2: 2013-01-21 | AK2: 2013-01-22 | AL2: 2013-01-23 | AM2: 2013-01-24 | AN2: 2013-01-25 | AO2: 2013-01-28 | AP2: 2013-01-29 | AQ2: 2013-01-30 | AR2: 2013-01-31 | AS2: 2013-02-01 | AT2: 2013-02-04 | AU2: 2013-02-05 | AV2: 2013-02-06 | AW2: 2013-02-07 | AX2: 2013-02-08 | AY2: 2013-02-09 | AZ2: 2013-02-11 | BA2: 2013-02-12 | BB2: 2013-02-13 | BC2: 2013-02-14 | BD2: 2013-02-15 | BE2: 2013-02-18 | BF2: 2013-02-19 | BG2: 2013-02-20 | BH2: 2013-02-21 | BI2: 2013-02-22 | BJ2: 2013-02-25 | BK2: 2013-02-26 | BL2: 2013-02-27 | BM2: 2013-02-28 | BN2: 2013-03-01 | BO2: 2013-03-04 | BP2: 2013-03-05 | BQ2: 2013-03-06 | BR2: 2013-03-07 | BS2: 2013-03-08 | BT2: 2013-03-11 | BU2: 2013-03-12 | BV2: 2013-03-13 | BW2: 2013-03-14 | BX2: 2013-03-15 | BY2: 2013-03-18 | BZ2: 2013-03-19 | CA2: 2013-03-20 | CB2: 2013-03-21 | CC2: 2013-03-22 | CD2: 2013-03-25 | CE2: 2013-03-26 | CF2: 2013-03-27 | CG2: 2013-03-28 | CH2: 2013-03-29 | CI2: 2013-04-01 | CJ2: 2013-04-02 | CK2: 2013-04-03 | CL2: 2013-04-04 | CM2: 2013-04-05 | CN2: 2013-04-08 | CO2: 2013-04-09 | CP2: 2013-04-10 | CQ2: 2013-04-11 | CR2: 2013-04-12 | CS2: 15/04/2013 | CT2: 2013-10-04 | CU2: 2013-11-04 | CV2: 28/03/2013 | CW2: 2013-12-04 | CX2: Total général
A3: ACHRAF | CJ3: 1 | CO3: 1 | CX3: 2
A4: AURELIEN
A5: CEDRIC | CK5: 1 | CX5: 1
A6: CHRISTOPHE
A7: CYRIL | BI7: 2 | CX7: 2
A8: DRIF
A9: FABRICE | BE9: 5 | BH9: 3 | CX9: 8
A10: FRED | BF10: 1 | CX10: 1
A11: GILLES
A12: JEAN CHARLES | BG12: 1 | CL12: 1 | CO12: 1 | CX12: 3
A13: JFP | BD13: 5 | BE13: 3 | BF13: 4 | BH13: 2 | BI13: 3 | BJ13: 1 | BL13: 4 | BM13: 1 | BN13: 3 | BQ13: 3 | BR13: 1 | BS13: 2 | BU13: 6 | BV13: 4 | BW13: 1 | BY13: 4 | BZ13: 2 | CA13: 4 | CB13: 1 | CC13: 3 | CG13: 1 | CH13: 2 | CL13: 3 | CM13: 1 | CN13: 4 | CP13: 5 | CR13: 1 | CX13: 74
A14: JOHANN
A15: KARINE
A16: LOIC
A17: MANUEL
A18: MOUS | CN18: 1 | CO18: 1 | CX18: 2
A19: NADINE
A20: SEB | BE20: 1 | CX20: 1
A21: SEBASTIEN M
A22: VIVIEN
A23: Total général | BD23: 5 | BE23: 9 | BF23: 5 | BG23: 1 | BH23: 5 | BI23: 5 | BJ23: 1 | BL23: 4 | BM23: 1 | BN23: 3 | BQ23: 3 | BR23: 1 | BS23: 2 | BU23: 6 | BV23: 4 | BW23: 1 | BY23: 4 | BZ23: 2 | CA23: 4 | CB23: 1 | CC23: 3 | CG23: 1 | CH23: 2 | CJ23: 1 | CK23: 1 | CL23: 4 | CM23: 1 | CN23: 5 | CO23: 3 | CP23: 5 | CR23: 1 | CX23: 94
